Workbook

Sheet 1.0 LDC Info
A1: LRAMVA Model version 1.0 © CHEC | T1: 2
A9: LDC Info
D11: Utility Name | E11: Wellington North Power Inc
D13: Service Territory
D15: Assigned EB Number | E15: EB-2015-0110
D17: Name of Contact and Title | E17: Richard Bucknall, CAO
D19: Phone Number | E19: 1-519-323-1710
D21: Email Address | E21: rbucknall@wellingtonnorthpower.com
D23: Bridge Year | E23: 2015
D25: Test Year | E25: 2016
D27: Last Rebasing Year | E27: 2012 | F27: =IF(Test_Year-Last_Rebasing_Year>6, "Number of Years exceeds between CoS exceeds 6 years","") -> 
B29: Notes
C31: Pale green cells represent input cells.
C33: White cells contain fixed values, automatically generated values or formulae.

Sheet 1.1 Contents & Notes
A1: LRAMVA Model version 1.0 © CHEC | R1: 2
B3: Table of Contents: | E3: Notes:
C4: 1.0 LDC Info | E4: LDC Information
C6: 2.0 Customer Classes | E6: List of customer rate classes serviced by the LDC
C8: 3.0 LRAMVA Register | E8: Summary of Lost Revenue Adjustment Mechanism Variance Accounts (LRAMVA) for each year of CDM Program illustrating GL entries made each year for each customer rate class
C10: 4.0 Approved Load Forecast | E10: Latest OEB approved Load Forecast including CDM Forecast
C12: 5.0 Carrying Charges | E12: Calculation of carrying charges for each month
C14: 6.0 Rates | E14: Summary of Distribution Rates for each rate class for each rate year as approved by OEB
C16: 7.0 2011LostRev | E16: Calculation of kW and kWh verified savings achieved in 2011 by each rate class (Validated against OPA verified 2011 CDM Report for LDC)
C18: 8.0 2012LostRev | E18: Calculation of kW and kWh verified savings achieved in 2012 by each rate class plus any true-up adjustment for 2011 program year (Validated against OPA verified 2011 CDM Report for LDC)
C20: 9.0 2013LostRev | E20: Calculation of kW and kWh verified savings achieved in 2013 by each rate class plus any true-up adjustment for 2011 and 2012 program years (Validated against OPA verified 2011 CDM Report for LDC)
C22: 10.0 2014LostRev | E22: Calculation of kW and kWh verified savings achieved in 2014 by each rate class plus any true-up adjustment for 2011, 2012 and 2013 program years (Validated against OPA verified 2011 CDM Report for LDC)
C24: 11.0 Savings Validation | E24: Validation of 2011-2014 Lost Revenue tables against final IESO issued CDM report for LDC for Program period 2011-2014
C26: 12.0 Persistence | E26: Illustration of Persistence savings as per IESO (OPA) issued final CDM report for LDC for Program period 2011-2014
C28: 13.0 Rate Class Allocation | E28: Calculation of ratios to apply for kWh savings for GS 50-999kW and GS 1000-4999kW rate classes for each year
B30: Appendices:
C31: Appdx A IESO LDC-Results (Net) | E31: Table 1: Wellington North Power Inc. Initiative and Program Level Net Savings by Year - Issued final CDM report for LDC showing LDC Results - Net (published September 1st 2015)
C33: Appdx B IESO_LDCAdjustment(Net) | E33: Table 2: Adjustments to Wellington North Power Inc. Net Verified Results due to Variances - Issued final CDM report for LDC showing LDC Adjustments - Net (published September 1st 2015)
C35: Appdx C IESO Summary | E35: Table 4: Net Peak Demand Savings at the End User Level (MW) (Scenario 1) and Table 5: Net Energy Savings at the End User Level (GWh) - Issued final CDM report for LDC showing LDC Adjustments - Net (published September 1st 2015)
C37: Appdx D 2012 Gross to Net Savgs | E37: 2012 Gross to Net Savings validation
C39: Appdx E 2013 Gross to Net Savgs | E39: 2013 Gross to Net Savings validation

Sheet 2.0 Customer Classes
A1: LRAMVA Model version 1.0 © CHEC | T1: 2
A9: Customer Class & Current Tariff Sheet
A12: Customer Class Name | B12: Existing/ Proposed | C12: MSC Metric | D12: Usage Metric
A13: Residential | B13: Existing | C13: Customer | D13: kWh
A14: General Service < 50 kW | B14: Existing | C14: Customer | D14: kWh
A15: General Service 50 to 999 kW | B15: Existing | C15: Customer | D15: kW
A16: General Service 1,000 to 4,999 kW | B16: Existing | C16: Customer | D16: kW
A17: Sentinel Lighting | B17: Existing | C17: Connection | D17: kW
A18: Street Lighting | B18: Existing | C18: Connection | D18: kW
A19: Unmetered Scattered Load | B19: Existing | C19: Connection | D19: kWh
A20: other
A21: other
A22: other

Sheet Instructions (hidden)
A1: Worksheet | B1: Notes
A2: LRAM VA Register | B2: Table 1 provides a summary of account balance history for account 1568 for each year. Amounts cleared through Rate Order are input by rate class.
A3: Approved Load Forecast | B3: Input kWh/kW savings included in most recent approved load forecast in Table 2. Table 3 will calculate dollars for LRAMVA account 1568.
A4: Carrying Charges | B4: Input most recent Board-approved rate in Table 4 as available; Cumulative carrying charges are calculated in Table 5.
A5: Rates | B5: Input approved distribution rates in Table 6 from rate orders. Only the Distribution Volumetric Rate and the Rate Rider for Application of Tax Change are used.
A6: 2011LostRev | B6: Table 7 - Input program details, report status, kWh and kW net savings from OPA 2011 Final Annual Report Data - Table 5; Input allocation % for each rate class.
A7: 2012LostRev | B7: Table 8 - Input program details, report status, kWh and kW net savings from Final Verified Annual 2012 CDM Report_Local Distribution Corporation/Table 1 - 2012 Savings & Table 2 - Adjustments due to Errors and Omissions; OPA report provided in pdf with exception of a few LDCs; Input allocation % for each rate class.
A8: 2012 Gross to Net Savings | B8: Table 9 - Retrieve the "Gross to Net Savings" report for the LDC from the OPA website: https://portal.ieso.ca - select your LDC under Community Projects/Documents/Conservation Officer - LDC Reports/Documents. NOTE: Check the values in the "Net Annual Summer Peak Demand Savings - MWh" (column O) against LDC Results for the corresponding year. Also check any prior year true-ups against the LDC True-Up report - ensure that figures reconcile to the OPA reports; Check the values in the "Net Annual Energy Savings - MWh" (column AS) against LDC Results for the corresponding year. Also check any prior year true-ups against the LDC True-Up report - ensure that figures reconcile to the OPA reports.
A9: 2013LostRev | B9: Table 10 - Input program details, report status, kWh and kW net savings from OPA 2013 Final Annual Report Data (excel format) when available; Input allocation % for each rate class.
A10: 2014LostRev | B10: Table 11 - Input program details, report status, kWh and kW net savings from OPA 2014 Final Annual Report (excel format) when available; Input allocation % for each rate class.
A11: Persistence/2011 | B11: 2011 OPA final report was provided in excel. Copy MW and GWh from Annual OPA Report - Progress Toward Targets (Tables 6 and 7_ sheet 3.1.1 Summary – LDC) in the 2011 Final Annual Report to row 7 and row 25 in Table 12 and 13 - Persistence tab. This data provides the information that LDCS require to calculate persistence for 2011 OPA Programs.
A12: Persistence/2012 | B12: Copy MW and GWh from 2012 Gross to Net Savings to Report / Progress Toward Targets to row 8 and row 26 in Table 12 and 13 - Persistence tab. This data provides the information that LDCS require to calculate persistence for 2012 OPA Programs.
A13: Persistence/2013 | B13: Copy MW and GWh from 2013 Final Annual OPA Report/Progress Toward Targets to row 9 and row 27 in Table 12 and 13 - Persistence tab when available. If the report is provided in excel format, data may be copied directly to appropriate cells in Persistence tab.
A14: Classes Billed on kW | B14: Annual Savings Methodology
A15: GS > 50 kW Initiatives excluding Demand Response 3 | B15: Apply 12 months of peak demand to the kW results in the OPA final verified CDM results to determine the annual savings.
A16: GS > 50 kW Demand Response 3 Initiative | B16: Apply 5 months of peak demand to the kW results in the OPA final verified CDM results to determine the annual savings.
B17: References:
A18: EB-2013-0148 | B18: Lakefront Utilities Inc.
B19: LUI_replySUB_BrdStaff_VECC_20140116, pages 2-3
B20: BrdStaff_SUB_Lakefront Utilities_20131218, pages 4-6
A22: EB-2012-0107 | B22: Bluewater Power Distribution Corporation
B23: dec_order_rates_Bluewater_20130425, Settlement Agreement, page 48
B24: Bluewater_appl_CoS_EDR_Ex 9_Deferral and Variance Accounts_20121022, Exhibit 9, Tab 3, Schedule 1, Attachment 2

Sheet 3.0 LRAMVA Register
A1: LRAMVA Model version 1.0 © CHEC
E6: Table 1 - LRAMVA register
A8: Verified results updated | B8: 2014
A10: Description | B10: ='2.0 Customer Classes'!$A13 -> Residential | C10: ='2.0 Customer Classes'!$A14 -> General Service < 50 kW | D10: ='2.0 Customer Classes'!$A15 -> General Service 50 to 999 kW | E10: ='2.0 Customer Classes'!$A16 -> General Service 1,000 to 4,999 kW | F10: ='2.0 Customer Classes'!$A17 -> Sentinel Lighting | G10: ='2.0 Customer Classes'!$A18 -> Street Lighting | H10: ='2.0 Customer Classes'!$A19 -> Unmetered Scattered Load | I10: ='2.0 Customer Classes'!$A20 -> other | J10: ='2.0 Customer Classes'!$A21 -> other | K10: ='2.0 Customer Classes'!$A22 -> other | L10: Total
A11: 2011 Forecast | B11: =-'4.0 Approved Load Forecast'!D34 -> 0 | C11: =-'4.0 Approved Load Forecast'!E34 -> 0 | D11: =-'4.0 Approved Load Forecast'!F34 -> 0 | E11: =-'4.0 Approved Load Forecast'!G34 -> 0 | F11: =-'4.0 Approved Load Forecast'!H34 -> 0 | G11: =-'4.0 Approved Load Forecast'!I34 -> 0 | H11: =-'4.0 Approved Load Forecast'!J34 -> 0 | L11: =SUM(B11:K11) -> 0
A12: 2011 Verified | B12: ='7.0 2011LostRev'!F47 -> 1057.3174 | C12: ='7.0 2011LostRev'!G47 -> 926.1 | D12: ='7.0 2011LostRev'!H47 -> 0 | E12: ='7.0 2011LostRev'!I47 -> 0 | F12: ='7.0 2011LostRev'!J47 -> 0 | G12: ='7.0 2011LostRev'!K47 -> 0 | H12: ='7.0 2011LostRev'!L47 -> 0 | L12: =SUM(B12:K12) -> 1983.4174
A13: 2011 Cleared | B13: 0 | C13: 0 | D13: 0 | E13: 0 | F13: 0 | G13: 0 | H13: 0 | L13: 0
A15: 2012 Forecast | B15: =-'4.0 Approved Load Forecast'!D35 -> -3393.333933 | C15: =-'4.0 Approved Load Forecast'!E35 -> -1281.54306 | D15: =-'4.0 Approved Load Forecast'!F35 -> -1541.41627 | E15: =-'4.0 Approved Load Forecast'!G35 -> -1240.736354 | F15: =-'4.0 Approved Load Forecast'!H35 -> -35.96365161 | G15: =-'4.0 Approved Load Forecast'!I35 -> -108.4839554 | H15: =-'4.0 Approved Load Forecast'!J35 -> -0.3546493397 | L15: -7601.831874
A16: 2012 Verified | B16: ='8.0 2012LostRev'!F63 -> 2428.834949 | C16: ='8.0 2012LostRev'!G63 -> 2422.496278 | D16: ='8.0 2012LostRev'!H63 -> 1053.620321 | E16: ='8.0 2012LostRev'!I63 -> 1078.238906 | F16: ='8.0 2012LostRev'!J63 -> 0 | G16: ='8.0 2012LostRev'!K63 -> 0 | H16: ='8.0 2012LostRev'!L63 -> 0 | L16: 6983.190454
A17: 2012 Cleared | B17: 0 | C17: 0 | D17: 0 | E17: 0 | F17: 0 | G17: 0 | H17: 0 | L17: =SUM(B17:K17) -> 0
A19: 2013 Forecast | B19: =-'4.0 Approved Load Forecast'!D36 -> -4107.620306 | C19: =-'4.0 Approved Load Forecast'!E36 -> -1604.374518 | D19: =-'4.0 Approved Load Forecast'!F36 -> -1650.385712 | E19: =-'4.0 Approved Load Forecast'!G36 -> -1636.991229 | F19: =-'4.0 Approved Load Forecast'!H36 -> -13.77333586 | G19: =-'4.0 Approved Load Forecast'!I36 -> -134.826149 | H19: =-'4.0 Approved Load Forecast'!J36 -> -0.5151939257 | L19: =SUM(B19:K19) -> -9148.486443
A20: 2013 Actuals | B20: ='9.0 2013LostRev'!F70 -> 4765.946884 | C20: ='9.0 2013LostRev'!G70 -> 3542.792518 | D20: ='9.0 2013LostRev'!H70 -> 1615.242893 | E20: ='9.0 2013LostRev'!I70 -> 2003.912257 | F20: ='9.0 2013LostRev'!J70 -> 0 | G20: ='9.0 2013LostRev'!K70 -> 0 | H20: ='9.0 2013LostRev'!L70 -> 0 | L20: 11927.89455
A21: 2013 Cleared | B21: 0 | C21: 0 | D21: 0 | E21: 0 | F21: 0 | G21: 0 | H21: 0 | L21: 0
A23: 2014 Forecast | B23: =-'4.0 Approved Load Forecast'!D37 -> -4145.513482 | C23: =-'4.0 Approved Load Forecast'!E37 -> -1617.418213 | D23: =-'4.0 Approved Load Forecast'!F37 -> -1665.683448 | E23: =-'4.0 Approved Load Forecast'!G37 -> -1652.186604 | F23: =-'4.0 Approved Load Forecast'!H37 -> -13.90103946 | G23: =-'4.0 Approved Load Forecast'!I37 -> -136.0766376 | H23: =-'4.0 Approved Load Forecast'!J37 -> -0.5200314274 | L23: =SUM(B23:K23) -> -9231.299456
A24: 2014 Actuals | B24: ='10.0 2014LostRev'!F73 -> 7140.169881 | C24: ='10.0 2014LostRev'!G73 -> 4893.777813 | D24: ='10.0 2014LostRev'!H73 -> 2222.546578 | E24: ='10.0 2014LostRev'!I73 -> 2380.959356 | F24: ='10.0 2014LostRev'!J73 -> 0 | G24: ='10.0 2014LostRev'!K73 -> 0 | H24: ='10.0 2014LostRev'!L73 -> 0 | L24: 16637.45363
A25: 2014 Cleared | B25: 0 | C25: 0 | D25: 0 | E25: 0 | F25: 0 | G25: 0 | H25: 0 | L25: 0
A27: Balance | B27: =SUM(B11:B26) -> 3745.801394 | C27: =SUM(C11:C26) -> 7281.830818 | D27: 33.92436226 | E27: 933.1963309 | F27: -63.63802694 | G27: -379.3867419 | H27: -1.389874693 | L27: =SUM(L11:L26) -> 11550.33826
A29: Carrying Charges1 | B29: ='5.0 Carrying Charges'!D102 -> 58.23856118 | C29: ='5.0 Carrying Charges'!E102 -> 172.0871206 | D29: ='5.0 Carrying Charges'!F102 -> -16.73224165 | E29: ='5.0 Carrying Charges'!G102 -> 8.232566407 | F29: ='5.0 Carrying Charges'!H102 -> -1.924379117 | G29: ='5.0 Carrying Charges'!I102 -> -8.917547446 | H29: ='5.0 Carrying Charges'!J102 -> -0.03163678586 | L29: =SUM(B29:K29) -> 210.9524431
A30: Balance | B30: =SUM(B27:B29) -> 3804.039955 | C30: =SUM(C27:C29) -> 7453.917939 | D30: 17.19212061 | E30: 941.4288973 | F30: -65.56240605 | G30: -388.3042893 | H30: -1.421511479 | L30: 11761.2907
A32: Input amounts cleared by rate class.
A33: 1 Update formula for most recent rate year
A35: GL Entry - Principal Only (not interest) | B35: =B10 -> Residential | C35: =C10 -> General Service < 50 kW | D35: General Service 50 to 999 kW | E35: General Service 1,000 to 4,999 kW | F35: Sentinel Lighting | G35: Street Lighting | H35: Unmetered Scattered Load | L35: Total
A36: 2011 CDM Activity - GL Entry | B36: =B11+B12 -> 1057.3174 | C36: 926.1 | D36: 0 | E36: 0 | F36: 0 | G36: 0 | H36: 0 | L36: 1983.4174
A37: 2012 CDM Activity - GL Entry | B37: =B15+B16 -> -964.498984 | C37: =C15+C16 -> 1140.953218 | D37: -487.7959489 | E37: -162.4974484 | F37: -35.96365161 | G37: -108.4839554 | H37: -0.3546493397 | L37: -618.6414196
A38: 2013 CDM Activity - GL Entry | B38: =B19+B20 -> 658.3265782 | C38: =C19+C20 -> 1938.418 | D38: -35.14281869 | E38: 366.9210273 | F38: -13.77333586 | G38: -134.826149 | H38: -0.5151939257 | L38: 2779.408108
A39: 2014 CDM Activity - GL Entry | B39: =B23+B24 -> 2994.656399 | C39: =C23+C24 -> 3276.3596 | D39: 556.8631299 | E39: 728.7727521 | F39: -13.90103946 | G39: -136.0766376 | H39: -0.5200314274 | L39: =L24+L23 -> 7406.154173

Sheet 4.0 Approved Load Forecast
A1: LRAMVA Model version 1.0 © CHEC
B8: CDM Targets
B10: Forecast Year
D11: kWh | E11: kW
B12: 2011 | D12: -452000 | E12: =E13*0.5 -> -683.3764933 | F12: Note: kW savings are based on kWh:kW ratio approved in last CoS application (EB-2011-0249)
B13: 2012 | D13: -904000 | E13: =N63 -> -1366.752987 | F13: Note: kW savings are Net Energy Cumulative Savings (not Annual Peak Demand Savings)
B14: 2013 | D14: =D13 -> -904000 | E14: =N76 -> -1366.752987
B15: 2014 | D15: =D13 -> -904000 | E15: =N89 -> -1366.752987
D16: =SUM(D12:D15) -> -3164000 | E16: =SUM(E12:E15) -> -4783.635453
B18: Table 2 - Savings Due to CDM Included in Approved Load Forecast
B20: Forecast Year | D20: ='3.0 LRAMVA Register'!B$10 -> Residential | E20: ='3.0 LRAMVA Register'!C$10 -> General Service < 50 kW | F20: ='3.0 LRAMVA Register'!D$10 -> General Service 50 to 999 kW | G20: ='3.0 LRAMVA Register'!E$10 -> General Service 1,000 to 4,999 kW | H20: ='3.0 LRAMVA Register'!F$10 -> Sentinel Lighting | I20: ='3.0 LRAMVA Register'!G$10 -> Street Lighting | J20: ='3.0 LRAMVA Register'!H$10 -> Unmetered Scattered Load | K20: ='3.0 LRAMVA Register'!I$10 -> other | L20: ='3.0 LRAMVA Register'!J$10 -> other | M20: ='3.0 LRAMVA Register'!K$10 -> other | N20: ='3.0 LRAMVA Register'!L10 -> Total
D21: ='2.0 Customer Classes'!$D13 -> kWh | E21: ='2.0 Customer Classes'!$D14 -> kWh | F21: ='2.0 Customer Classes'!$D15 -> kW | G21: ='2.0 Customer Classes'!$D16 -> kW | H21: ='2.0 Customer Classes'!$D17 -> kW | I21: ='2.0 Customer Classes'!$D18 -> kW | J21: ='2.0 Customer Classes'!$D19 -> kWh | K21: ='2.0 Customer Classes'!$D20 -> 0 | L21: ='2.0 Customer Classes'!$D21 -> 0 | M21: ='2.0 Customer Classes'!$D22 -> 0
B22: 2011 | D22: 0 | E22: 0 | F22: 0 | G22: 0 | H22: 0 | I22: 0 | J22: 0
B23: 2012 | D23: =-D59 -> 227359.0575 | E23: =-E59 -> 97827.7145 | F23: =-F63 -> 461.7023168 | G23: =-G63 -> 886.889583 | H23: =-H63 -> 0.7286245642 | I23: =-I63 -> 17.43246218 | J23: =-J59 -> 36.28126238
B24: 2013 | D24: =-D72 -> 227359.0575 | E24: =-E72 -> 97827.7145 | F24: =-F76 -> 461.7023168 | G24: =-G76 -> 886.889583 | H24: 0.7286245642 | I24: 17.43246218 | J24: =-J72 -> 36.28126238
B25: 2014 | D25: =-D85 -> 227359.0575 | E25: =-E85 -> 97827.7145 | F25: =-F89 -> 461.7023168 | G25: =-G89 -> 886.889583 | H25: =-H89 -> 0.7286245642 | I25: =-I89 -> 17.43246218 | J25: =-J85 -> 36.28126238
B27: Notes: | D27: No CDM for 2011 assumed in the most recent load forecast (2012 Cost of Service application)
B30: Table 3 - Forecast Loss Revenue by Class
B32: Forecast Year | D32: =D20 -> Residential | E32: General Service < 50 kW | F32: General Service 50 to 999 kW | G32: General Service 1,000 to 4,999 kW | H32: Sentinel Lighting | I32: Street Lighting | J32: Unmetered Scattered Load | K32: other | L32: other | M32: other | N32: Total
D33: $ | E33: $ | F33: $ | G33: $ | H33: $ | I33: $ | J33: $ | K33: $ | L33: $ | M33: $ | N33: $
B34: 2011 | D34: =D22*'6.0 Rates'!C15 -> 0 | E34: =E22*'6.0 Rates'!C16 -> 0 | F34: =F22*'6.0 Rates'!C17 -> 0 | G34: =G22*'6.0 Rates'!C18 -> 0 | H34: =H22*'6.0 Rates'!C19 -> 0 | I34: =I22*'6.0 Rates'!C20 -> 0 | J34: =J22*'6.0 Rates'!C21 -> 0 | N34: =SUM(D34:M34) -> 0
B35: 2012 | D35: =D23*'6.0 Rates'!D15 -> 3393.333933 | E35: =E23*'6.0 Rates'!D16 -> 1281.54306 | F35: =F23*'6.0 Rates'!D17 -> 1541.41627 | G35: =G23*'6.0 Rates'!D18 -> 1240.736354 | H35: =H23*'6.0 Rates'!D19 -> 35.96365161 | I35: =I23*'6.0 Rates'!D20 -> 108.4839554 | J35: =J23*'6.0 Rates'!D21 -> 0.3546493397 | N35: =SUM(D35:M35) -> 7601.831874
B36: 2013 | D36: =D24*'6.0 Rates'!E15 -> 4107.620306 | E36: =E24*'6.0 Rates'!E16 -> 1604.374518 | F36: =F24*'6.0 Rates'!E17 -> 1650.385712 | G36: =G24*'6.0 Rates'!E18 -> 1636.991229 | H36: =H24*'6.0 Rates'!E19 -> 13.77333586 | I36: =I24*'6.0 Rates'!E20 -> 134.826149 | J36: =J24*'6.0 Rates'!E21 -> 0.5151939257 | N36: 9148.486443
B37: 2014 | D37: =D25*'6.0 Rates'!F15 -> 4145.513482 | E37: =E25*'6.0 Rates'!F16 -> 1617.418213 | F37: =F25*'6.0 Rates'!F17 -> 1665.683448 | G37: =G25*'6.0 Rates'!F18 -> 1652.186604 | H37: =H25*'6.0 Rates'!F19 -> 13.90103946 | I37: =I25*'6.0 Rates'!F20 -> 136.0766376 | J37: =J25*'6.0 Rates'!F21 -> 0.5200314274 | N37: 9231.299456
A42: CDM Adjustment as Approved in last Cost of Service
B44: 2011 | D44: =D32 -> Residential | E44: =E32 -> General Service < 50 kW | F44: General Service 50 to 999 kW | G44: General Service 1,000 to 4,999 kW | H44: Sentinel Lighting | I44: Street Lighting | J44: Unmetered Scattered Load | K44: other | L44: other | M44: other | N44: Total
B46: 2011 Weather Normal Billed kWh | D46: 25468369 | E46: 11198641 | F46: 20640954 | G46: 37631020 | H46: 30564 | I46: 719604 | J46: 6244 | N46: =SUM(D46:M46) -> 95695396
B47: % of Billed | D47: =D46/$N$46 -> 0.2661399614 | E47: =E46/$N$46 -> 0.1170238221 | F47: 0.2156943266 | G47: 0.3932375179 | H47: 0.0003193884061 | I47: 0.007519734805 | J47: 6.524869807e-05 | K47: =K46/$N$46 -> 0 | L47: 0 | M47: =M46/$N$46 -> 0 | N47: =SUM(D47:M47) -> 1
B48: CDM Spread kWh | D48: =$D$12*D47 -> -120295.2626 | E48: -52894.7676 | F48: -97493.83563 | G48: -177743.3581 | H48: -144.3635596 | I48: -3398.920132 | J48: -29.49241153 | K48: 0 | L48: 0 | M48: 0 | N48: =SUM(D48:M48) -> -452000
B49: Adjusted Billed kWh with CDM Applied | D49: =D46+D48 -> 25348073.74 | E49: =E46+E48 -> 11145746.23 | F49: 20543460.16 | G49: 37453276.64 | H49: 30419.63644 | I49: 716205.0799 | J49: 6214.507588 | K49: 0 | L49: 0 | M49: 0 | N49: =SUM(D49:M50) -> 95243396
D51: No CDM was applied to Load Forecast in 2011. The tables below will be used to show the OEB approved billed data from which CDM adjustments are derived (as per COS EB-2011-0249)
B55: 2012 | D55: =D44 -> Residential | E55: General Service < 50 kW | F55: General Service 50 to 999 kW | G55: General Service 1,000 to 4,999 kW | H55: Sentinel Lighting | I55: Street Lighting | J55: Unmetered Scattered Load | K55: other | L55: other | M55: other | N55: Total
B56: kWh
B57: 2012 Weather Normal Billed kWh | D57: 25103878 | E57: 10801659 | F57: 19997614 | G57: 43160131 | H57: 29529 | I57: 718453 | J57: 4006 | N57: =SUM(D57:M57) -> 99815270
B58: % of Billed | D58: =D57/$N$57 -> 0.2515033822 | E58: =E57/$N$57 -> 0.1082164983 | F58: 0.2003462396 | G58: 0.4324000827 | H58: 0.0002958364988 | I58: 0.007197826545 | J58: =J57/$N$57 -> 4.01341398e-05 | K58: 0 | L58: 0 | M58: =M57/$N$57 -> 0 | N58: =SUM(D58:M58) -> 1
B59: CDM Spread kWh | D59: =$D$13*D58 -> -227359.0575 | E59: -97827.7145 | F59: -181113.0006 | G59: -390889.6747 | H59: -267.4361949 | I59: -6506.835197 | J59: -36.28126238 | K59: 0 | L59: 0 | M59: 0 | N59: =SUM(D59:M59) -> -904000
B60: Adjusted Billed kWh with CDM Applied | D60: =D57+D59 -> 24876518.94 | E60: =E57+E59 -> 10703831.29 | F60: =F57+F59 -> 19816501 | G60: =G57+G59 -> 42769241.33 | H60: =H57+H59 -> 29261.56381 | I60: =I57+I59 -> 711946.1648 | J60: 3969.718738 | K60: 0 | L60: 0 | M60: =M57+M59 -> 0 | N60: =SUM(D60:M61) -> 98911270
B61: kW
B62: 2012 Weather Normal Billed kW | D62: =D57*D65 -> 0 | E62: 0 | F62: =F57*F65 -> 50978.91749 | G62: =G57*G65 -> 97926.02123 | H62: 80.45116992 | I62: 1924.807432 | J62: =J57*J65 -> 0 | K62: 0 | L62: 0 | M62: 0 | N62: =SUM(D62:M62) -> 150910.1973
B63: CDM kW Reduction | D63: =D59*D65 -> 0 | E63: 0 | F63: =F59*F65 -> -461.7023168 | G63: =G59*G65 -> -886.889583 | H63: -0.7286245642 | I63: -17.43246218 | J63: =J59*J65 -> 0 | K63: 0 | L63: 0 | M63: 0 | N63: =SUM(D63:M63) -> -1366.752987
B64: Adjusted Billed kW with CDM Applied | D64: =D62+D63 -> 0 | E64: 0 | F64: =F62+F63 -> 50517.21517 | G64: =G62+G63 -> 97039.13164 | H64: 79.72254536 | I64: 1907.37497 | J64: =J62+J63 -> 0 | K64: 0 | L64: 0 | M64: 0 | N64: =SUM(D64:M64) -> 149543.4443
B65: kWh to KW Ratio | D65: 0 | E65: 0 | F65: 0.00254925 | G65: 0.0022689 | H65: 0.00272448 | I65: 0.0026791 | J65: 0
B68: 2013 | D68: =D55 -> Residential | E68: =E55 -> General Service < 50 kW | F68: General Service 50 to 999 kW | G68: General Service 1,000 to 4,999 kW | H68: Sentinel Lighting | I68: Street Lighting | J68: Unmetered Scattered Load | K68: other | L68: other | M68: other | N68: Total
B69: kWh
B70: 2012 Weather Normal Billed kWh | D70: 25103878 | E70: 10801659 | F70: 19997614 | G70: 43160131 | H70: 29529 | I70: 718453 | J70: 4006 | N70: =SUM(D70:M70) -> 99815270
B71: % of Billed | D71: =D70/$N$70 -> 0.2515033822 | E71: 0.1082164983 | F71: 0.2003462396 | G71: 0.4324000827 | H71: 0.0002958364988 | I71: 0.007197826545 | J71: 4.01341398e-05 | K71: 0 | L71: 0 | M71: 0 | N71: =SUM(D71:M71) -> 1
B72: CDM Spread kWh | D72: =D59 -> -227359.0575 | E72: =E59 -> -97827.7145 | F72: -181113.0006 | G72: -390889.6747 | H72: -267.4361949 | I72: -6506.835197 | J72: -36.28126238 | K72: =$D$14*K71 -> 0 | L72: 0 | M72: 0 | N72: =SUM(D72:M72) -> -904000
B73: Adjusted Billed kWh with CDM Applied | D73: =D70+D72 -> 24876518.94 | E73: =E70+E72 -> 10703831.29 | F73: =F70+F72 -> 19816501 | G73: =G70+G72 -> 42769241.33 | H73: =H70+H72 -> 29261.56381 | I73: =I70+I72 -> 711946.1648 | J73: 3969.718738 | K73: 0 | L73: 0 | M73: =M70+M72 -> 0 | N73: =SUM(D73:M74) -> 98911270
B74: kW
B75: 2012 Weather Normal Billed kW | D75: =D70*D78 -> 0 | E75: =E70*E78 -> 0 | F75: =F70*F78 -> 50978.91749 | G75: =G70*G78 -> 97926.02123 | H75: 80.45116992 | I75: 1924.807432 | J75: =J70*J78 -> 0 | K75: 0 | L75: 0 | M75: 0 | N75: =SUM(D75:M75) -> 150910.1973
B76: CDM kW Reduction | D76: =D63 -> 0 | E76: =E63 -> 0 | F76: -461.7023168 | G76: -886.889583 | H76: -0.7286245642 | I76: -17.43246218 | J76: 0 | K76: =K72*K78 -> 0 | L76: 0 | M76: 0 | N76: =SUM(D76:M76) -> -1366.752987
B77: Adjusted Billed kW with CDM Applied | D77: =D75+D76 -> 0 | E77: =E75+E76 -> 0 | F77: =F75+F76 -> 50517.21517 | G77: =G75+G76 -> 97039.13164 | H77: =H75+H76 -> 79.72254536 | I77: =I75+I76 -> 1907.37497 | J77: 0 | K77: 0 | L77: 0 | M77: 0 | N77: =SUM(D77:M77) -> 149543.4443
B78: kWh to KW Ratio | D78: 0 | E78: 0 | F78: 0.00254925 | G78: 0.0022689 | H78: 0.00272448 | I78: 0.0026791
B81: 2014 | D81: =D68 -> Residential | E81: =E68 -> General Service < 50 kW | F81: General Service 50 to 999 kW | G81: General Service 1,000 to 4,999 kW | H81: Sentinel Lighting | I81: Street Lighting | J81: Unmetered Scattered Load | K81: other | L81: other | M81: other | N81: Total
B82: kWh
B83: 2012 Weather Normal Billed kWh | D83: 25103878 | E83: 10801659 | F83: 19997614 | G83: 43160131 | H83: 29529 | I83: 718453 | J83: 4006 | N83: =SUM(D83:M83) -> 99815270
B84: % of Billed | D84: =D83/$N$83 -> 0.2515033822 | E84: 0.1082164983 | F84: 0.2003462396 | G84: 0.4324000827 | H84: 0.0002958364988 | I84: 0.007197826545 | J84: 4.01341398e-05 | K84: 0 | L84: 0 | M84: 0 | N84: =SUM(D84:M84) -> 1
B85: CDM Spread kWh | D85: =D59 -> -227359.0575 | E85: =E59 -> -97827.7145 | F85: -181113.0006 | G85: -390889.6747 | H85: -267.4361949 | I85: -6506.835197 | J85: -36.28126238 | K85: =$D$15*K84 -> 0 | L85: 0 | M85: 0 | N85: =SUM(D85:M85) -> -904000
B86: Adjusted Billed kWh with CDM Applied | D86: =D83+D85 -> 24876518.94 | E86: =E83+E85 -> 10703831.29 | F86: =F83+F85 -> 19816501 | G86: =G83+G85 -> 42769241.33 | H86: =H83+H85 -> 29261.56381 | I86: =I83+I85 -> 711946.1648 | J86: 3969.718738 | K86: 0 | L86: 0 | M86: =M83+M85 -> 0 | N86: =SUM(D86:M87) -> 98911270
B87: kW
B88: 2012 Weather Normal Billed kW | D88: =D83*D91 -> 0 | E88: 0 | F88: =F83*F91 -> 50978.91749 | G88: =G83*G91 -> 97926.02123 | H88: 80.45116992 | I88: 1924.807432 | J88: =J83*J91 -> 0 | K88: 0 | L88: 0 | M88: 0 | N88: =SUM(D88:M88) -> 150910.1973
B89: CDM kW Reduction | D89: =D63 -> 0 | E89: =E63 -> 0 | F89: -461.7023168 | G89: -886.889583 | H89: -0.7286245642 | I89: -17.43246218 | J89: =J85*J91 -> 0 | K89: 0 | L89: 0 | M89: 0 | N89: =SUM(D89:M89) -> -1366.752987
B90: Adjusted Billed kW with CDM Applied | D90: =D88+D89 -> 0 | E90: 0 | F90: =F88+F89 -> 50517.21517 | G90: =G88+G89 -> 97039.13164 | H90: =H88+H89 -> 79.72254536 | I90: =I88+I89 -> 1907.37497 | J90: 0 | K90: 0 | L90: 0 | M90: 0 | N90: =SUM(D90:M90) -> 149543.4443
B91: kWh to KW Ratio | D91: 0 | E91: 0 | F91: 0.00254925 | G91: 0.0022689 | H91: 0.00272448 | I91: 0.0026791

Sheet 5.0 Carrying Charges
A1: LRAMVA Model version 1.0 © CHEC
E9: Table 4 - Carrying Charges Prescribed Rates
E11: Period | F11: Board specified | G11: Estimated | H11: Used in calculations
E12: 2011 Q1 | F12: 0.0147 | H12: =IF(F12<>0,F12,G12) -> 0.0147
E13: 2011 Q2 | F13: 0.0147 | H13: =IF(F13<>0,F13,G13) -> 0.0147
E14: 2011 Q3 | F14: 0.0147 | H14: 0.0147
E15: 2011 Q4 | F15: 0.0147 | H15: 0.0147
E16: 2012 Q1 | F16: 0.0147 | H16: 0.0147
E17: 2012 Q2 | F17: 0.0147 | H17: 0.0147
E18: 2012 Q3 | F18: 0.0147 | H18: 0.0147
E19: 2012 Q4 | F19: 0.0147 | H19: 0.0147
E20: 2013 Q1 | F20: 0.0147 | H20: 0.0147
E21: 2013 Q2 | F21: 0.0147 | H21: 0.0147
E22: 2013 Q3 | F22: 0.0147 | H22: 0.0147
E23: 2013 Q4 | F23: 0.0147 | H23: 0.0147
E24: 2014 Q1 | F24: 0.0147 | H24: 0.0147
E25: 2014 Q2 | F25: 0.0147 | H25: 0.0147
E26: 2014 Q3 | F26: 0.0147 | H26: 0.0147
E27: 2014 Q4 | F27: 0.0147 | H27: 0.0147
E28: 2015 Q1 | F28: 0.0147 | H28: 0.0147
E29: 2015 Q2 | F29: 0.011 | H29: 0.011 | I29: http://www.ontarioenergyboard.ca/OEB/Industry/Rules+and+Requirements/Rules+Codes+Guidelines+and+Forms/Prescribed+Interest+Rates
E30: 2015 Q3 | F30: 0.011 | H30: =IF(F30<>0,F30,G30) -> 0.011
E31: 2015 Q4 | G31: 0.011 | H31: 0.011
E32: 2016 Q1 | G32: 0.011 | H32: 0.011
E33: 2016 Q2 | G33: 0.011 | H33: 0.011
E35: Table 5 - Carrying Charges by Rate Class
A37: Month | B37: Quarter | C37: Monthly Rate | D37: ='3.0 LRAMVA Register'!B10 -> Residential | E37: ='3.0 LRAMVA Register'!C10 -> General Service < 50 kW | F37: ='3.0 LRAMVA Register'!D10 -> General Service 50 to 999 kW | G37: ='3.0 LRAMVA Register'!E10 -> General Service 1,000 to 4,999 kW | H37: ='3.0 LRAMVA Register'!F10 -> Sentinel Lighting | I37: ='3.0 LRAMVA Register'!G10 -> Street Lighting | J37: ='3.0 LRAMVA Register'!H10 -> Unmetered Scattered Load | K37: ='3.0 LRAMVA Register'!I10 -> other | L37: ='3.0 LRAMVA Register'!J10 -> other | M37: ='3.0 LRAMVA Register'!K10 -> other | N37: ='3.0 LRAMVA Register'!L10 -> Total
A38: 2011-01-01 | B38: Q1 | C38: =H$12/12 -> 0.001225
A39: 2011-02-01 | B39: Q1 | C39: =H$12/12 -> 0.001225 | D39: =SUM('3.0 LRAMVA Register'!B$11:B$12)*(MONTH($A39)-1)/12*$C39 -> 0.1079344846 | E39: =SUM('3.0 LRAMVA Register'!C$11:C$12)*(MONTH($A39)-1)/12*$C39 -> 0.094539375 | F39: =SUM('3.0 LRAMVA Register'!D$11:D$12)*(MONTH($A39)-1)/12*$C39 -> 0 | G39: =SUM('3.0 LRAMVA Register'!E$11:E$12)*(MONTH($A39)-1)/12*$C39 -> 0 | H39: =SUM('3.0 LRAMVA Register'!F$11:F$12)*(MONTH($A39)-1)/12*$C39 -> 0 | I39: =SUM('3.0 LRAMVA Register'!G$11:G$12)*(MONTH($A39)-1)/12*$C39 -> 0 | J39: =SUM('3.0 LRAMVA Register'!H$11:H$12)*(MONTH($A39)-1)/12*$C39 -> 0 | K39: =SUM('3.0 LRAMVA Register'!I$11:I$12)*(MONTH($A39)-1)/12*$C39 -> 0 | L39: =SUM('3.0 LRAMVA Register'!J$11:J$12)*(MONTH($A39)-1)/12*$C39 -> 0 | M39: =SUM('3.0 LRAMVA Register'!K$11:K$12)*(MONTH($A39)-1)/12*$C39 -> 0 | N39: =SUM(D39:M39) -> 0.2024738596
A40: 2011-03-01 | B40: Q1 | C40: =H$12/12 -> 0.001225 | D40: =SUM('3.0 LRAMVA Register'!B$11:B$12)*(MONTH($A40)-1)/12*$C40 -> 0.2158689692 | E40: =SUM('3.0 LRAMVA Register'!C$11:C$12)*(MONTH($A40)-1)/12*$C40 -> 0.18907875 | F40: =SUM('3.0 LRAMVA Register'!D$11:D$12)*(MONTH($A40)-1)/12*$C40 -> 0 | G40: =SUM('3.0 LRAMVA Register'!E$11:E$12)*(MONTH($A40)-1)/12*$C40 -> 0 | H40: =SUM('3.0 LRAMVA Register'!F$11:F$12)*(MONTH($A40)-1)/12*$C40 -> 0 | I40: =SUM('3.0 LRAMVA Register'!G$11:G$12)*(MONTH($A40)-1)/12*$C40 -> 0 | J40: =SUM('3.0 LRAMVA Register'!H$11:H$12)*(MONTH($A40)-1)/12*$C40 -> 0 | K40: =SUM('3.0 LRAMVA Register'!I$11:I$12)*(MONTH($A40)-1)/12*$C40 -> 0 | L40: =SUM('3.0 LRAMVA Register'!J$11:J$12)*(MONTH($A40)-1)/12*$C40 -> 0 | M40: =SUM('3.0 LRAMVA Register'!K$11:K$12)*(MONTH($A40)-1)/12*$C40 -> 0 | N40: =SUM(D40:M40) -> 0.4049477192
A41: 2011-04-01 | B41: Q2 | C41: =H$13/12 -> 0.001225 | D41: =SUM('3.0 LRAMVA Register'!B$11:B$12)*(MONTH($A41)-1)/12*$C41 -> 0.3238034538 | E41: =SUM('3.0 LRAMVA Register'!C$11:C$12)*(MONTH($A41)-1)/12*$C41 -> 0.283618125 | F41: =SUM('3.0 LRAMVA Register'!D$11:D$12)*(MONTH($A41)-1)/12*$C41 -> 0 | G41: =SUM('3.0 LRAMVA Register'!E$11:E$12)*(MONTH($A41)-1)/12*$C41 -> 0 | H41: =SUM('3.0 LRAMVA Register'!F$11:F$12)*(MONTH($A41)-1)/12*$C41 -> 0 | I41: =SUM('3.0 LRAMVA Register'!G$11:G$12)*(MONTH($A41)-1)/12*$C41 -> 0 | J41: =SUM('3.0 LRAMVA Register'!H$11:H$12)*(MONTH($A41)-1)/12*$C41 -> 0 | K41: =SUM('3.0 LRAMVA Register'!I$11:I$12)*(MONTH($A41)-1)/12*$C41 -> 0 | L41: =SUM('3.0 LRAMVA Register'!J$11:J$12)*(MONTH($A41)-1)/12*$C41 -> 0 | M41: =SUM('3.0 LRAMVA Register'!K$11:K$12)*(MONTH($A41)-1)/12*$C41 -> 0 | N41: 0.6074215788
A42: Total for rate year 2011 | D42: =SUM(D38:D41) -> 0.6476069075 | E42: =SUM(E38:E41) -> 0.56723625 | F42: 0 | G42: 0 | H42: 0 | I42: 0 | J42: 0 | K42: 0 | L42: 0 | M42: 0 | N42: 1.214843158
A43: Amount Cleared | D43: 0 | E43: 0 | F43: 0 | G43: 0 | H43: 0 | I43: 0 | J43: 0 | N43: =SUM(D43:M43) -> 0
A44: Opening Balance for rate year 2011 | D44: =D42+D43 -> 0.6476069075 | E44: =E42+E43 -> 0.56723625 | F44: =F42+F43 -> 0 | G44: =G42+G43 -> 0 | H44: 0 | I44: 0 | J44: 0 | K44: 0 | L44: 0 | M44: 0 | N44: =N42+N43 -> 1.214843158
A45: 2011-05-01 | B45: Q2 | C45: =H$13/12 -> 0.001225 | D45: =SUM('3.0 LRAMVA Register'!B$11:B$12)*(MONTH($A45)-1)/12*$C45 -> 0.4317379383 | E45: =SUM('3.0 LRAMVA Register'!C$11:C$12)*(MONTH($A45)-1)/12*$C45 -> 0.3781575 | F45: =SUM('3.0 LRAMVA Register'!D$11:D$12)*(MONTH($A45)-1)/12*$C45 -> 0 | G45: =SUM('3.0 LRAMVA Register'!E$11:E$12)*(MONTH($A45)-1)/12*$C45 -> 0 | H45: =SUM('3.0 LRAMVA Register'!F$11:F$12)*(MONTH($A45)-1)/12*$C45 -> 0 | I45: =SUM('3.0 LRAMVA Register'!G$11:G$12)*(MONTH($A45)-1)/12*$C45 -> 0 | J45: =SUM('3.0 LRAMVA Register'!H$11:H$12)*(MONTH($A45)-1)/12*$C45 -> 0 | K45: =SUM('3.0 LRAMVA Register'!I$11:I$12)*(MONTH($A45)-1)/12*$C45 -> 0 | L45: =SUM('3.0 LRAMVA Register'!J$11:J$12)*(MONTH($A45)-1)/12*$C45 -> 0 | M45: =SUM('3.0 LRAMVA Register'!K$11:K$12)*(MONTH($A45)-1)/12*$C45 -> 0 | N45: =SUM(D45:M45) -> 0.8098954383
A46: 2011-06-01 | B46: Q2 | C46: =H$13/12 -> 0.001225 | D46: =SUM('3.0 LRAMVA Register'!B$11:B$12)*(MONTH($A46)-1)/12*$C46 -> 0.5396724229 | E46: =SUM('3.0 LRAMVA Register'!C$11:C$12)*(MONTH($A46)-1)/12*$C46 -> 0.472696875 | F46: =SUM('3.0 LRAMVA Register'!D$11:D$12)*(MONTH($A46)-1)/12*$C46 -> 0 | G46: =SUM('3.0 LRAMVA Register'!E$11:E$12)*(MONTH($A46)-1)/12*$C46 -> 0 | H46: =SUM('3.0 LRAMVA Register'!F$11:F$12)*(MONTH($A46)-1)/12*$C46 -> 0 | I46: =SUM('3.0 LRAMVA Register'!G$11:G$12)*(MONTH($A46)-1)/12*$C46 -> 0 | J46: =SUM('3.0 LRAMVA Register'!H$11:H$12)*(MONTH($A46)-1)/12*$C46 -> 0 | K46: =SUM('3.0 LRAMVA Register'!I$11:I$12)*(MONTH($A46)-1)/12*$C46 -> 0 | L46: =SUM('3.0 LRAMVA Register'!J$11:J$12)*(MONTH($A46)-1)/12*$C46 -> 0 | M46: =SUM('3.0 LRAMVA Register'!K$11:K$12)*(MONTH($A46)-1)/12*$C46 -> 0 | N46: =SUM(D46:M46) -> 1.012369298
A47: 2011-07-01 | B47: Q3 | C47: =H$14/12 -> 0.001225 | D47: =SUM('3.0 LRAMVA Register'!B$11:B$12)*(MONTH($A47)-1)/12*$C47 -> 0.6476069075 | E47: =SUM('3.0 LRAMVA Register'!C$11:C$12)*(MONTH($A47)-1)/12*$C47 -> 0.56723625 | F47: =SUM('3.0 LRAMVA Register'!D$11:D$12)*(MONTH($A47)-1)/12*$C47 -> 0 | G47: =SUM('3.0 LRAMVA Register'!E$11:E$12)*(MONTH($A47)-1)/12*$C47 -> 0 | H47: =SUM('3.0 LRAMVA Register'!F$11:F$12)*(MONTH($A47)-1)/12*$C47 -> 0 | I47: =SUM('3.0 LRAMVA Register'!G$11:G$12)*(MONTH($A47)-1)/12*$C47 -> 0 | J47: =SUM('3.0 LRAMVA Register'!H$11:H$12)*(MONTH($A47)-1)/12*$C47 -> 0 | K47: =SUM('3.0 LRAMVA Register'!I$11:I$12)*(MONTH($A47)-1)/12*$C47 -> 0 | L47: =SUM('3.0 LRAMVA Register'!J$11:J$12)*(MONTH($A47)-1)/12*$C47 -> 0 | M47: =SUM('3.0 LRAMVA Register'!K$11:K$12)*(MONTH($A47)-1)/12*$C47 -> 0 | N47: 1.214843158
A48: 2011-08-01 | B48: Q3 | C48: =H$14/12 -> 0.001225 | D48: =SUM('3.0 LRAMVA Register'!B$11:B$12)*(MONTH($A48)-1)/12*$C48 -> 0.7555413921 | E48: =SUM('3.0 LRAMVA Register'!C$11:C$12)*(MONTH($A48)-1)/12*$C48 -> 0.661775625 | F48: =SUM('3.0 LRAMVA Register'!D$11:D$12)*(MONTH($A48)-1)/12*$C48 -> 0 | G48: =SUM('3.0 LRAMVA Register'!E$11:E$12)*(MONTH($A48)-1)/12*$C48 -> 0 | H48: =SUM('3.0 LRAMVA Register'!F$11:F$12)*(MONTH($A48)-1)/12*$C48 -> 0 | I48: =SUM('3.0 LRAMVA Register'!G$11:G$12)*(MONTH($A48)-1)/12*$C48 -> 0 | J48: =SUM('3.0 LRAMVA Register'!H$11:H$12)*(MONTH($A48)-1)/12*$C48 -> 0 | K48: =SUM('3.0 LRAMVA Register'!I$11:I$12)*(MONTH($A48)-1)/12*$C48 -> 0 | L48: =SUM('3.0 LRAMVA Register'!J$11:J$12)*(MONTH($A48)-1)/12*$C48 -> 0 | M48: =SUM('3.0 LRAMVA Register'!K$11:K$12)*(MONTH($A48)-1)/12*$C48 -> 0 | N48: 1.417317017
A49: 2011-09-01 | B49: Q3 | C49: =H$14/12 -> 0.001225 | D49: =SUM('3.0 LRAMVA Register'!B$11:B$12)*(MONTH($A49)-1)/12*$C49 -> 0.8634758767 | E49: =SUM('3.0 LRAMVA Register'!C$11:C$12)*(MONTH($A49)-1)/12*$C49 -> 0.756315 | F49: =SUM('3.0 LRAMVA Register'!D$11:D$12)*(MONTH($A49)-1)/12*$C49 -> 0 | G49: =SUM('3.0 LRAMVA Register'!E$11:E$12)*(MONTH($A49)-1)/12*$C49 -> 0 | H49: =SUM('3.0 LRAMVA Register'!F$11:F$12)*(MONTH($A49)-1)/12*$C49 -> 0 | I49: =SUM('3.0 LRAMVA Register'!G$11:G$12)*(MONTH($A49)-1)/12*$C49 -> 0 | J49: =SUM('3.0 LRAMVA Register'!H$11:H$12)*(MONTH($A49)-1)/12*$C49 -> 0 | K49: =SUM('3.0 LRAMVA Register'!I$11:I$12)*(MONTH($A49)-1)/12*$C49 -> 0 | L49: =SUM('3.0 LRAMVA Register'!J$11:J$12)*(MONTH($A49)-1)/12*$C49 -> 0 | M49: =SUM('3.0 LRAMVA Register'!K$11:K$12)*(MONTH($A49)-1)/12*$C49 -> 0 | N49: 1.619790877
A50: 2011-10-01 | B50: Q4 | C50: =H$15/12 -> 0.001225 | D50: =SUM('3.0 LRAMVA Register'!B$11:B$12)*(MONTH($A50)-1)/12*$C50 -> 0.9714103613 | E50: =SUM('3.0 LRAMVA Register'!C$11:C$12)*(MONTH($A50)-1)/12*$C50 -> 0.850854375 | F50: =SUM('3.0 LRAMVA Register'!D$11:D$12)*(MONTH($A50)-1)/12*$C50 -> 0 | G50: =SUM('3.0 LRAMVA Register'!E$11:E$12)*(MONTH($A50)-1)/12*$C50 -> 0 | H50: =SUM('3.0 LRAMVA Register'!F$11:F$12)*(MONTH($A50)-1)/12*$C50 -> 0 | I50: =SUM('3.0 LRAMVA Register'!G$11:G$12)*(MONTH($A50)-1)/12*$C50 -> 0 | J50: =SUM('3.0 LRAMVA Register'!H$11:H$12)*(MONTH($A50)-1)/12*$C50 -> 0 | K50: =SUM('3.0 LRAMVA Register'!I$11:I$12)*(MONTH($A50)-1)/12*$C50 -> 0 | L50: =SUM('3.0 LRAMVA Register'!J$11:J$12)*(MONTH($A50)-1)/12*$C50 -> 0 | M50: =SUM('3.0 LRAMVA Register'!K$11:K$12)*(MONTH($A50)-1)/12*$C50 -> 0 | N50: 1.822264736
A51: 2011-11-01 | B51: Q4 | C51: =H$15/12 -> 0.001225 | D51: =SUM('3.0 LRAMVA Register'!B$11:B$12)*(MONTH($A51)-1)/12*$C51 -> 1.079344846 | E51: =SUM('3.0 LRAMVA Register'!C$11:C$12)*(MONTH($A51)-1)/12*$C51 -> 0.94539375 | F51: =SUM('3.0 LRAMVA Register'!D$11:D$12)*(MONTH($A51)-1)/12*$C51 -> 0 | G51: =SUM('3.0 LRAMVA Register'!E$11:E$12)*(MONTH($A51)-1)/12*$C51 -> 0 | H51: =SUM('3.0 LRAMVA Register'!F$11:F$12)*(MONTH($A51)-1)/12*$C51 -> 0 | I51: =SUM('3.0 LRAMVA Register'!G$11:G$12)*(MONTH($A51)-1)/12*$C51 -> 0 | J51: =SUM('3.0 LRAMVA Register'!H$11:H$12)*(MONTH($A51)-1)/12*$C51 -> 0 | K51: =SUM('3.0 LRAMVA Register'!I$11:I$12)*(MONTH($A51)-1)/12*$C51 -> 0 | L51: =SUM('3.0 LRAMVA Register'!J$11:J$12)*(MONTH($A51)-1)/12*$C51 -> 0 | M51: =SUM('3.0 LRAMVA Register'!K$11:K$12)*(MONTH($A51)-1)/12*$C51 -> 0 | N51: 2.024738596
A52: 2011-12-01 | B52: Q4 | C52: =H$15/12 -> 0.001225 | D52: =SUM('3.0 LRAMVA Register'!B$11:B$12)*(MONTH($A52)-1)/12*$C52 -> 1.18727933 | E52: =SUM('3.0 LRAMVA Register'!C$11:C$12)*(MONTH($A52)-1)/12*$C52 -> 1.039933125 | F52: =SUM('3.0 LRAMVA Register'!D$11:D$12)*(MONTH($A52)-1)/12*$C52 -> 0 | G52: =SUM('3.0 LRAMVA Register'!E$11:E$12)*(MONTH($A52)-1)/12*$C52 -> 0 | H52: =SUM('3.0 LRAMVA Register'!F$11:F$12)*(MONTH($A52)-1)/12*$C52 -> 0 | I52: =SUM('3.0 LRAMVA Register'!G$11:G$12)*(MONTH($A52)-1)/12*$C52 -> 0 | J52: =SUM('3.0 LRAMVA Register'!H$11:H$12)*(MONTH($A52)-1)/12*$C52 -> 0 | K52: =SUM('3.0 LRAMVA Register'!I$11:I$12)*(MONTH($A52)-1)/12*$C52 -> 0 | L52: =SUM('3.0 LRAMVA Register'!J$11:J$12)*(MONTH($A52)-1)/12*$C52 -> 0 | M52: =SUM('3.0 LRAMVA Register'!K$11:K$12)*(MONTH($A52)-1)/12*$C52 -> 0 | N52: 2.227212455
A53: 2012-01-01 | B53: Q1 | C53: =H$16/12 -> 0.001225 | D53: =(SUM('3.0 LRAMVA Register'!B$11:B$13)+SUM('3.0 LRAMVA Register'!B$15:B$16)*(MONTH($A53)-1)/12)*$C53 -> 1.295213815 | E53: =(SUM('3.0 LRAMVA Register'!C$11:C$13)+SUM('3.0 LRAMVA Register'!C$15:C$16)*(MONTH($A53)-1)/12)*$C53 -> 1.1344725 | F53: =(SUM('3.0 LRAMVA Register'!D$11:D$13)+SUM('3.0 LRAMVA Register'!D$15:D$16)*(MONTH($A53)-1)/12)*$C53 -> 0 | G53: =(SUM('3.0 LRAMVA Register'!E$11:E$13)+SUM('3.0 LRAMVA Register'!E$15:E$16)*(MONTH($A53)-1)/12)*$C53 -> 0 | H53: =(SUM('3.0 LRAMVA Register'!F$11:F$13)+SUM('3.0 LRAMVA Register'!F$15:F$16)*(MONTH($A53)-1)/12)*$C53 -> 0 | I53: =(SUM('3.0 LRAMVA Register'!G$11:G$13)+SUM('3.0 LRAMVA Register'!G$15:G$16)*(MONTH($A53)-1)/12)*$C53 -> 0 | J53: =(SUM('3.0 LRAMVA Register'!H$11:H$13)+SUM('3.0 LRAMVA Register'!H$15:H$16)*(MONTH($A53)-1)/12)*$C53 -> 0 | K53: =(SUM('3.0 LRAMVA Register'!I$11:I$13)+SUM('3.0 LRAMVA Register'!I$15:I$16)*(MONTH($A53)-1)/12)*$C53 -> 0 | L53: =(SUM('3.0 LRAMVA Register'!J$11:J$13)+SUM('3.0 LRAMVA Register'!J$15:J$16)*(MONTH($A53)-1)/12)*$C53 -> 0 | M53: =(SUM('3.0 LRAMVA Register'!K$11:K$13)+SUM('3.0 LRAMVA Register'!K$15:K$16)*(MONTH($A53)-1)/12)*$C53 -> 0 | N53: 2.429686315
A54: 2012-02-01 | B54: Q1 | C54: =H$16/12 -> 0.001225 | D54: =(SUM('3.0 LRAMVA Register'!B$11:B$13)+SUM('3.0 LRAMVA Register'!B$15:B$16)*(MONTH($A54)-1)/12)*$C54 -> 1.196754544 | E54: =(SUM('3.0 LRAMVA Register'!C$11:C$13)+SUM('3.0 LRAMVA Register'!C$15:C$16)*(MONTH($A54)-1)/12)*$C54 -> 1.250944808 | F54: =(SUM('3.0 LRAMVA Register'!D$11:D$13)+SUM('3.0 LRAMVA Register'!D$15:D$16)*(MONTH($A54)-1)/12)*$C54 -> -0.04979583645 | G54: =(SUM('3.0 LRAMVA Register'!E$11:E$13)+SUM('3.0 LRAMVA Register'!E$15:E$16)*(MONTH($A54)-1)/12)*$C54 -> -0.01658828119 | H54: =(SUM('3.0 LRAMVA Register'!F$11:F$13)+SUM('3.0 LRAMVA Register'!F$15:F$16)*(MONTH($A54)-1)/12)*$C54 -> -0.003671289436 | I54: =(SUM('3.0 LRAMVA Register'!G$11:G$13)+SUM('3.0 LRAMVA Register'!G$15:G$16)*(MONTH($A54)-1)/12)*$C54 -> -0.01107440378 | J54: =(SUM('3.0 LRAMVA Register'!H$11:H$13)+SUM('3.0 LRAMVA Register'!H$15:H$16)*(MONTH($A54)-1)/12)*$C54 -> -3.620378676e-05 | K54: =(SUM('3.0 LRAMVA Register'!I$11:I$13)+SUM('3.0 LRAMVA Register'!I$15:I$16)*(MONTH($A54)-1)/12)*$C54 -> 0 | L54: =(SUM('3.0 LRAMVA Register'!J$11:J$13)+SUM('3.0 LRAMVA Register'!J$15:J$16)*(MONTH($A54)-1)/12)*$C54 -> 0 | M54: =(SUM('3.0 LRAMVA Register'!K$11:K$13)+SUM('3.0 LRAMVA Register'!K$15:K$16)*(MONTH($A54)-1)/12)*$C54 -> 0 | N54: 2.366533337
A55: 2012-03-01 | B55: Q1 | C55: =H$16/12 -> 0.001225 | D55: =(SUM('3.0 LRAMVA Register'!B$11:B$13)+SUM('3.0 LRAMVA Register'!B$15:B$16)*(MONTH($A55)-1)/12)*$C55 -> 1.098295272 | E55: =(SUM('3.0 LRAMVA Register'!C$11:C$13)+SUM('3.0 LRAMVA Register'!C$15:C$16)*(MONTH($A55)-1)/12)*$C55 -> 1.367417115 | F55: =(SUM('3.0 LRAMVA Register'!D$11:D$13)+SUM('3.0 LRAMVA Register'!D$15:D$16)*(MONTH($A55)-1)/12)*$C55 -> -0.09959167291 | G55: =(SUM('3.0 LRAMVA Register'!E$11:E$13)+SUM('3.0 LRAMVA Register'!E$15:E$16)*(MONTH($A55)-1)/12)*$C55 -> -0.03317656239 | H55: =(SUM('3.0 LRAMVA Register'!F$11:F$13)+SUM('3.0 LRAMVA Register'!F$15:F$16)*(MONTH($A55)-1)/12)*$C55 -> -0.007342578871 | I55: =(SUM('3.0 LRAMVA Register'!G$11:G$13)+SUM('3.0 LRAMVA Register'!G$15:G$16)*(MONTH($A55)-1)/12)*$C55 -> -0.02214880755 | J55: =(SUM('3.0 LRAMVA Register'!H$11:H$13)+SUM('3.0 LRAMVA Register'!H$15:H$16)*(MONTH($A55)-1)/12)*$C55 -> -7.240757353e-05 | K55: =(SUM('3.0 LRAMVA Register'!I$11:I$13)+SUM('3.0 LRAMVA Register'!I$15:I$16)*(MONTH($A55)-1)/12)*$C55 -> 0 | L55: =(SUM('3.0 LRAMVA Register'!J$11:J$13)+SUM('3.0 LRAMVA Register'!J$15:J$16)*(MONTH($A55)-1)/12)*$C55 -> 0 | M55: =(SUM('3.0 LRAMVA Register'!K$11:K$13)+SUM('3.0 LRAMVA Register'!K$15:K$16)*(MONTH($A55)-1)/12)*$C55 -> 0 | N55: 2.303380358
A56: 2012-04-01 | B56: Q2 | C56: =H$17/12 -> 0.001225 | D56: =(SUM('3.0 LRAMVA Register'!B$11:B$13)+SUM('3.0 LRAMVA Register'!B$15:B$16)*(MONTH($A56)-1)/12)*$C56 -> 0.9998360011 | E56: =(SUM('3.0 LRAMVA Register'!C$11:C$13)+SUM('3.0 LRAMVA Register'!C$15:C$16)*(MONTH($A56)-1)/12)*$C56 -> 1.483889423 | F56: =(SUM('3.0 LRAMVA Register'!D$11:D$13)+SUM('3.0 LRAMVA Register'!D$15:D$16)*(MONTH($A56)-1)/12)*$C56 -> -0.1493875094 | G56: =(SUM('3.0 LRAMVA Register'!E$11:E$13)+SUM('3.0 LRAMVA Register'!E$15:E$16)*(MONTH($A56)-1)/12)*$C56 -> -0.04976484358 | H56: =(SUM('3.0 LRAMVA Register'!F$11:F$13)+SUM('3.0 LRAMVA Register'!F$15:F$16)*(MONTH($A56)-1)/12)*$C56 -> -0.01101386831 | I56: =(SUM('3.0 LRAMVA Register'!G$11:G$13)+SUM('3.0 LRAMVA Register'!G$15:G$16)*(MONTH($A56)-1)/12)*$C56 -> -0.03322321133 | J56: =(SUM('3.0 LRAMVA Register'!H$11:H$13)+SUM('3.0 LRAMVA Register'!H$15:H$16)*(MONTH($A56)-1)/12)*$C56 -> -0.0001086113603 | K56: =(SUM('3.0 LRAMVA Register'!I$11:I$13)+SUM('3.0 LRAMVA Register'!I$15:I$16)*(MONTH($A56)-1)/12)*$C56 -> 0 | L56: =(SUM('3.0 LRAMVA Register'!J$11:J$13)+SUM('3.0 LRAMVA Register'!J$15:J$16)*(MONTH($A56)-1)/12)*$C56 -> 0 | M56: =(SUM('3.0 LRAMVA Register'!K$11:K$13)+SUM('3.0 LRAMVA Register'!K$15:K$16)*(MONTH($A56)-1)/12)*$C56 -> 0 | N56: =SUM(D56:M56) -> 2.24022738
A57: Total for rate year 2011 | D57: =SUM(D44:D56) -> 11.71377561 | E57: =SUM(E44:E56) -> 11.4763226 | F57: -0.2987750187 | G57: -0.09952968717 | H57: -0.02202773661 | I57: -0.06644642266 | J57: -0.0002172227206 | K57: =SUM(K44:K56) -> 0 | L57: 0 | M57: 0 | N57: 22.70310212
A58: Amount Cleared | D58: 0 | E58: 0 | F58: 0 | G58: 0 | H58: 0 | I58: 0 | J58: 0 | N58: =SUM(D58:M58) -> 0
A59: Opening Balance for rate year 2012 | D59: =D57+D58 -> 11.71377561 | E59: 11.4763226 | F59: -0.2987750187 | G59: -0.09952968717 | H59: -0.02202773661 | I59: -0.06644642266 | J59: -0.0002172227206 | K59: 0 | L59: 0 | M59: 0 | N59: =N57+N58 -> 22.70310212
A60: 2012-05-01 | B60: Q2 | C60: =H$17/12 -> 0.001225 | D60: =(SUM('3.0 LRAMVA Register'!B$11:B$13)+SUM('3.0 LRAMVA Register'!B$15:B$16)*(MONTH($A60)-1)/12)*$C60 -> 0.9013767298 | E60: =(SUM('3.0 LRAMVA Register'!C$11:C$13)+SUM('3.0 LRAMVA Register'!C$15:C$16)*(MONTH($A60)-1)/12)*$C60 -> 1.600361731 | F60: =(SUM('3.0 LRAMVA Register'!D$11:D$13)+SUM('3.0 LRAMVA Register'!D$15:D$16)*(MONTH($A60)-1)/12)*$C60 -> -0.1991833458 | G60: =(SUM('3.0 LRAMVA Register'!E$11:E$13)+SUM('3.0 LRAMVA Register'!E$15:E$16)*(MONTH($A60)-1)/12)*$C60 -> -0.06635312478 | H60: =(SUM('3.0 LRAMVA Register'!F$11:F$13)+SUM('3.0 LRAMVA Register'!F$15:F$16)*(MONTH($A60)-1)/12)*$C60 -> -0.01468515774 | I60: =(SUM('3.0 LRAMVA Register'!G$11:G$13)+SUM('3.0 LRAMVA Register'!G$15:G$16)*(MONTH($A60)-1)/12)*$C60 -> -0.04429761511 | J60: =(SUM('3.0 LRAMVA Register'!H$11:H$13)+SUM('3.0 LRAMVA Register'!H$15:H$16)*(MONTH($A60)-1)/12)*$C60 -> -0.0001448151471 | K60: =(SUM('3.0 LRAMVA Register'!I$11:I$13)+SUM('3.0 LRAMVA Register'!I$15:I$16)*(MONTH($A60)-1)/12)*$C60 -> 0 | L60: =(SUM('3.0 LRAMVA Register'!J$11:J$13)+SUM('3.0 LRAMVA Register'!J$15:J$16)*(MONTH($A60)-1)/12)*$C60 -> 0 | M60: =(SUM('3.0 LRAMVA Register'!K$11:K$13)+SUM('3.0 LRAMVA Register'!K$15:K$16)*(MONTH($A60)-1)/12)*$C60 -> 0 | N60: =SUM(D60:M60) -> 2.177074402
A61: 2012-06-01 | B61: Q2 | C61: =H$17/12 -> 0.001225 | D61: =(SUM('3.0 LRAMVA Register'!B$11:B$13)+SUM('3.0 LRAMVA Register'!B$15:B$16)*(MONTH($A61)-1)/12)*$C61 -> 0.8029174586 | E61: =(SUM('3.0 LRAMVA Register'!C$11:C$13)+SUM('3.0 LRAMVA Register'!C$15:C$16)*(MONTH($A61)-1)/12)*$C61 -> 1.716834038 | F61: =(SUM('3.0 LRAMVA Register'!D$11:D$13)+SUM('3.0 LRAMVA Register'!D$15:D$16)*(MONTH($A61)-1)/12)*$C61 -> -0.2489791823 | G61: =(SUM('3.0 LRAMVA Register'!E$11:E$13)+SUM('3.0 LRAMVA Register'!E$15:E$16)*(MONTH($A61)-1)/12)*$C61 -> -0.08294140597 | H61: =(SUM('3.0 LRAMVA Register'!F$11:F$13)+SUM('3.0 LRAMVA Register'!F$15:F$16)*(MONTH($A61)-1)/12)*$C61 -> -0.01835644718 | I61: =(SUM('3.0 LRAMVA Register'!G$11:G$13)+SUM('3.0 LRAMVA Register'!G$15:G$16)*(MONTH($A61)-1)/12)*$C61 -> -0.05537201888 | J61: =(SUM('3.0 LRAMVA Register'!H$11:H$13)+SUM('3.0 LRAMVA Register'!H$15:H$16)*(MONTH($A61)-1)/12)*$C61 -> -0.0001810189338 | K61: =(SUM('3.0 LRAMVA Register'!I$11:I$13)+SUM('3.0 LRAMVA Register'!I$15:I$16)*(MONTH($A61)-1)/12)*$C61 -> 0 | L61: =(SUM('3.0 LRAMVA Register'!J$11:J$13)+SUM('3.0 LRAMVA Register'!J$15:J$16)*(MONTH($A61)-1)/12)*$C61 -> 0 | M61: =(SUM('3.0 LRAMVA Register'!K$11:K$13)+SUM('3.0 LRAMVA Register'!K$15:K$16)*(MONTH($A61)-1)/12)*$C61 -> 0 | N61: 2.113921424
A62: 2012-07-01 | B62: Q3 | C62: =H$18/12 -> 0.001225 | D62: =(SUM('3.0 LRAMVA Register'!B$11:B$13)+SUM('3.0 LRAMVA Register'!B$15:B$16)*(MONTH($A62)-1)/12)*$C62 -> 0.7044581873 | E62: =(SUM('3.0 LRAMVA Register'!C$11:C$13)+SUM('3.0 LRAMVA Register'!C$15:C$16)*(MONTH($A62)-1)/12)*$C62 -> 1.833306346 | F62: =(SUM('3.0 LRAMVA Register'!D$11:D$13)+SUM('3.0 LRAMVA Register'!D$15:D$16)*(MONTH($A62)-1)/12)*$C62 -> -0.2987750187 | G62: =(SUM('3.0 LRAMVA Register'!E$11:E$13)+SUM('3.0 LRAMVA Register'!E$15:E$16)*(MONTH($A62)-1)/12)*$C62 -> -0.09952968717 | H62: =(SUM('3.0 LRAMVA Register'!F$11:F$13)+SUM('3.0 LRAMVA Register'!F$15:F$16)*(MONTH($A62)-1)/12)*$C62 -> -0.02202773661 | I62: =(SUM('3.0 LRAMVA Register'!G$11:G$13)+SUM('3.0 LRAMVA Register'!G$15:G$16)*(MONTH($A62)-1)/12)*$C62 -> -0.06644642266 | J62: =(SUM('3.0 LRAMVA Register'!H$11:H$13)+SUM('3.0 LRAMVA Register'!H$15:H$16)*(MONTH($A62)-1)/12)*$C62 -> -0.0002172227206 | K62: =(SUM('3.0 LRAMVA Register'!I$11:I$13)+SUM('3.0 LRAMVA Register'!I$15:I$16)*(MONTH($A62)-1)/12)*$C62 -> 0 | L62: =(SUM('3.0 LRAMVA Register'!J$11:J$13)+SUM('3.0 LRAMVA Register'!J$15:J$16)*(MONTH($A62)-1)/12)*$C62 -> 0 | M62: =(SUM('3.0 LRAMVA Register'!K$11:K$13)+SUM('3.0 LRAMVA Register'!K$15:K$16)*(MONTH($A62)-1)/12)*$C62 -> 0 | N62: 2.050768445
A63: 2012-08-01 | B63: Q3 | C63: =H$18/12 -> 0.001225 | D63: =(SUM('3.0 LRAMVA Register'!B$11:B$13)+SUM('3.0 LRAMVA Register'!B$15:B$16)*(MONTH($A63)-1)/12)*$C63 -> 0.605998916 | E63: =(SUM('3.0 LRAMVA Register'!C$11:C$13)+SUM('3.0 LRAMVA Register'!C$15:C$16)*(MONTH($A63)-1)/12)*$C63 -> 1.949778654 | F63: =(SUM('3.0 LRAMVA Register'!D$11:D$13)+SUM('3.0 LRAMVA Register'!D$15:D$16)*(MONTH($A63)-1)/12)*$C63 -> -0.3485708552 | G63: =(SUM('3.0 LRAMVA Register'!E$11:E$13)+SUM('3.0 LRAMVA Register'!E$15:E$16)*(MONTH($A63)-1)/12)*$C63 -> -0.1161179684 | H63: =(SUM('3.0 LRAMVA Register'!F$11:F$13)+SUM('3.0 LRAMVA Register'!F$15:F$16)*(MONTH($A63)-1)/12)*$C63 -> -0.02569902605 | I63: =(SUM('3.0 LRAMVA Register'!G$11:G$13)+SUM('3.0 LRAMVA Register'!G$15:G$16)*(MONTH($A63)-1)/12)*$C63 -> -0.07752082644 | J63: =(SUM('3.0 LRAMVA Register'!H$11:H$13)+SUM('3.0 LRAMVA Register'!H$15:H$16)*(MONTH($A63)-1)/12)*$C63 -> -0.0002534265073 | K63: =(SUM('3.0 LRAMVA Register'!I$11:I$13)+SUM('3.0 LRAMVA Register'!I$15:I$16)*(MONTH($A63)-1)/12)*$C63 -> 0 | L63: =(SUM('3.0 LRAMVA Register'!J$11:J$13)+SUM('3.0 LRAMVA Register'!J$15:J$16)*(MONTH($A63)-1)/12)*$C63 -> 0 | M63: =(SUM('3.0 LRAMVA Register'!K$11:K$13)+SUM('3.0 LRAMVA Register'!K$15:K$16)*(MONTH($A63)-1)/12)*$C63 -> 0 | N63: 1.987615467
A64: 2012-09-01 | B64: Q3 | C64: =H$18/12 -> 0.001225 | D64: =(SUM('3.0 LRAMVA Register'!B$11:B$13)+SUM('3.0 LRAMVA Register'!B$15:B$16)*(MONTH($A64)-1)/12)*$C64 -> 0.5075396447 | E64: =(SUM('3.0 LRAMVA Register'!C$11:C$13)+SUM('3.0 LRAMVA Register'!C$15:C$16)*(MONTH($A64)-1)/12)*$C64 -> 2.066250961 | F64: =(SUM('3.0 LRAMVA Register'!D$11:D$13)+SUM('3.0 LRAMVA Register'!D$15:D$16)*(MONTH($A64)-1)/12)*$C64 -> -0.3983666916 | G64: =(SUM('3.0 LRAMVA Register'!E$11:E$13)+SUM('3.0 LRAMVA Register'!E$15:E$16)*(MONTH($A64)-1)/12)*$C64 -> -0.1327062496 | H64: =(SUM('3.0 LRAMVA Register'!F$11:F$13)+SUM('3.0 LRAMVA Register'!F$15:F$16)*(MONTH($A64)-1)/12)*$C64 -> -0.02937031548 | I64: =(SUM('3.0 LRAMVA Register'!G$11:G$13)+SUM('3.0 LRAMVA Register'!G$15:G$16)*(MONTH($A64)-1)/12)*$C64 -> -0.08859523021 | J64: =(SUM('3.0 LRAMVA Register'!H$11:H$13)+SUM('3.0 LRAMVA Register'!H$15:H$16)*(MONTH($A64)-1)/12)*$C64 -> -0.0002896302941 | K64: =(SUM('3.0 LRAMVA Register'!I$11:I$13)+SUM('3.0 LRAMVA Register'!I$15:I$16)*(MONTH($A64)-1)/12)*$C64 -> 0 | L64: =(SUM('3.0 LRAMVA Register'!J$11:J$13)+SUM('3.0 LRAMVA Register'!J$15:J$16)*(MONTH($A64)-1)/12)*$C64 -> 0 | M64: =(SUM('3.0 LRAMVA Register'!K$11:K$13)+SUM('3.0 LRAMVA Register'!K$15:K$16)*(MONTH($A64)-1)/12)*$C64 -> 0 | N64: 1.924462489
A65: 2012-10-01 | B65: Q4 | C65: =H$19/12 -> 0.001225 | D65: =(SUM('3.0 LRAMVA Register'!B$11:B$13)+SUM('3.0 LRAMVA Register'!B$15:B$16)*(MONTH($A65)-1)/12)*$C65 -> 0.4090803734 | E65: =(SUM('3.0 LRAMVA Register'!C$11:C$13)+SUM('3.0 LRAMVA Register'!C$15:C$16)*(MONTH($A65)-1)/12)*$C65 -> 2.182723269 | F65: =(SUM('3.0 LRAMVA Register'!D$11:D$13)+SUM('3.0 LRAMVA Register'!D$15:D$16)*(MONTH($A65)-1)/12)*$C65 -> -0.4481625281 | G65: =(SUM('3.0 LRAMVA Register'!E$11:E$13)+SUM('3.0 LRAMVA Register'!E$15:E$16)*(MONTH($A65)-1)/12)*$C65 -> -0.1492945308 | H65: =(SUM('3.0 LRAMVA Register'!F$11:F$13)+SUM('3.0 LRAMVA Register'!F$15:F$16)*(MONTH($A65)-1)/12)*$C65 -> -0.03304160492 | I65: =(SUM('3.0 LRAMVA Register'!G$11:G$13)+SUM('3.0 LRAMVA Register'!G$15:G$16)*(MONTH($A65)-1)/12)*$C65 -> -0.09966963399 | J65: =(SUM('3.0 LRAMVA Register'!H$11:H$13)+SUM('3.0 LRAMVA Register'!H$15:H$16)*(MONTH($A65)-1)/12)*$C65 -> -0.0003258340809 | K65: =(SUM('3.0 LRAMVA Register'!I$11:I$13)+SUM('3.0 LRAMVA Register'!I$15:I$16)*(MONTH($A65)-1)/12)*$C65 -> 0 | L65: =(SUM('3.0 LRAMVA Register'!J$11:J$13)+SUM('3.0 LRAMVA Register'!J$15:J$16)*(MONTH($A65)-1)/12)*$C65 -> 0 | M65: =(SUM('3.0 LRAMVA Register'!K$11:K$13)+SUM('3.0 LRAMVA Register'!K$15:K$16)*(MONTH($A65)-1)/12)*$C65 -> 0 | N65: 1.861309511
A66: 2012-11-01 | B66: Q4 | C66: =H$19/12 -> 0.001225 | D66: =(SUM('3.0 LRAMVA Register'!B$11:B$13)+SUM('3.0 LRAMVA Register'!B$15:B$16)*(MONTH($A66)-1)/12)*$C66 -> 0.3106211021 | E66: =(SUM('3.0 LRAMVA Register'!C$11:C$13)+SUM('3.0 LRAMVA Register'!C$15:C$16)*(MONTH($A66)-1)/12)*$C66 -> 2.299195577 | F66: =(SUM('3.0 LRAMVA Register'!D$11:D$13)+SUM('3.0 LRAMVA Register'!D$15:D$16)*(MONTH($A66)-1)/12)*$C66 -> -0.4979583645 | G66: =(SUM('3.0 LRAMVA Register'!E$11:E$13)+SUM('3.0 LRAMVA Register'!E$15:E$16)*(MONTH($A66)-1)/12)*$C66 -> -0.1658828119 | H66: =(SUM('3.0 LRAMVA Register'!F$11:F$13)+SUM('3.0 LRAMVA Register'!F$15:F$16)*(MONTH($A66)-1)/12)*$C66 -> -0.03671289436 | I66: =(SUM('3.0 LRAMVA Register'!G$11:G$13)+SUM('3.0 LRAMVA Register'!G$15:G$16)*(MONTH($A66)-1)/12)*$C66 -> -0.1107440378 | J66: =(SUM('3.0 LRAMVA Register'!H$11:H$13)+SUM('3.0 LRAMVA Register'!H$15:H$16)*(MONTH($A66)-1)/12)*$C66 -> -0.0003620378676 | K66: =(SUM('3.0 LRAMVA Register'!I$11:I$13)+SUM('3.0 LRAMVA Register'!I$15:I$16)*(MONTH($A66)-1)/12)*$C66 -> 0 | L66: =(SUM('3.0 LRAMVA Register'!J$11:J$13)+SUM('3.0 LRAMVA Register'!J$15:J$16)*(MONTH($A66)-1)/12)*$C66 -> 0 | M66: =(SUM('3.0 LRAMVA Register'!K$11:K$13)+SUM('3.0 LRAMVA Register'!K$15:K$16)*(MONTH($A66)-1)/12)*$C66 -> 0 | N66: 1.798156532
A67: 2012-12-01 | B67: Q4 | C67: =H$19/12 -> 0.001225 | D67: =(SUM('3.0 LRAMVA Register'!B$11:B$13)+SUM('3.0 LRAMVA Register'!B$15:B$16)*(MONTH($A67)-1)/12)*$C67 -> 0.2121618308 | E67: =(SUM('3.0 LRAMVA Register'!C$11:C$13)+SUM('3.0 LRAMVA Register'!C$15:C$16)*(MONTH($A67)-1)/12)*$C67 -> 2.415667884 | F67: =(SUM('3.0 LRAMVA Register'!D$11:D$13)+SUM('3.0 LRAMVA Register'!D$15:D$16)*(MONTH($A67)-1)/12)*$C67 -> -0.547754201 | G67: =(SUM('3.0 LRAMVA Register'!E$11:E$13)+SUM('3.0 LRAMVA Register'!E$15:E$16)*(MONTH($A67)-1)/12)*$C67 -> -0.1824710931 | H67: =(SUM('3.0 LRAMVA Register'!F$11:F$13)+SUM('3.0 LRAMVA Register'!F$15:F$16)*(MONTH($A67)-1)/12)*$C67 -> -0.04038418379 | I67: =(SUM('3.0 LRAMVA Register'!G$11:G$13)+SUM('3.0 LRAMVA Register'!G$15:G$16)*(MONTH($A67)-1)/12)*$C67 -> -0.1218184415 | J67: =(SUM('3.0 LRAMVA Register'!H$11:H$13)+SUM('3.0 LRAMVA Register'!H$15:H$16)*(MONTH($A67)-1)/12)*$C67 -> -0.0003982416544 | K67: =(SUM('3.0 LRAMVA Register'!I$11:I$13)+SUM('3.0 LRAMVA Register'!I$15:I$16)*(MONTH($A67)-1)/12)*$C67 -> 0 | L67: =(SUM('3.0 LRAMVA Register'!J$11:J$13)+SUM('3.0 LRAMVA Register'!J$15:J$16)*(MONTH($A67)-1)/12)*$C67 -> 0 | M67: =(SUM('3.0 LRAMVA Register'!K$11:K$13)+SUM('3.0 LRAMVA Register'!K$15:K$16)*(MONTH($A67)-1)/12)*$C67 -> 0 | N67: 1.735003554
A68: 2013-01-01 | B68: Q1 | C68: =H$20/12 -> 0.001225 | D68: =(SUM('3.0 LRAMVA Register'!B$11:B$17)+SUM('3.0 LRAMVA Register'!B$19:B$20)*(MONTH($A68)-1)/12)*$C68 -> 0.1137025595 | E68: =(SUM('3.0 LRAMVA Register'!C$11:C$17)+SUM('3.0 LRAMVA Register'!C$19:C$20)*(MONTH($A68)-1)/12)*$C68 -> 2.532140192 | F68: =(SUM('3.0 LRAMVA Register'!D$11:D$17)+SUM('3.0 LRAMVA Register'!D$19:D$20)*(MONTH($A68)-1)/12)*$C68 -> -0.5975500374 | G68: =(SUM('3.0 LRAMVA Register'!E$11:E$17)+SUM('3.0 LRAMVA Register'!E$19:E$20)*(MONTH($A68)-1)/12)*$C68 -> -0.1990593743 | H68: =(SUM('3.0 LRAMVA Register'!F$11:F$17)+SUM('3.0 LRAMVA Register'!F$19:F$20)*(MONTH($A68)-1)/12)*$C68 -> -0.04405547323 | I68: =(SUM('3.0 LRAMVA Register'!G$11:G$17)+SUM('3.0 LRAMVA Register'!G$19:G$20)*(MONTH($A68)-1)/12)*$C68 -> -0.1328928453 | J68: =(SUM('3.0 LRAMVA Register'!H$11:H$17)+SUM('3.0 LRAMVA Register'!H$19:H$20)*(MONTH($A68)-1)/12)*$C68 -> -0.0004344454412 | K68: =(SUM('3.0 LRAMVA Register'!I$11:I$17)+SUM('3.0 LRAMVA Register'!I$19:I$20)*(MONTH($A68)-1)/12)*$C68 -> 0 | L68: =(SUM('3.0 LRAMVA Register'!J$11:J$17)+SUM('3.0 LRAMVA Register'!J$19:J$20)*(MONTH($A68)-1)/12)*$C68 -> 0 | M68: =(SUM('3.0 LRAMVA Register'!K$11:K$17)+SUM('3.0 LRAMVA Register'!K$19:K$20)*(MONTH($A68)-1)/12)*$C68 -> 0 | N68: 1.671850576
A69: 2013-02-01 | B69: Q1 | C69: =H$20/12 -> 0.001225 | D69: =(SUM('3.0 LRAMVA Register'!B$11:B$17)+SUM('3.0 LRAMVA Register'!B$19:B$20)*(MONTH($A69)-1)/12)*$C69 -> 0.1809067311 | E69: =(SUM('3.0 LRAMVA Register'!C$11:C$17)+SUM('3.0 LRAMVA Register'!C$19:C$20)*(MONTH($A69)-1)/12)*$C69 -> 2.730020363 | F69: =(SUM('3.0 LRAMVA Register'!D$11:D$17)+SUM('3.0 LRAMVA Register'!D$19:D$20)*(MONTH($A69)-1)/12)*$C69 -> -0.6011375335 | G69: =(SUM('3.0 LRAMVA Register'!E$11:E$17)+SUM('3.0 LRAMVA Register'!E$19:E$20)*(MONTH($A69)-1)/12)*$C69 -> -0.1616028528 | H69: =(SUM('3.0 LRAMVA Register'!F$11:F$17)+SUM('3.0 LRAMVA Register'!F$19:F$20)*(MONTH($A69)-1)/12)*$C69 -> -0.04546150126 | I69: =(SUM('3.0 LRAMVA Register'!G$11:G$17)+SUM('3.0 LRAMVA Register'!G$19:G$20)*(MONTH($A69)-1)/12)*$C69 -> -0.146656348 | J69: =(SUM('3.0 LRAMVA Register'!H$11:H$17)+SUM('3.0 LRAMVA Register'!H$19:H$20)*(MONTH($A69)-1)/12)*$C69 -> -0.0004870381544 | K69: =(SUM('3.0 LRAMVA Register'!I$11:I$17)+SUM('3.0 LRAMVA Register'!I$19:I$20)*(MONTH($A69)-1)/12)*$C69 -> 0 | L69: =(SUM('3.0 LRAMVA Register'!J$11:J$17)+SUM('3.0 LRAMVA Register'!J$19:J$20)*(MONTH($A69)-1)/12)*$C69 -> 0 | M69: =(SUM('3.0 LRAMVA Register'!K$11:K$17)+SUM('3.0 LRAMVA Register'!K$19:K$20)*(MONTH($A69)-1)/12)*$C69 -> 0 | N69: 1.95558182
A70: 2013-03-01 | B70: Q1 | C70: =H$20/12 -> 0.001225 | D70: =(SUM('3.0 LRAMVA Register'!B$11:B$17)+SUM('3.0 LRAMVA Register'!B$19:B$20)*(MONTH($A70)-1)/12)*$C70 -> 0.2481109026 | E70: =(SUM('3.0 LRAMVA Register'!C$11:C$17)+SUM('3.0 LRAMVA Register'!C$19:C$20)*(MONTH($A70)-1)/12)*$C70 -> 2.927900534 | F70: =(SUM('3.0 LRAMVA Register'!D$11:D$17)+SUM('3.0 LRAMVA Register'!D$19:D$20)*(MONTH($A70)-1)/12)*$C70 -> -0.6047250296 | G70: =(SUM('3.0 LRAMVA Register'!E$11:E$17)+SUM('3.0 LRAMVA Register'!E$19:E$20)*(MONTH($A70)-1)/12)*$C70 -> -0.1241463313 | H70: =(SUM('3.0 LRAMVA Register'!F$11:F$17)+SUM('3.0 LRAMVA Register'!F$19:F$20)*(MONTH($A70)-1)/12)*$C70 -> -0.0468675293 | I70: =(SUM('3.0 LRAMVA Register'!G$11:G$17)+SUM('3.0 LRAMVA Register'!G$19:G$20)*(MONTH($A70)-1)/12)*$C70 -> -0.1604198507 | J70: =(SUM('3.0 LRAMVA Register'!H$11:H$17)+SUM('3.0 LRAMVA Register'!H$19:H$20)*(MONTH($A70)-1)/12)*$C70 -> -0.0005396308677 | K70: =(SUM('3.0 LRAMVA Register'!I$11:I$17)+SUM('3.0 LRAMVA Register'!I$19:I$20)*(MONTH($A70)-1)/12)*$C70 -> 0 | L70: =(SUM('3.0 LRAMVA Register'!J$11:J$17)+SUM('3.0 LRAMVA Register'!J$19:J$20)*(MONTH($A70)-1)/12)*$C70 -> 0 | M70: =(SUM('3.0 LRAMVA Register'!K$11:K$17)+SUM('3.0 LRAMVA Register'!K$19:K$20)*(MONTH($A70)-1)/12)*$C70 -> 0 | N70: 2.239313065
A71: 2013-04-01 | B71: Q2 | C71: =H$21/12 -> 0.001225 | D71: =(SUM('3.0 LRAMVA Register'!B$11:B$17)+SUM('3.0 LRAMVA Register'!B$19:B$20)*(MONTH($A71)-1)/12)*$C71 -> 0.3153150741 | E71: =(SUM('3.0 LRAMVA Register'!C$11:C$17)+SUM('3.0 LRAMVA Register'!C$19:C$20)*(MONTH($A71)-1)/12)*$C71 -> 3.125780705 | F71: =(SUM('3.0 LRAMVA Register'!D$11:D$17)+SUM('3.0 LRAMVA Register'!D$19:D$20)*(MONTH($A71)-1)/12)*$C71 -> -0.6083125257 | G71: =(SUM('3.0 LRAMVA Register'!E$11:E$17)+SUM('3.0 LRAMVA Register'!E$19:E$20)*(MONTH($A71)-1)/12)*$C71 -> -0.08668980973 | H71: =(SUM('3.0 LRAMVA Register'!F$11:F$17)+SUM('3.0 LRAMVA Register'!F$19:F$20)*(MONTH($A71)-1)/12)*$C71 -> -0.04827355733 | I71: =(SUM('3.0 LRAMVA Register'!G$11:G$17)+SUM('3.0 LRAMVA Register'!G$19:G$20)*(MONTH($A71)-1)/12)*$C71 -> -0.1741833534 | J71: =(SUM('3.0 LRAMVA Register'!H$11:H$17)+SUM('3.0 LRAMVA Register'!H$19:H$20)*(MONTH($A71)-1)/12)*$C71 -> -0.0005922235809 | K71: =(SUM('3.0 LRAMVA Register'!I$11:I$17)+SUM('3.0 LRAMVA Register'!I$19:I$20)*(MONTH($A71)-1)/12)*$C71 -> 0 | L71: =(SUM('3.0 LRAMVA Register'!J$11:J$17)+SUM('3.0 LRAMVA Register'!J$19:J$20)*(MONTH($A71)-1)/12)*$C71 -> 0 | M71: =(SUM('3.0 LRAMVA Register'!K$11:K$17)+SUM('3.0 LRAMVA Register'!K$19:K$20)*(MONTH($A71)-1)/12)*$C71 -> 0 | N71: 2.523044309
A72: Total for rate year 2012 | D72: =SUM(D59:D71) -> 17.02596512 | E72: =SUM(E59:E71) -> 38.85628285 | F72: -5.698250332 | G72: -1.666324927 | H72: -0.4269631639 | I72: -1.345063047 | J72: -0.004442787971 | K72: =SUM(K59:K71) -> 0 | L72: 0 | M72: 0 | N72: 46.74120372
A73: Amount Cleared | D73: 0 | E73: 0 | F73: 0 | G73: 0 | H73: 0 | I73: 0 | J73: 0 | N73: =SUM(D73:M73) -> 0
A74: Opening Balance for rate year 2013 | D74: =D72+D73 -> 17.02596512 | E74: 38.85628285 | F74: -5.698250332 | G74: -1.666324927 | H74: -0.4269631639 | I74: -1.345063047 | J74: -0.004442787971 | K74: 0 | L74: 0 | M74: 0 | N74: =N72+N73 -> 46.74120372
A75: 2013-05-01 | B75: Q2 | C75: =H$21/12 -> 0.001225 | D75: =(SUM('3.0 LRAMVA Register'!B$11:B$17)+SUM('3.0 LRAMVA Register'!B$19:B$20)*(MONTH($A75)-1)/12)*$C75 -> 0.3825192457 | E75: =(SUM('3.0 LRAMVA Register'!C$11:C$17)+SUM('3.0 LRAMVA Register'!C$19:C$20)*(MONTH($A75)-1)/12)*$C75 -> 3.323660875 | F75: =(SUM('3.0 LRAMVA Register'!D$11:D$17)+SUM('3.0 LRAMVA Register'!D$19:D$20)*(MONTH($A75)-1)/12)*$C75 -> -0.6119000217 | G75: =(SUM('3.0 LRAMVA Register'!E$11:E$17)+SUM('3.0 LRAMVA Register'!E$19:E$20)*(MONTH($A75)-1)/12)*$C75 -> -0.04923328819 | H75: =(SUM('3.0 LRAMVA Register'!F$11:F$17)+SUM('3.0 LRAMVA Register'!F$19:F$20)*(MONTH($A75)-1)/12)*$C75 -> -0.04967958537 | I75: =(SUM('3.0 LRAMVA Register'!G$11:G$17)+SUM('3.0 LRAMVA Register'!G$19:G$20)*(MONTH($A75)-1)/12)*$C75 -> -0.1879468561 | J75: =(SUM('3.0 LRAMVA Register'!H$11:H$17)+SUM('3.0 LRAMVA Register'!H$19:H$20)*(MONTH($A75)-1)/12)*$C75 -> -0.0006448162942 | K75: =(SUM('3.0 LRAMVA Register'!I$11:I$17)+SUM('3.0 LRAMVA Register'!I$19:I$20)*(MONTH($A75)-1)/12)*$C75 -> 0 | L75: =(SUM('3.0 LRAMVA Register'!J$11:J$17)+SUM('3.0 LRAMVA Register'!J$19:J$20)*(MONTH($A75)-1)/12)*$C75 -> 0 | M75: =(SUM('3.0 LRAMVA Register'!K$11:K$17)+SUM('3.0 LRAMVA Register'!K$19:K$20)*(MONTH($A75)-1)/12)*$C75 -> 0 | N75: =SUM(D75:M75) -> 2.806775553
A76: 2013-06-01 | B76: Q2 | C76: =H$21/12 -> 0.001225 | D76: =(SUM('3.0 LRAMVA Register'!B$11:B$17)+SUM('3.0 LRAMVA Register'!B$19:B$20)*(MONTH($A76)-1)/12)*$C76 -> 0.4497234172 | E76: =(SUM('3.0 LRAMVA Register'!C$11:C$17)+SUM('3.0 LRAMVA Register'!C$19:C$20)*(MONTH($A76)-1)/12)*$C76 -> 3.521541046 | F76: =(SUM('3.0 LRAMVA Register'!D$11:D$17)+SUM('3.0 LRAMVA Register'!D$19:D$20)*(MONTH($A76)-1)/12)*$C76 -> -0.6154875178 | G76: =(SUM('3.0 LRAMVA Register'!E$11:E$17)+SUM('3.0 LRAMVA Register'!E$19:E$20)*(MONTH($A76)-1)/12)*$C76 -> -0.01177676665 | H76: =(SUM('3.0 LRAMVA Register'!F$11:F$17)+SUM('3.0 LRAMVA Register'!F$19:F$20)*(MONTH($A76)-1)/12)*$C76 -> -0.05108561341 | I76: =(SUM('3.0 LRAMVA Register'!G$11:G$17)+SUM('3.0 LRAMVA Register'!G$19:G$20)*(MONTH($A76)-1)/12)*$C76 -> -0.2017103589 | J76: =(SUM('3.0 LRAMVA Register'!H$11:H$17)+SUM('3.0 LRAMVA Register'!H$19:H$20)*(MONTH($A76)-1)/12)*$C76 -> -0.0006974090074 | K76: =(SUM('3.0 LRAMVA Register'!I$11:I$17)+SUM('3.0 LRAMVA Register'!I$19:I$20)*(MONTH($A76)-1)/12)*$C76 -> 0 | L76: =(SUM('3.0 LRAMVA Register'!J$11:J$17)+SUM('3.0 LRAMVA Register'!J$19:J$20)*(MONTH($A76)-1)/12)*$C76 -> 0 | M76: =(SUM('3.0 LRAMVA Register'!K$11:K$17)+SUM('3.0 LRAMVA Register'!K$19:K$20)*(MONTH($A76)-1)/12)*$C76 -> 0 | N76: 3.090506798
A77: 2013-07-01 | B77: Q3 | C77: =H$22/12 -> 0.001225 | D77: =(SUM('3.0 LRAMVA Register'!B$11:B$17)+SUM('3.0 LRAMVA Register'!B$19:B$20)*(MONTH($A77)-1)/12)*$C77 -> 0.5169275887 | E77: =(SUM('3.0 LRAMVA Register'!C$11:C$17)+SUM('3.0 LRAMVA Register'!C$19:C$20)*(MONTH($A77)-1)/12)*$C77 -> 3.719421217 | F77: =(SUM('3.0 LRAMVA Register'!D$11:D$17)+SUM('3.0 LRAMVA Register'!D$19:D$20)*(MONTH($A77)-1)/12)*$C77 -> -0.6190750139 | G77: =(SUM('3.0 LRAMVA Register'!E$11:E$17)+SUM('3.0 LRAMVA Register'!E$19:E$20)*(MONTH($A77)-1)/12)*$C77 -> 0.02567975489 | H77: =(SUM('3.0 LRAMVA Register'!F$11:F$17)+SUM('3.0 LRAMVA Register'!F$19:F$20)*(MONTH($A77)-1)/12)*$C77 -> -0.05249164144 | I77: =(SUM('3.0 LRAMVA Register'!G$11:G$17)+SUM('3.0 LRAMVA Register'!G$19:G$20)*(MONTH($A77)-1)/12)*$C77 -> -0.2154738616 | J77: =(SUM('3.0 LRAMVA Register'!H$11:H$17)+SUM('3.0 LRAMVA Register'!H$19:H$20)*(MONTH($A77)-1)/12)*$C77 -> -0.0007500017207 | K77: =(SUM('3.0 LRAMVA Register'!I$11:I$17)+SUM('3.0 LRAMVA Register'!I$19:I$20)*(MONTH($A77)-1)/12)*$C77 -> 0 | L77: =(SUM('3.0 LRAMVA Register'!J$11:J$17)+SUM('3.0 LRAMVA Register'!J$19:J$20)*(MONTH($A77)-1)/12)*$C77 -> 0 | M77: =(SUM('3.0 LRAMVA Register'!K$11:K$17)+SUM('3.0 LRAMVA Register'!K$19:K$20)*(MONTH($A77)-1)/12)*$C77 -> 0 | N77: 3.374238042
A78: 2013-08-01 | B78: Q3 | C78: =H$22/12 -> 0.001225 | D78: =(SUM('3.0 LRAMVA Register'!B$11:B$17)+SUM('3.0 LRAMVA Register'!B$19:B$20)*(MONTH($A78)-1)/12)*$C78 -> 0.5841317603 | E78: =(SUM('3.0 LRAMVA Register'!C$11:C$17)+SUM('3.0 LRAMVA Register'!C$19:C$20)*(MONTH($A78)-1)/12)*$C78 -> 3.917301388 | F78: =(SUM('3.0 LRAMVA Register'!D$11:D$17)+SUM('3.0 LRAMVA Register'!D$19:D$20)*(MONTH($A78)-1)/12)*$C78 -> -0.62266251 | G78: =(SUM('3.0 LRAMVA Register'!E$11:E$17)+SUM('3.0 LRAMVA Register'!E$19:E$20)*(MONTH($A78)-1)/12)*$C78 -> 0.06313627642 | H78: =(SUM('3.0 LRAMVA Register'!F$11:F$17)+SUM('3.0 LRAMVA Register'!F$19:F$20)*(MONTH($A78)-1)/12)*$C78 -> -0.05389766948 | I78: =(SUM('3.0 LRAMVA Register'!G$11:G$17)+SUM('3.0 LRAMVA Register'!G$19:G$20)*(MONTH($A78)-1)/12)*$C78 -> -0.2292373643 | J78: =(SUM('3.0 LRAMVA Register'!H$11:H$17)+SUM('3.0 LRAMVA Register'!H$19:H$20)*(MONTH($A78)-1)/12)*$C78 -> -0.0008025944339 | K78: =(SUM('3.0 LRAMVA Register'!I$11:I$17)+SUM('3.0 LRAMVA Register'!I$19:I$20)*(MONTH($A78)-1)/12)*$C78 -> 0 | L78: =(SUM('3.0 LRAMVA Register'!J$11:J$17)+SUM('3.0 LRAMVA Register'!J$19:J$20)*(MONTH($A78)-1)/12)*$C78 -> 0 | M78: =(SUM('3.0 LRAMVA Register'!K$11:K$17)+SUM('3.0 LRAMVA Register'!K$19:K$20)*(MONTH($A78)-1)/12)*$C78 -> 0 | N78: 3.657969286
A79: 2013-09-01 | B79: Q3 | C79: =H$22/12 -> 0.001225 | D79: =(SUM('3.0 LRAMVA Register'!B$11:B$17)+SUM('3.0 LRAMVA Register'!B$19:B$20)*(MONTH($A79)-1)/12)*$C79 -> 0.6513359318 | E79: =(SUM('3.0 LRAMVA Register'!C$11:C$17)+SUM('3.0 LRAMVA Register'!C$19:C$20)*(MONTH($A79)-1)/12)*$C79 -> 4.115181559 | F79: =(SUM('3.0 LRAMVA Register'!D$11:D$17)+SUM('3.0 LRAMVA Register'!D$19:D$20)*(MONTH($A79)-1)/12)*$C79 -> -0.626250006 | G79: =(SUM('3.0 LRAMVA Register'!E$11:E$17)+SUM('3.0 LRAMVA Register'!E$19:E$20)*(MONTH($A79)-1)/12)*$C79 -> 0.100592798 | H79: =(SUM('3.0 LRAMVA Register'!F$11:F$17)+SUM('3.0 LRAMVA Register'!F$19:F$20)*(MONTH($A79)-1)/12)*$C79 -> -0.05530369751 | I79: =(SUM('3.0 LRAMVA Register'!G$11:G$17)+SUM('3.0 LRAMVA Register'!G$19:G$20)*(MONTH($A79)-1)/12)*$C79 -> -0.243000867 | J79: =(SUM('3.0 LRAMVA Register'!H$11:H$17)+SUM('3.0 LRAMVA Register'!H$19:H$20)*(MONTH($A79)-1)/12)*$C79 -> -0.0008551871472 | K79: =(SUM('3.0 LRAMVA Register'!I$11:I$17)+SUM('3.0 LRAMVA Register'!I$19:I$20)*(MONTH($A79)-1)/12)*$C79 -> 0 | L79: =(SUM('3.0 LRAMVA Register'!J$11:J$17)+SUM('3.0 LRAMVA Register'!J$19:J$20)*(MONTH($A79)-1)/12)*$C79 -> 0 | M79: =(SUM('3.0 LRAMVA Register'!K$11:K$17)+SUM('3.0 LRAMVA Register'!K$19:K$20)*(MONTH($A79)-1)/12)*$C79 -> 0 | N79: 3.941700531
A80: 2013-10-01 | B80: Q4 | C80: =H$23/12 -> 0.001225 | D80: =(SUM('3.0 LRAMVA Register'!B$11:B$17)+SUM('3.0 LRAMVA Register'!B$19:B$20)*(MONTH($A80)-1)/12)*$C80 -> 0.7185401033 | E80: =(SUM('3.0 LRAMVA Register'!C$11:C$17)+SUM('3.0 LRAMVA Register'!C$19:C$20)*(MONTH($A80)-1)/12)*$C80 -> 4.31306173 | F80: =(SUM('3.0 LRAMVA Register'!D$11:D$17)+SUM('3.0 LRAMVA Register'!D$19:D$20)*(MONTH($A80)-1)/12)*$C80 -> -0.6298375021 | G80: =(SUM('3.0 LRAMVA Register'!E$11:E$17)+SUM('3.0 LRAMVA Register'!E$19:E$20)*(MONTH($A80)-1)/12)*$C80 -> 0.1380493195 | H80: =(SUM('3.0 LRAMVA Register'!F$11:F$17)+SUM('3.0 LRAMVA Register'!F$19:F$20)*(MONTH($A80)-1)/12)*$C80 -> -0.05670972555 | I80: =(SUM('3.0 LRAMVA Register'!G$11:G$17)+SUM('3.0 LRAMVA Register'!G$19:G$20)*(MONTH($A80)-1)/12)*$C80 -> -0.2567643697 | J80: =(SUM('3.0 LRAMVA Register'!H$11:H$17)+SUM('3.0 LRAMVA Register'!H$19:H$20)*(MONTH($A80)-1)/12)*$C80 -> -0.0009077798604 | K80: =(SUM('3.0 LRAMVA Register'!I$11:I$17)+SUM('3.0 LRAMVA Register'!I$19:I$20)*(MONTH($A80)-1)/12)*$C80 -> 0 | L80: =(SUM('3.0 LRAMVA Register'!J$11:J$17)+SUM('3.0 LRAMVA Register'!J$19:J$20)*(MONTH($A80)-1)/12)*$C80 -> 0 | M80: =(SUM('3.0 LRAMVA Register'!K$11:K$17)+SUM('3.0 LRAMVA Register'!K$19:K$20)*(MONTH($A80)-1)/12)*$C80 -> 0 | N80: 4.225431775
A81: 2013-11-01 | B81: Q4 | C81: =H$23/12 -> 0.001225 | D81: =(SUM('3.0 LRAMVA Register'!B$11:B$17)+SUM('3.0 LRAMVA Register'!B$19:B$20)*(MONTH($A81)-1)/12)*$C81 -> 0.7857442748 | E81: =(SUM('3.0 LRAMVA Register'!C$11:C$17)+SUM('3.0 LRAMVA Register'!C$19:C$20)*(MONTH($A81)-1)/12)*$C81 -> 4.5109419 | F81: =(SUM('3.0 LRAMVA Register'!D$11:D$17)+SUM('3.0 LRAMVA Register'!D$19:D$20)*(MONTH($A81)-1)/12)*$C81 -> -0.6334249982 | G81: =(SUM('3.0 LRAMVA Register'!E$11:E$17)+SUM('3.0 LRAMVA Register'!E$19:E$20)*(MONTH($A81)-1)/12)*$C81 -> 0.175505841 | H81: =(SUM('3.0 LRAMVA Register'!F$11:F$17)+SUM('3.0 LRAMVA Register'!F$19:F$20)*(MONTH($A81)-1)/12)*$C81 -> -0.05811575359 | I81: =(SUM('3.0 LRAMVA Register'!G$11:G$17)+SUM('3.0 LRAMVA Register'!G$19:G$20)*(MONTH($A81)-1)/12)*$C81 -> -0.2705278724 | J81: =(SUM('3.0 LRAMVA Register'!H$11:H$17)+SUM('3.0 LRAMVA Register'!H$19:H$20)*(MONTH($A81)-1)/12)*$C81 -> -0.0009603725737 | K81: =(SUM('3.0 LRAMVA Register'!I$11:I$17)+SUM('3.0 LRAMVA Register'!I$19:I$20)*(MONTH($A81)-1)/12)*$C81 -> 0 | L81: =(SUM('3.0 LRAMVA Register'!J$11:J$17)+SUM('3.0 LRAMVA Register'!J$19:J$20)*(MONTH($A81)-1)/12)*$C81 -> 0 | M81: =(SUM('3.0 LRAMVA Register'!K$11:K$17)+SUM('3.0 LRAMVA Register'!K$19:K$20)*(MONTH($A81)-1)/12)*$C81 -> 0 | N81: 4.509163019
A82: 2013-12-01 | B82: Q4 | C82: =H$23/12 -> 0.001225 | D82: =(SUM('3.0 LRAMVA Register'!B$11:B$17)+SUM('3.0 LRAMVA Register'!B$19:B$20)*(MONTH($A82)-1)/12)*$C82 -> 0.8529484464 | E82: =(SUM('3.0 LRAMVA Register'!C$11:C$17)+SUM('3.0 LRAMVA Register'!C$19:C$20)*(MONTH($A82)-1)/12)*$C82 -> 4.708822071 | F82: =(SUM('3.0 LRAMVA Register'!D$11:D$17)+SUM('3.0 LRAMVA Register'!D$19:D$20)*(MONTH($A82)-1)/12)*$C82 -> -0.6370124943 | G82: =(SUM('3.0 LRAMVA Register'!E$11:E$17)+SUM('3.0 LRAMVA Register'!E$19:E$20)*(MONTH($A82)-1)/12)*$C82 -> 0.2129623626 | H82: =(SUM('3.0 LRAMVA Register'!F$11:F$17)+SUM('3.0 LRAMVA Register'!F$19:F$20)*(MONTH($A82)-1)/12)*$C82 -> -0.05952178162 | I82: =(SUM('3.0 LRAMVA Register'!G$11:G$17)+SUM('3.0 LRAMVA Register'!G$19:G$20)*(MONTH($A82)-1)/12)*$C82 -> -0.2842913751 | J82: =(SUM('3.0 LRAMVA Register'!H$11:H$17)+SUM('3.0 LRAMVA Register'!H$19:H$20)*(MONTH($A82)-1)/12)*$C82 -> -0.001012965287 | K82: =(SUM('3.0 LRAMVA Register'!I$11:I$17)+SUM('3.0 LRAMVA Register'!I$19:I$20)*(MONTH($A82)-1)/12)*$C82 -> 0 | L82: =(SUM('3.0 LRAMVA Register'!J$11:J$17)+SUM('3.0 LRAMVA Register'!J$19:J$20)*(MONTH($A82)-1)/12)*$C82 -> 0 | M82: =(SUM('3.0 LRAMVA Register'!K$11:K$17)+SUM('3.0 LRAMVA Register'!K$19:K$20)*(MONTH($A82)-1)/12)*$C82 -> 0 | N82: 4.792894264
A83: 2014-01-01 | B83: Q1 | C83: =H$24/12 -> 0.001225 | D83: =(SUM('3.0 LRAMVA Register'!B$11:B$21)+SUM('3.0 LRAMVA Register'!B$23:B$24)*(MONTH($A83)-1)/12)*$C83 -> 0.9201526179 | E83: =(SUM('3.0 LRAMVA Register'!C$11:C$21)+SUM('3.0 LRAMVA Register'!C$23:C$24)*(MONTH($A83)-1)/12)*$C83 -> 4.906702242 | F83: =(SUM('3.0 LRAMVA Register'!D$11:D$21)+SUM('3.0 LRAMVA Register'!D$23:D$24)*(MONTH($A83)-1)/12)*$C83 -> -0.6405999903 | G83: =(SUM('3.0 LRAMVA Register'!E$11:E$21)+SUM('3.0 LRAMVA Register'!E$23:E$24)*(MONTH($A83)-1)/12)*$C83 -> 0.2504188841 | H83: =(SUM('3.0 LRAMVA Register'!F$11:F$21)+SUM('3.0 LRAMVA Register'!F$23:F$24)*(MONTH($A83)-1)/12)*$C83 -> -0.06092780966 | I83: =(SUM('3.0 LRAMVA Register'!G$11:G$21)+SUM('3.0 LRAMVA Register'!G$23:G$24)*(MONTH($A83)-1)/12)*$C83 -> -0.2980548778 | J83: =(SUM('3.0 LRAMVA Register'!H$11:H$21)+SUM('3.0 LRAMVA Register'!H$23:H$24)*(MONTH($A83)-1)/12)*$C83 -> -0.001065558 | K83: =(SUM('3.0 LRAMVA Register'!I$11:I$21)+SUM('3.0 LRAMVA Register'!I$23:I$24)*(MONTH($A83)-1)/12)*$C83 -> 0 | L83: =(SUM('3.0 LRAMVA Register'!J$11:J$21)+SUM('3.0 LRAMVA Register'!J$23:J$24)*(MONTH($A83)-1)/12)*$C83 -> 0 | M83: =(SUM('3.0 LRAMVA Register'!K$11:K$21)+SUM('3.0 LRAMVA Register'!K$23:K$24)*(MONTH($A83)-1)/12)*$C83 -> 0 | N83: 5.076625508
A84: 2014-02-01 | B84: Q1 | C84: =H$24/12 -> 0.001225 | D84: =(SUM('3.0 LRAMVA Register'!B$11:B$21)+SUM('3.0 LRAMVA Register'!B$23:B$24)*(MONTH($A84)-1)/12)*$C84 -> 1.225857125 | E84: =(SUM('3.0 LRAMVA Register'!C$11:C$21)+SUM('3.0 LRAMVA Register'!C$23:C$24)*(MONTH($A84)-1)/12)*$C84 -> 5.241163951 | F84: =(SUM('3.0 LRAMVA Register'!D$11:D$21)+SUM('3.0 LRAMVA Register'!D$23:D$24)*(MONTH($A84)-1)/12)*$C84 -> -0.5837535458 | G84: =(SUM('3.0 LRAMVA Register'!E$11:E$21)+SUM('3.0 LRAMVA Register'!E$23:E$24)*(MONTH($A84)-1)/12)*$C84 -> 0.3248144359 | H84: =(SUM('3.0 LRAMVA Register'!F$11:F$21)+SUM('3.0 LRAMVA Register'!F$23:F$24)*(MONTH($A84)-1)/12)*$C84 -> -0.0623468741 | I84: =(SUM('3.0 LRAMVA Register'!G$11:G$21)+SUM('3.0 LRAMVA Register'!G$23:G$24)*(MONTH($A84)-1)/12)*$C84 -> -0.3119460345 | J84: =(SUM('3.0 LRAMVA Register'!H$11:H$21)+SUM('3.0 LRAMVA Register'!H$23:H$24)*(MONTH($A84)-1)/12)*$C84 -> -0.001118644542 | K84: =(SUM('3.0 LRAMVA Register'!I$11:I$21)+SUM('3.0 LRAMVA Register'!I$23:I$24)*(MONTH($A84)-1)/12)*$C84 -> 0 | L84: =(SUM('3.0 LRAMVA Register'!J$11:J$21)+SUM('3.0 LRAMVA Register'!J$23:J$24)*(MONTH($A84)-1)/12)*$C84 -> 0 | M84: =(SUM('3.0 LRAMVA Register'!K$11:K$21)+SUM('3.0 LRAMVA Register'!K$23:K$24)*(MONTH($A84)-1)/12)*$C84 -> 0 | N84: 5.832670413
A85: 2014-03-01 | B85: Q1 | C85: =H$24/12 -> 0.001225 | D85: =(SUM('3.0 LRAMVA Register'!B$11:B$21)+SUM('3.0 LRAMVA Register'!B$23:B$24)*(MONTH($A85)-1)/12)*$C85 -> 1.531561633 | E85: =(SUM('3.0 LRAMVA Register'!C$11:C$21)+SUM('3.0 LRAMVA Register'!C$23:C$24)*(MONTH($A85)-1)/12)*$C85 -> 5.57562566 | F85: =(SUM('3.0 LRAMVA Register'!D$11:D$21)+SUM('3.0 LRAMVA Register'!D$23:D$24)*(MONTH($A85)-1)/12)*$C85 -> -0.5269071013 | G85: =(SUM('3.0 LRAMVA Register'!E$11:E$21)+SUM('3.0 LRAMVA Register'!E$23:E$24)*(MONTH($A85)-1)/12)*$C85 -> 0.3992099877 | H85: =(SUM('3.0 LRAMVA Register'!F$11:F$21)+SUM('3.0 LRAMVA Register'!F$23:F$24)*(MONTH($A85)-1)/12)*$C85 -> -0.06376593855 | I85: =(SUM('3.0 LRAMVA Register'!G$11:G$21)+SUM('3.0 LRAMVA Register'!G$23:G$24)*(MONTH($A85)-1)/12)*$C85 -> -0.3258371913 | J85: =(SUM('3.0 LRAMVA Register'!H$11:H$21)+SUM('3.0 LRAMVA Register'!H$23:H$24)*(MONTH($A85)-1)/12)*$C85 -> -0.001171731083 | K85: =(SUM('3.0 LRAMVA Register'!I$11:I$21)+SUM('3.0 LRAMVA Register'!I$23:I$24)*(MONTH($A85)-1)/12)*$C85 -> 0 | L85: =(SUM('3.0 LRAMVA Register'!J$11:J$21)+SUM('3.0 LRAMVA Register'!J$23:J$24)*(MONTH($A85)-1)/12)*$C85 -> 0 | M85: =(SUM('3.0 LRAMVA Register'!K$11:K$21)+SUM('3.0 LRAMVA Register'!K$23:K$24)*(MONTH($A85)-1)/12)*$C85 -> 0 | N85: 6.588715319
A86: 2014-04-01 | B86: Q2 | C86: =H$25/12 -> 0.001225 | D86: =(SUM('3.0 LRAMVA Register'!B$11:B$21)+SUM('3.0 LRAMVA Register'!B$23:B$24)*(MONTH($A86)-1)/12)*$C86 -> 1.83726614 | E86: =(SUM('3.0 LRAMVA Register'!C$11:C$21)+SUM('3.0 LRAMVA Register'!C$23:C$24)*(MONTH($A86)-1)/12)*$C86 -> 5.91008737 | F86: =(SUM('3.0 LRAMVA Register'!D$11:D$21)+SUM('3.0 LRAMVA Register'!D$23:D$24)*(MONTH($A86)-1)/12)*$C86 -> -0.4700606568 | G86: =(SUM('3.0 LRAMVA Register'!E$11:E$21)+SUM('3.0 LRAMVA Register'!E$23:E$24)*(MONTH($A86)-1)/12)*$C86 -> 0.4736055394 | H86: =(SUM('3.0 LRAMVA Register'!F$11:F$21)+SUM('3.0 LRAMVA Register'!F$23:F$24)*(MONTH($A86)-1)/12)*$C86 -> -0.06518500299 | I86: =(SUM('3.0 LRAMVA Register'!G$11:G$21)+SUM('3.0 LRAMVA Register'!G$23:G$24)*(MONTH($A86)-1)/12)*$C86 -> -0.3397283481 | J86: =(SUM('3.0 LRAMVA Register'!H$11:H$21)+SUM('3.0 LRAMVA Register'!H$23:H$24)*(MONTH($A86)-1)/12)*$C86 -> -0.001224817625 | K86: =(SUM('3.0 LRAMVA Register'!I$11:I$21)+SUM('3.0 LRAMVA Register'!I$23:I$24)*(MONTH($A86)-1)/12)*$C86 -> 0 | L86: =(SUM('3.0 LRAMVA Register'!J$11:J$21)+SUM('3.0 LRAMVA Register'!J$23:J$24)*(MONTH($A86)-1)/12)*$C86 -> 0 | M86: =(SUM('3.0 LRAMVA Register'!K$11:K$21)+SUM('3.0 LRAMVA Register'!K$23:K$24)*(MONTH($A86)-1)/12)*$C86 -> 0 | N86: 7.344760224
A87: Total for rate year 2013 | D87: =SUM(D74:D86) -> 27.48267341 | E87: =SUM(E74:E86) -> 92.61979386 | F87: =SUM(F74:F86) -> -12.91522169 | G87: =SUM(G74:G86) -> 0.4366402176 | H87: =SUM(H74:H86) -> -1.115994257 | I87: =SUM(I74:I86) -> -4.509582423 | J87: =SUM(J74:J86) -> -0.01565466555 | K87: 0 | L87: 0 | M87: 0 | N87: =SUM(N74:N86) -> 101.9826545
A88: Amount Cleared | N88: =SUM(D88:M88) -> 0
A89: Opening Balance for rate year 2014 | D89: =D87+D88 -> 27.48267341 | E89: =E87+E88 -> 92.61979386 | F89: -12.91522169 | G89: 0.4366402176 | H89: -1.115994257 | I89: -4.509582423 | J89: -0.01565466555 | K89: 0 | L89: 0 | M89: 0 | N89: =N87+N88 -> 101.9826545
A90: 2014-05-01 | B90: Q2 | C90: =H$25/12 -> 0.001225 | D90: =(SUM('3.0 LRAMVA Register'!B$11:B$21)+SUM('3.0 LRAMVA Register'!B$23:B$24)*(MONTH($A90)-1)/12)*$C90 -> 2.142970648 | E90: =(SUM('3.0 LRAMVA Register'!C$11:C$21)+SUM('3.0 LRAMVA Register'!C$23:C$24)*(MONTH($A90)-1)/12)*$C90 -> 6.244549079 | F90: =(SUM('3.0 LRAMVA Register'!D$11:D$21)+SUM('3.0 LRAMVA Register'!D$23:D$24)*(MONTH($A90)-1)/12)*$C90 -> -0.4132142123 | G90: =(SUM('3.0 LRAMVA Register'!E$11:E$21)+SUM('3.0 LRAMVA Register'!E$23:E$24)*(MONTH($A90)-1)/12)*$C90 -> 0.5480010912 | H90: =(SUM('3.0 LRAMVA Register'!F$11:F$21)+SUM('3.0 LRAMVA Register'!F$23:F$24)*(MONTH($A90)-1)/12)*$C90 -> -0.06660406744 | I90: =(SUM('3.0 LRAMVA Register'!G$11:G$21)+SUM('3.0 LRAMVA Register'!G$23:G$24)*(MONTH($A90)-1)/12)*$C90 -> -0.3536195048 | J90: =(SUM('3.0 LRAMVA Register'!H$11:H$21)+SUM('3.0 LRAMVA Register'!H$23:H$24)*(MONTH($A90)-1)/12)*$C90 -> -0.001277904166 | K90: =(SUM('3.0 LRAMVA Register'!I$11:I$21)+SUM('3.0 LRAMVA Register'!I$23:I$24)*(MONTH($A90)-1)/12)*$C90 -> 0 | L90: =(SUM('3.0 LRAMVA Register'!J$11:J$21)+SUM('3.0 LRAMVA Register'!J$23:J$24)*(MONTH($A90)-1)/12)*$C90 -> 0 | M90: =(SUM('3.0 LRAMVA Register'!K$11:K$21)+SUM('3.0 LRAMVA Register'!K$23:K$24)*(MONTH($A90)-1)/12)*$C90 -> 0 | N90: =SUM(D90:M90) -> 8.100805129
A91: 2014-06-01 | B91: Q2 | C91: =H$25/12 -> 0.001225 | D91: =(SUM('3.0 LRAMVA Register'!B$11:B$21)+SUM('3.0 LRAMVA Register'!B$23:B$24)*(MONTH($A91)-1)/12)*$C91 -> 2.448675155 | E91: =(SUM('3.0 LRAMVA Register'!C$11:C$21)+SUM('3.0 LRAMVA Register'!C$23:C$24)*(MONTH($A91)-1)/12)*$C91 -> 6.579010788 | F91: =(SUM('3.0 LRAMVA Register'!D$11:D$21)+SUM('3.0 LRAMVA Register'!D$23:D$24)*(MONTH($A91)-1)/12)*$C91 -> -0.3563677678 | G91: =(SUM('3.0 LRAMVA Register'!E$11:E$21)+SUM('3.0 LRAMVA Register'!E$23:E$24)*(MONTH($A91)-1)/12)*$C91 -> 0.622396643 | H91: =(SUM('3.0 LRAMVA Register'!F$11:F$21)+SUM('3.0 LRAMVA Register'!F$23:F$24)*(MONTH($A91)-1)/12)*$C91 -> -0.06802313188 | I91: =(SUM('3.0 LRAMVA Register'!G$11:G$21)+SUM('3.0 LRAMVA Register'!G$23:G$24)*(MONTH($A91)-1)/12)*$C91 -> -0.3675106616 | J91: =(SUM('3.0 LRAMVA Register'!H$11:H$21)+SUM('3.0 LRAMVA Register'!H$23:H$24)*(MONTH($A91)-1)/12)*$C91 -> -0.001330990708 | K91: =(SUM('3.0 LRAMVA Register'!I$11:I$21)+SUM('3.0 LRAMVA Register'!I$23:I$24)*(MONTH($A91)-1)/12)*$C91 -> 0 | L91: =(SUM('3.0 LRAMVA Register'!J$11:J$21)+SUM('3.0 LRAMVA Register'!J$23:J$24)*(MONTH($A91)-1)/12)*$C91 -> 0 | M91: =(SUM('3.0 LRAMVA Register'!K$11:K$21)+SUM('3.0 LRAMVA Register'!K$23:K$24)*(MONTH($A91)-1)/12)*$C91 -> 0 | N91: 8.856850034
A92: 2014-07-01 | B92: Q3 | C92: =H$26/12 -> 0.001225 | D92: =(SUM('3.0 LRAMVA Register'!B$11:B$21)+SUM('3.0 LRAMVA Register'!B$23:B$24)*(MONTH($A92)-1)/12)*$C92 -> 2.754379663 | E92: =(SUM('3.0 LRAMVA Register'!C$11:C$21)+SUM('3.0 LRAMVA Register'!C$23:C$24)*(MONTH($A92)-1)/12)*$C92 -> 6.913472497 | F92: =(SUM('3.0 LRAMVA Register'!D$11:D$21)+SUM('3.0 LRAMVA Register'!D$23:D$24)*(MONTH($A92)-1)/12)*$C92 -> -0.2995213233 | G92: =(SUM('3.0 LRAMVA Register'!E$11:E$21)+SUM('3.0 LRAMVA Register'!E$23:E$24)*(MONTH($A92)-1)/12)*$C92 -> 0.6967921947 | H92: =(SUM('3.0 LRAMVA Register'!F$11:F$21)+SUM('3.0 LRAMVA Register'!F$23:F$24)*(MONTH($A92)-1)/12)*$C92 -> -0.06944219633 | I92: =(SUM('3.0 LRAMVA Register'!G$11:G$21)+SUM('3.0 LRAMVA Register'!G$23:G$24)*(MONTH($A92)-1)/12)*$C92 -> -0.3814018183 | J92: =(SUM('3.0 LRAMVA Register'!H$11:H$21)+SUM('3.0 LRAMVA Register'!H$23:H$24)*(MONTH($A92)-1)/12)*$C92 -> -0.001384077249 | K92: =(SUM('3.0 LRAMVA Register'!I$11:I$21)+SUM('3.0 LRAMVA Register'!I$23:I$24)*(MONTH($A92)-1)/12)*$C92 -> 0 | L92: =(SUM('3.0 LRAMVA Register'!J$11:J$21)+SUM('3.0 LRAMVA Register'!J$23:J$24)*(MONTH($A92)-1)/12)*$C92 -> 0 | M92: =(SUM('3.0 LRAMVA Register'!K$11:K$21)+SUM('3.0 LRAMVA Register'!K$23:K$24)*(MONTH($A92)-1)/12)*$C92 -> 0 | N92: 9.612894939
A93: 2014-08-01 | B93: Q3 | C93: =H$26/12 -> 0.001225 | D93: =(SUM('3.0 LRAMVA Register'!B$11:B$21)+SUM('3.0 LRAMVA Register'!B$23:B$24)*(MONTH($A93)-1)/12)*$C93 -> 3.06008417 | E93: =(SUM('3.0 LRAMVA Register'!C$11:C$21)+SUM('3.0 LRAMVA Register'!C$23:C$24)*(MONTH($A93)-1)/12)*$C93 -> 7.247934206 | F93: =(SUM('3.0 LRAMVA Register'!D$11:D$21)+SUM('3.0 LRAMVA Register'!D$23:D$24)*(MONTH($A93)-1)/12)*$C93 -> -0.2426748788 | G93: =(SUM('3.0 LRAMVA Register'!E$11:E$21)+SUM('3.0 LRAMVA Register'!E$23:E$24)*(MONTH($A93)-1)/12)*$C93 -> 0.7711877465 | H93: =(SUM('3.0 LRAMVA Register'!F$11:F$21)+SUM('3.0 LRAMVA Register'!F$23:F$24)*(MONTH($A93)-1)/12)*$C93 -> -0.07086126077 | I93: =(SUM('3.0 LRAMVA Register'!G$11:G$21)+SUM('3.0 LRAMVA Register'!G$23:G$24)*(MONTH($A93)-1)/12)*$C93 -> -0.3952929751 | J93: =(SUM('3.0 LRAMVA Register'!H$11:H$21)+SUM('3.0 LRAMVA Register'!H$23:H$24)*(MONTH($A93)-1)/12)*$C93 -> -0.001437163791 | K93: =(SUM('3.0 LRAMVA Register'!I$11:I$21)+SUM('3.0 LRAMVA Register'!I$23:I$24)*(MONTH($A93)-1)/12)*$C93 -> 0 | L93: =(SUM('3.0 LRAMVA Register'!J$11:J$21)+SUM('3.0 LRAMVA Register'!J$23:J$24)*(MONTH($A93)-1)/12)*$C93 -> 0 | M93: =(SUM('3.0 LRAMVA Register'!K$11:K$21)+SUM('3.0 LRAMVA Register'!K$23:K$24)*(MONTH($A93)-1)/12)*$C93 -> 0 | N93: 10.36893984
A94: 2014-09-01 | B94: Q3 | C94: =H$26/12 -> 0.001225 | D94: =(SUM('3.0 LRAMVA Register'!B$11:B$21)+SUM('3.0 LRAMVA Register'!B$23:B$24)*(MONTH($A94)-1)/12)*$C94 -> 3.365788677 | E94: =(SUM('3.0 LRAMVA Register'!C$11:C$21)+SUM('3.0 LRAMVA Register'!C$23:C$24)*(MONTH($A94)-1)/12)*$C94 -> 7.582395915 | F94: =(SUM('3.0 LRAMVA Register'!D$11:D$21)+SUM('3.0 LRAMVA Register'!D$23:D$24)*(MONTH($A94)-1)/12)*$C94 -> -0.1858284343 | G94: =(SUM('3.0 LRAMVA Register'!E$11:E$21)+SUM('3.0 LRAMVA Register'!E$23:E$24)*(MONTH($A94)-1)/12)*$C94 -> 0.8455832983 | H94: =(SUM('3.0 LRAMVA Register'!F$11:F$21)+SUM('3.0 LRAMVA Register'!F$23:F$24)*(MONTH($A94)-1)/12)*$C94 -> -0.07228032522 | I94: =(SUM('3.0 LRAMVA Register'!G$11:G$21)+SUM('3.0 LRAMVA Register'!G$23:G$24)*(MONTH($A94)-1)/12)*$C94 -> -0.4091841318 | J94: =(SUM('3.0 LRAMVA Register'!H$11:H$21)+SUM('3.0 LRAMVA Register'!H$23:H$24)*(MONTH($A94)-1)/12)*$C94 -> -0.001490250333 | K94: =(SUM('3.0 LRAMVA Register'!I$11:I$21)+SUM('3.0 LRAMVA Register'!I$23:I$24)*(MONTH($A94)-1)/12)*$C94 -> 0 | L94: =(SUM('3.0 LRAMVA Register'!J$11:J$21)+SUM('3.0 LRAMVA Register'!J$23:J$24)*(MONTH($A94)-1)/12)*$C94 -> 0 | M94: =(SUM('3.0 LRAMVA Register'!K$11:K$21)+SUM('3.0 LRAMVA Register'!K$23:K$24)*(MONTH($A94)-1)/12)*$C94 -> 0 | N94: 11.12498475
A95: 2014-10-01 | B95: Q4 | C95: =H$27/12 -> 0.001225 | D95: =(SUM('3.0 LRAMVA Register'!B$11:B$21)+SUM('3.0 LRAMVA Register'!B$23:B$24)*(MONTH($A95)-1)/12)*$C95 -> 3.671493185 | E95: =(SUM('3.0 LRAMVA Register'!C$11:C$21)+SUM('3.0 LRAMVA Register'!C$23:C$24)*(MONTH($A95)-1)/12)*$C95 -> 7.916857625 | F95: =(SUM('3.0 LRAMVA Register'!D$11:D$21)+SUM('3.0 LRAMVA Register'!D$23:D$24)*(MONTH($A95)-1)/12)*$C95 -> -0.1289819898 | G95: =(SUM('3.0 LRAMVA Register'!E$11:E$21)+SUM('3.0 LRAMVA Register'!E$23:E$24)*(MONTH($A95)-1)/12)*$C95 -> 0.9199788501 | H95: =(SUM('3.0 LRAMVA Register'!F$11:F$21)+SUM('3.0 LRAMVA Register'!F$23:F$24)*(MONTH($A95)-1)/12)*$C95 -> -0.07369938966 | I95: =(SUM('3.0 LRAMVA Register'!G$11:G$21)+SUM('3.0 LRAMVA Register'!G$23:G$24)*(MONTH($A95)-1)/12)*$C95 -> -0.4230752886 | J95: =(SUM('3.0 LRAMVA Register'!H$11:H$21)+SUM('3.0 LRAMVA Register'!H$23:H$24)*(MONTH($A95)-1)/12)*$C95 -> -0.001543336874 | K95: =(SUM('3.0 LRAMVA Register'!I$11:I$21)+SUM('3.0 LRAMVA Register'!I$23:I$24)*(MONTH($A95)-1)/12)*$C95 -> 0 | L95: =(SUM('3.0 LRAMVA Register'!J$11:J$21)+SUM('3.0 LRAMVA Register'!J$23:J$24)*(MONTH($A95)-1)/12)*$C95 -> 0 | M95: =(SUM('3.0 LRAMVA Register'!K$11:K$21)+SUM('3.0 LRAMVA Register'!K$23:K$24)*(MONTH($A95)-1)/12)*$C95 -> 0 | N95: 11.88102965
A96: 2014-11-01 | B96: Q4 | C96: =H$27/12 -> 0.001225 | D96: =(SUM('3.0 LRAMVA Register'!B$11:B$21)+SUM('3.0 LRAMVA Register'!B$23:B$24)*(MONTH($A96)-1)/12)*$C96 -> 3.977197692 | E96: =(SUM('3.0 LRAMVA Register'!C$11:C$21)+SUM('3.0 LRAMVA Register'!C$23:C$24)*(MONTH($A96)-1)/12)*$C96 -> 8.251319334 | F96: =(SUM('3.0 LRAMVA Register'!D$11:D$21)+SUM('3.0 LRAMVA Register'!D$23:D$24)*(MONTH($A96)-1)/12)*$C96 -> -0.07213554525 | G96: =(SUM('3.0 LRAMVA Register'!E$11:E$21)+SUM('3.0 LRAMVA Register'!E$23:E$24)*(MONTH($A96)-1)/12)*$C96 -> 0.9943744018 | H96: =(SUM('3.0 LRAMVA Register'!F$11:F$21)+SUM('3.0 LRAMVA Register'!F$23:F$24)*(MONTH($A96)-1)/12)*$C96 -> -0.07511845411 | I96: =(SUM('3.0 LRAMVA Register'!G$11:G$21)+SUM('3.0 LRAMVA Register'!G$23:G$24)*(MONTH($A96)-1)/12)*$C96 -> -0.4369664453 | J96: =(SUM('3.0 LRAMVA Register'!H$11:H$21)+SUM('3.0 LRAMVA Register'!H$23:H$24)*(MONTH($A96)-1)/12)*$C96 -> -0.001596423416 | K96: =(SUM('3.0 LRAMVA Register'!I$11:I$21)+SUM('3.0 LRAMVA Register'!I$23:I$24)*(MONTH($A96)-1)/12)*$C96 -> 0 | L96: =(SUM('3.0 LRAMVA Register'!J$11:J$21)+SUM('3.0 LRAMVA Register'!J$23:J$24)*(MONTH($A96)-1)/12)*$C96 -> 0 | M96: =(SUM('3.0 LRAMVA Register'!K$11:K$21)+SUM('3.0 LRAMVA Register'!K$23:K$24)*(MONTH($A96)-1)/12)*$C96 -> 0 | N96: 12.63707456
A97: 2014-12-01 | B97: Q4 | C97: =H$27/12 -> 0.001225 | D97: =(SUM('3.0 LRAMVA Register'!B$11:B$21)+SUM('3.0 LRAMVA Register'!B$23:B$24)*(MONTH($A97)-1)/12)*$C97 -> 4.2829022 | E97: =(SUM('3.0 LRAMVA Register'!C$11:C$21)+SUM('3.0 LRAMVA Register'!C$23:C$24)*(MONTH($A97)-1)/12)*$C97 -> 8.585781043 | F97: =(SUM('3.0 LRAMVA Register'!D$11:D$21)+SUM('3.0 LRAMVA Register'!D$23:D$24)*(MONTH($A97)-1)/12)*$C97 -> -0.01528910074 | G97: =(SUM('3.0 LRAMVA Register'!E$11:E$21)+SUM('3.0 LRAMVA Register'!E$23:E$24)*(MONTH($A97)-1)/12)*$C97 -> 1.068769954 | H97: =(SUM('3.0 LRAMVA Register'!F$11:F$21)+SUM('3.0 LRAMVA Register'!F$23:F$24)*(MONTH($A97)-1)/12)*$C97 -> -0.07653751855 | I97: =(SUM('3.0 LRAMVA Register'!G$11:G$21)+SUM('3.0 LRAMVA Register'!G$23:G$24)*(MONTH($A97)-1)/12)*$C97 -> -0.4508576021 | J97: =(SUM('3.0 LRAMVA Register'!H$11:H$21)+SUM('3.0 LRAMVA Register'!H$23:H$24)*(MONTH($A97)-1)/12)*$C97 -> -0.001649509957 | K97: =(SUM('3.0 LRAMVA Register'!I$11:I$21)+SUM('3.0 LRAMVA Register'!I$23:I$24)*(MONTH($A97)-1)/12)*$C97 -> 0 | L97: =(SUM('3.0 LRAMVA Register'!J$11:J$21)+SUM('3.0 LRAMVA Register'!J$23:J$24)*(MONTH($A97)-1)/12)*$C97 -> 0 | M97: =(SUM('3.0 LRAMVA Register'!K$11:K$21)+SUM('3.0 LRAMVA Register'!K$23:K$24)*(MONTH($A97)-1)/12)*$C97 -> 0 | N97: 13.39311947
A98: 2015-01-01 | B98: Q1 | C98: =H$28/12 -> 0.001225 | D98: =(SUM('3.0 LRAMVA Register'!B$11:B$21)+SUM('3.0 LRAMVA Register'!B$23:B$24)*(MONTH($A98)-1)/12)*$C98 -> 0.9201526179 | E98: =(SUM('3.0 LRAMVA Register'!C$11:C$21)+SUM('3.0 LRAMVA Register'!C$23:C$24)*(MONTH($A98)-1)/12)*$C98 -> 4.906702242 | F98: =(SUM('3.0 LRAMVA Register'!D$11:D$21)+SUM('3.0 LRAMVA Register'!D$23:D$24)*(MONTH($A98)-1)/12)*$C98 -> -0.6405999903 | G98: =(SUM('3.0 LRAMVA Register'!E$11:E$21)+SUM('3.0 LRAMVA Register'!E$23:E$24)*(MONTH($A98)-1)/12)*$C98 -> 0.2504188841 | H98: =(SUM('3.0 LRAMVA Register'!F$11:F$21)+SUM('3.0 LRAMVA Register'!F$23:F$24)*(MONTH($A98)-1)/12)*$C98 -> -0.06092780966 | I98: =(SUM('3.0 LRAMVA Register'!G$11:G$21)+SUM('3.0 LRAMVA Register'!G$23:G$24)*(MONTH($A98)-1)/12)*$C98 -> -0.2980548778 | J98: =(SUM('3.0 LRAMVA Register'!H$11:H$21)+SUM('3.0 LRAMVA Register'!H$23:H$24)*(MONTH($A98)-1)/12)*$C98 -> -0.001065558 | K98: =(SUM('3.0 LRAMVA Register'!I$11:I$21)+SUM('3.0 LRAMVA Register'!I$23:I$24)*(MONTH($A98)-1)/12)*$C98 -> 0 | L98: =(SUM('3.0 LRAMVA Register'!J$11:J$21)+SUM('3.0 LRAMVA Register'!J$23:J$24)*(MONTH($A98)-1)/12)*$C98 -> 0 | M98: =(SUM('3.0 LRAMVA Register'!K$11:K$21)+SUM('3.0 LRAMVA Register'!K$23:K$24)*(MONTH($A98)-1)/12)*$C98 -> 0 | N98: =SUM(D98:M98) -> 5.076625508
A99: 2015-02-01 | B99: Q1 | C99: =H$28/12 -> 0.001225 | D99: =(SUM('3.0 LRAMVA Register'!B$11:B$21)+SUM('3.0 LRAMVA Register'!B$23:B$24)*(MONTH($A99)-1)/12)*$C99 -> 1.225857125 | E99: =(SUM('3.0 LRAMVA Register'!C$11:C$21)+SUM('3.0 LRAMVA Register'!C$23:C$24)*(MONTH($A99)-1)/12)*$C99 -> 5.241163951 | F99: =(SUM('3.0 LRAMVA Register'!D$11:D$21)+SUM('3.0 LRAMVA Register'!D$23:D$24)*(MONTH($A99)-1)/12)*$C99 -> -0.5837535458 | G99: =(SUM('3.0 LRAMVA Register'!E$11:E$21)+SUM('3.0 LRAMVA Register'!E$23:E$24)*(MONTH($A99)-1)/12)*$C99 -> 0.3248144359 | H99: =(SUM('3.0 LRAMVA Register'!F$11:F$21)+SUM('3.0 LRAMVA Register'!F$23:F$24)*(MONTH($A99)-1)/12)*$C99 -> -0.0623468741 | I99: =(SUM('3.0 LRAMVA Register'!G$11:G$21)+SUM('3.0 LRAMVA Register'!G$23:G$24)*(MONTH($A99)-1)/12)*$C99 -> -0.3119460345 | J99: =(SUM('3.0 LRAMVA Register'!H$11:H$21)+SUM('3.0 LRAMVA Register'!H$23:H$24)*(MONTH($A99)-1)/12)*$C99 -> -0.001118644542 | K99: =(SUM('3.0 LRAMVA Register'!I$11:I$21)+SUM('3.0 LRAMVA Register'!I$23:I$24)*(MONTH($A99)-1)/12)*$C99 -> 0 | L99: =(SUM('3.0 LRAMVA Register'!J$11:J$21)+SUM('3.0 LRAMVA Register'!J$23:J$24)*(MONTH($A99)-1)/12)*$C99 -> 0 | M99: =(SUM('3.0 LRAMVA Register'!K$11:K$21)+SUM('3.0 LRAMVA Register'!K$23:K$24)*(MONTH($A99)-1)/12)*$C99 -> 0 | N99: 5.832670413
A100: 2015-03-01 | B100: Q1 | C100: 0.001225 | D100: =(SUM('3.0 LRAMVA Register'!B$11:B$21)+SUM('3.0 LRAMVA Register'!B$23:B$24)*(MONTH($A100)-1)/12)*$C100 -> 1.531561633 | E100: =(SUM('3.0 LRAMVA Register'!C$11:C$21)+SUM('3.0 LRAMVA Register'!C$23:C$24)*(MONTH($A100)-1)/12)*$C100 -> 5.57562566 | F100: =(SUM('3.0 LRAMVA Register'!D$11:D$21)+SUM('3.0 LRAMVA Register'!D$23:D$24)*(MONTH($A100)-1)/12)*$C100 -> -0.5269071013 | G100: =(SUM('3.0 LRAMVA Register'!E$11:E$21)+SUM('3.0 LRAMVA Register'!E$23:E$24)*(MONTH($A100)-1)/12)*$C100 -> 0.3992099877 | H100: =(SUM('3.0 LRAMVA Register'!F$11:F$21)+SUM('3.0 LRAMVA Register'!F$23:F$24)*(MONTH($A100)-1)/12)*$C100 -> -0.06376593855 | I100: =(SUM('3.0 LRAMVA Register'!G$11:G$21)+SUM('3.0 LRAMVA Register'!G$23:G$24)*(MONTH($A100)-1)/12)*$C100 -> -0.3258371913 | J100: =(SUM('3.0 LRAMVA Register'!H$11:H$21)+SUM('3.0 LRAMVA Register'!H$23:H$24)*(MONTH($A100)-1)/12)*$C100 -> -0.001171731083 | K100: =(SUM('3.0 LRAMVA Register'!I$11:I$21)+SUM('3.0 LRAMVA Register'!I$23:I$24)*(MONTH($A100)-1)/12)*$C100 -> 0 | L100: =(SUM('3.0 LRAMVA Register'!J$11:J$21)+SUM('3.0 LRAMVA Register'!J$23:J$24)*(MONTH($A100)-1)/12)*$C100 -> 0 | M100: =(SUM('3.0 LRAMVA Register'!K$11:K$21)+SUM('3.0 LRAMVA Register'!K$23:K$24)*(MONTH($A100)-1)/12)*$C100 -> 0 | N100: 6.588715319
A101: 2015-04-01 | B101: Q2 | C101: =H$29/12 -> 0.0009166666667 | D101: =(SUM('3.0 LRAMVA Register'!B$11:B$21)+SUM('3.0 LRAMVA Register'!B$23:B$24)*(MONTH($A101)-1)/12)*$C101 -> 1.374825003 | E101: =(SUM('3.0 LRAMVA Register'!C$11:C$21)+SUM('3.0 LRAMVA Register'!C$23:C$24)*(MONTH($A101)-1)/12)*$C101 -> 4.422514358 | F101: =(SUM('3.0 LRAMVA Register'!D$11:D$21)+SUM('3.0 LRAMVA Register'!D$23:D$24)*(MONTH($A101)-1)/12)*$C101 -> -0.3517460697 | G101: =(SUM('3.0 LRAMVA Register'!E$11:E$21)+SUM('3.0 LRAMVA Register'!E$23:E$24)*(MONTH($A101)-1)/12)*$C101 -> 0.354398703 | H101: =(SUM('3.0 LRAMVA Register'!F$11:F$21)+SUM('3.0 LRAMVA Register'!F$23:F$24)*(MONTH($A101)-1)/12)*$C101 -> -0.0487778934 | I101: =(SUM('3.0 LRAMVA Register'!G$11:G$21)+SUM('3.0 LRAMVA Register'!G$23:G$24)*(MONTH($A101)-1)/12)*$C101 -> -0.2542184917 | J101: =(SUM('3.0 LRAMVA Register'!H$11:H$21)+SUM('3.0 LRAMVA Register'!H$23:H$24)*(MONTH($A101)-1)/12)*$C101 -> -0.0009165301955 | K101: =(SUM('3.0 LRAMVA Register'!I$11:I$21)+SUM('3.0 LRAMVA Register'!I$23:I$24)*(MONTH($A101)-1)/12)*$C101 -> 0 | L101: =(SUM('3.0 LRAMVA Register'!J$11:J$21)+SUM('3.0 LRAMVA Register'!J$23:J$24)*(MONTH($A101)-1)/12)*$C101 -> 0 | M101: =(SUM('3.0 LRAMVA Register'!K$11:K$21)+SUM('3.0 LRAMVA Register'!K$23:K$24)*(MONTH($A101)-1)/12)*$C101 -> 0 | N101: 5.496079079
A102: Total for rate year 2014 | D102: =SUM(D89:D101) -> 58.23856118 | E102: =SUM(E89:E101) -> 172.0871206 | F102: =SUM(F89:F101) -> -16.73224165 | G102: =SUM(G89:G101) -> 8.232566407 | H102: =SUM(H89:H101) -> -1.924379117 | I102: =SUM(I89:I101) -> -8.917547446 | J102: =SUM(J89:J101) -> -0.03163678586 | K102: 0 | L102: 0 | M102: 0 | N102: =SUM(N89:N101) -> 210.9524431
A103: Amount Cleared | N103: =SUM(D103:M103) -> 0

Sheet 6.0 Rates
A1: LRAMVA Model version 1.0 © CHEC
A8: Table 6 - Distribution Rates
A10: Rate Class | B10: Billing Unit | C10: 2011 | D10: 2012 | E10: 2013 | F10: 2014 | G10: May 1, 2010 to Apr 30, 2011 | H10: May 1, 2011 to Sep 30, 2012 | I10: Oct 1, 2012 to Apr 30, 2013 | J10: May 1, 2013 to Apr 30, 2014 | K10: May 1, 2014 to Apr 30, 2015 | L10: May 1, 2015 to Apr 30, 2016
A11: For "Calendar" rate year | H11: 2011 | I11: 2012 | J11: 2013 | K11: 2014 | L11: 2015
A12: Pro-ratio of Rates (months) - Period 1 | H12: 4 | I12: 9 | J12: 4 | K12: 4 | L12: 4
A13: Pro-ratio of Rates (months) - Period 2 | H13: 8 | I13: 3 | J13: 8 | K13: 8 | L13: 8
A15: ='4.0 Approved Load Forecast'!D20 -> Residential | B15: ='2.0 Customer Classes'!D13 -> kWh | C15: =SUM(G15*$H$12+H15*$H$13)/12 -> 0.0139 | D15: =SUM(H15*$I$12+I15*$I$13)/12 -> 0.014925 | E15: =SUM(I15*$J$12+J15*$J$13)/12 -> 0.01806666667 | F15: =SUM(J15*$K$12+K15*$K$13)/12 -> 0.01823333333 | G15: 0.0139 | H15: 0.0139 | I15: 0.018 | J15: 0.0181 | K15: 0.0183 | L15: 0.0185
A16: ='4.0 Approved Load Forecast'!E20 -> General Service < 50 kW | B16: ='2.0 Customer Classes'!D14 -> kWh | C16: =SUM(G16*$H$12+H16*$H$13)/12 -> 0.012 | D16: 0.0131 | E16: 0.0164 | F16: =SUM(J16*$K$12+K16*$K$13)/12 -> 0.01653333333 | G16: 0.012 | H16: 0.012 | I16: 0.0164 | J16: 0.0164 | K16: 0.0166 | L16: 0.0168
A17: ='4.0 Approved Load Forecast'!F20 -> General Service 50 to 999 kW | B17: ='2.0 Customer Classes'!D15 -> kW | C17: 3.260133333 | D17: 3.33855 | E17: 3.574566667 | F17: 3.6077 | G17: 3.2562 | H17: 3.2621 | I17: 3.5679 | J17: 3.5779 | K17: 3.6226 | L17: 3.6243
A18: ='4.0 Approved Load Forecast'!G20 -> General Service 1,000 to 4,999 kW | B18: ='2.0 Customer Classes'!D16 -> kW | C18: 1.250466667 | D18: 1.398975 | E18: 1.845766667 | F18: 1.8629 | G18: 1.249 | H18: 1.2512 | I18: 1.8423 | J18: 1.8475 | K18: 1.8706 | L18: 1.8921
A19: ='4.0 Approved Load Forecast'!H20 -> Sentinel Lighting | B19: ='2.0 Customer Classes'!D17 -> kW | C19: 59.48606667 | D19: 49.358275 | E19: 18.9032 | F19: 19.07846667 | G19: 59.4148 | H19: 59.5217 | I19: 18.868 | J19: 18.9208 | K19: 19.1573 | L19: 19.3776
A20: ='4.0 Approved Load Forecast'!I20 -> Street Lighting | B20: ='2.0 Customer Classes'!D18 -> kW | C20: 5.720766667 | D20: 6.2231 | E20: 7.7342 | F20: 7.805933333 | G20: 5.7139 | H20: 5.7242 | I20: 7.7198 | J20: 7.7414 | K20: 7.8382 | L20: 7.9283
A21: ='4.0 Approved Load Forecast'!J20 -> Unmetered Scattered Load | B21: ='2.0 Customer Classes'!D19 -> kWh | C21: 0.0083 | D21: 0.009775 | E21: 0.0142 | F21: 0.01433333333 | G21: 0.0083 | H21: 0.0083 | I21: 0.0142 | J21: 0.0142 | K21: 0.0144 | L21: 0.0146
A22: ='4.0 Approved Load Forecast'!K20 -> other | B22: ='2.0 Customer Classes'!D20 -> 0
A23: ='4.0 Approved Load Forecast'!L20 -> other | B23: ='2.0 Customer Classes'!D21 -> 0
A24: ='4.0 Approved Load Forecast'!M20 -> other | B24: ='2.0 Customer Classes'!D22 -> 0 | C24: =IF((G24*4+H24*8)/12=0," ",(G24*4+H24*8)/12) ->  | D24: =IF((H24*4+I24*8)/12=0," ",(H24*4+I24*8)/12) ->  | E24: =IF((I24*4+J24*8)/12=0," ",(I24*4+J24*8)/12) ->  | F24: =IF((J24*4+K24*8)/12=0," ",(J24*4+K24*8)/12) -> 
A26: References:
A27: Decision & Orders relating to rates: | G27: EB-2009-0253 | H27: EB-2010-0119 | I27: EB-2011-0249 | J27: EB-2012-0174 | K27: EB-2013-0178 | L27: EB-2014-0121

Sheet 7.0 2011LostRev
A1: LRAMVA Model version 1.0 © CHEC
B6: Table 7: Allocation of Program Savings Across Rate Classes
G7: 2011
A10: # | B10: Initiative | C10: Results Status | D10: Net Incremental Peak Demand Savings (kW) | E10: Net Incremental Energy Savings (kWh) | F10: Rate Allocation for LRAMVA
D11: 2011 kW Saved | E11: 2011 kWh Saved | F11: ='3.0 LRAMVA Register'!B10 -> Residential | G11: ='3.0 LRAMVA Register'!C10 -> General Service < 50 kW | H11: ='3.0 LRAMVA Register'!D10 -> General Service 50 to 999 kW | I11: ='3.0 LRAMVA Register'!E10 -> General Service 1,000 to 4,999 kW | J11: ='3.0 LRAMVA Register'!F10 -> Sentinel Lighting | K11: ='3.0 LRAMVA Register'!G10 -> Street Lighting | L11: ='3.0 LRAMVA Register'!H10 -> Unmetered Scattered Load | M11: ='3.0 LRAMVA Register'!K10 -> other | N11: ='3.0 LRAMVA Register'!L10 -> Total
B12: Consumer Program
A13: 1 | B13: Appliance Retirement | C13: Verified | D13: 3 | E13: 24852 | F13: 1 | N13: =SUM(F13:M13) -> 1
A14: 2 | B14: Appliance Exchange | C14: Verified | D14: 0 | E14: 350 | F14: 1 | N14: =SUM(F14:M14) -> 1
A15: 3 | B15: HVAC Incentives | C15: Verified | D15: 10 | E15: 20522 | F15: 1 | N15: 1
A16: 4 | B16: Conservation Instant Coupon Booklet | C16: Verified | D16: 1 | E16: 11756 | F16: 1 | N16: 1
A17: 5 | B17: Bi-Annual Retailer Event | C17: Verified | D17: 1 | E17: 18586 | F17: 1 | N17: 1
A18: 6 | B18: Retailer Co-op | C18: Verified | N18: 0
A19: 7 | B19: Residential Demand Response | C19: Verified | N19: 0
A20: 8 | B20: Residential New Construction | C20: Verified | N20: 0
B21: Business Program
A22: 9 | B22: Retrofit | C22: Verified | D22: 1 | E22: 2232 | G22: 1 | N22: =SUM(F22:M22) -> 1
A23: 10 | B23: Direct Install Lighting | C23: Verified | D23: 29 | E23: 74943 | G23: 1 | N23: 1
A24: 11 | B24: Building Commissioning | C24: Verified | N24: 0
A25: 12 | B25: New Construction | C25: Verified | E25: 277 | H25: 1 | N25: 1
A26: 13 | B26: Energy Audit | C26: Verified | N26: 0
A27: 14 | B27: Commercial Demand Response (part of residential program) | C27: Verified | N27: 0
A28: 15 | B28: Demand Response 3 | C28: Verified | N28: 0
B29: Industrial Program
A30: 16 | B30: Process & System Upgrades | C30: Verified | N30: =SUM(F30:M30) -> 0
A31: 17 | B31: Monitoring & Targeting | C31: Verified | N31: 0
A32: 18 | B32: Energy Manager | C32: Verified | N32: 0
A33: 19 | B33: Retrofit | C33: Verified | N33: 0
A34: 20 | B34: Demand Response 3 | C34: Verified | N34: 0
B35: Home Assistance Program
A36: 21 | B36: Home Assistance Program | C36: Verified | D36: 0 | E36: 0 | F36: 1 | N36: =SUM(F36:M36) -> 1
B37: Pre-2011 Programs completed in 2011
A38: 22 | B38: Electricity Retrofit Incentive Program | C38: Verified | N38: =SUM(F38:M38) -> 0
A39: 23 | B39: High Performance New Construction | C39: Verified | N39: 0
A40: 24 | B40: Toronto Comprehensive | C40: Verified | N40: 0
A41: 25 | B41: Multifamily Energy Efficiency Rebates | C41: Verified | N41: 0
B42: Total kWh | D42: =SUM(D13:D20,D22:D27,D30:D33,D36,D38:D41) -> 45 | E42: =SUM(E13:E20,E22:E27,E30:E33,E36,E38:E41) -> 153518 | F42: =SUM(E13*F13,E14*F14,E15*F15,E16*F16,E17*F17,E18*F18,E19*F19,E20*F20,E36*F36) -> 76066 | G42: =SUM(E22*G22,E23*G23) -> 77175 | H42: =SUM($E$22*H22,$E$25*H25,$E$38*H38,$E$39*H39) -> 277 | I42: =SUM($E$22*I22,$E$38*I38,$E$39*I39) -> 0 | J42: =SUM($E$22*J22,$E$38*J38,$E$39*J39) -> 0 | K42: 0 | L42: 0 | N42: =SUM(F42:M42) -> 153518
A43: 12 | B43: Total GS > 50 kW excluding Demand Response 3 | H43: =SUM($D$22*H22,$D$38*H38,$D$39*H39)*$A43 -> 0 | I43: =SUM($D$22*I22,$D$38*I38,$D$39*I39)*$A43 -> 0 | J43: 0 | K43: 0 | L43: 0 | N43: =SUM(F43:M43) -> 0
A44: 5 | B44: Demand Response Total (Scenario 1) | D44: =SUM(D28,D34) -> 0 | E44: =SUM(E28,E34) -> 0 | H44: =SUM($D$28*H28,$D$34*H34)*$A44 -> 0 | I44: =SUM($D$28*I28,$D$34*I34)*$A44 -> 0 | J44: 0 | K44: 0 | L44: 0 | N44: =SUM(F44:M44) -> 0
B45: OPA-Contracted LDC Portfolio Total | D45: =SUM(D42:D44) -> 45 | E45: =SUM(E42:E44) -> 153518
B46: Rate | F46: ='6.0 Rates'!C15 -> 0.0139 | G46: ='6.0 Rates'!C16 -> 0.012 | H46: ='6.0 Rates'!C17 -> 3.260133333 | I46: ='6.0 Rates'!C18 -> 1.250466667 | J46: ='6.0 Rates'!C19 -> 59.48606667 | K46: ='6.0 Rates'!C20 -> 5.720766667 | L46: ='6.0 Rates'!C21 -> 0.0083
B47: Lost Revenue in 2011 | F47: =F42*F46 -> 1057.3174 | G47: =G42*G46 -> 926.1 | H47: =SUM(H43,H44)*H46 -> 0 | I47: =I43*I46 -> 0 | J47: 0 | K47: 0 | L47: 0 | N47: =SUM(F47:M47) -> 1983.4174
B48: 2011 Savings Persisting in 2012 | F48: =F42*'12.0 Persistence '!C45 -> 76066 | G48: =G42*'12.0 Persistence '!C45 -> 77175 | H48: =H43*'12.0 Persistence '!C24 -> 0 | I48: =I43*'12.0 Persistence '!C24 -> 0 | J48: =J43*'12.0 Persistence '!C24 -> 0 | K48: =K43*'12.0 Persistence '!C24 -> 0 | L48: =L43*'12.0 Persistence '!C45 -> 0
B49: 2011 Savings Persisting in 2013 | F49: =F42*'12.0 Persistence '!D45 -> 76066 | G49: =G42*'12.0 Persistence '!D45 -> 77175 | H49: =H43*'12.0 Persistence '!D24 -> 0 | I49: =I43*'12.0 Persistence '!D24 -> 0 | J49: =J43*'12.0 Persistence '!D24 -> 0 | K49: =K43*'12.0 Persistence '!D24 -> 0 | L49: =L43*'12.0 Persistence '!D45 -> 0
B50: 2011 Savings Persisting in 2014 | F50: =F42*'12.0 Persistence '!E45 -> 63757.13818 | G50: =G42*'12.0 Persistence '!E45 -> 64686.68182 | H50: =H43*'12.0 Persistence '!E24 -> 0 | I50: =I43*'12.0 Persistence '!E24 -> 0 | J50: =J43*'12.0 Persistence '!E24 -> 0 | K50: =K43*'12.0 Persistence '!E24 -> 0 | L50: =L43*'12.0 Persistence '!E45 -> 0
B52: Input program details, report status, kWh and kW net savings from OPA 2011 Final Annual Report Data - Table 5
B53: Input % allocation where applicable based on LDC information
B55: 2011 savings persisting - OPA 2011 Final Annual Report Data - Tables 6 and 7

Sheet 8.0 2012LostRev
A1: LRAMVA Model version 1.0 © CHEC
B6: Table 8: Allocation of Program Savings Across Rate Classes
G7: 2012
A10: # | B10: Initiative | C10: Results Status | D10: Net Incremental Peak Demand Savings (kW) | E10: Net Incremental Energy Savings (kWh) | F10: Rate Allocation for LRAMVA
D11: 2012 kW Saved | E11: 2012 kWh Saved | F11: ='3.0 LRAMVA Register'!B10 -> Residential | G11: ='3.0 LRAMVA Register'!C10 -> General Service < 50 kW | H11: ='3.0 LRAMVA Register'!D10 -> General Service 50 to 999 kW | I11: ='3.0 LRAMVA Register'!E10 -> General Service 1,000 to 4,999 kW | J11: ='3.0 LRAMVA Register'!F10 -> Sentinel Lighting | K11: ='3.0 LRAMVA Register'!G10 -> Street Lighting | L11: ='3.0 LRAMVA Register'!H10 -> Unmetered Scattered Load | M11: ='3.0 LRAMVA Register'!K10 -> other | N11: ='3.0 LRAMVA Register'!L10 -> Total
B12: Consumer Program
A13: 1 | B13: Appliance Retirement | C13: Verified | D13: 5 | E13: 38126.36 | F13: 1 | N13: =SUM(F13:M13) -> 1
A14: 2 | B14: Appliance Exchange | C14: Verified | D14: 2 | E14: 4034.11 | F14: 1 | N14: =SUM(F14:M14) -> 1
A15: 3 | B15: HVAC Incentives | C15: Verified | D15: 9 | E15: 16329.41 | F15: 1 | N15: 1
A16: 4 | B16: Conservation Instant Coupon Booklet | C16: Verified | D16: 0 | E16: 884.29 | F16: 1 | N16: 1
A17: 5 | B17: Bi-Annual Retailer Event | C17: Verified | D17: 1 | E17: 16938.02 | F17: 1 | N17: 1
A18: 6 | B18: Retailer Co-op | C18: Verified | N18: 0
A19: 7 | B19: Residential Demand Response (switch/pstat) | C19: Verified | N19: 0
A20: 8 | B20: Residential Demand Response (IHD) | C20: Verified | N20: =SUM(F20:M20) -> 0
A21: 9 | B21: Residential New Construction | C21: Verified | N21: 0
B22: 2011 True-up (Verified Errors & Omissions)
B23: HVAC Incentives | C23: True-Up | D23: 0 | E23: -1010.19 | F23: 1 | N23: 1
B24: Conservation Instant Coupon Booklet | C24: True-Up | D24: 0 | E24: 174 | F24: 1 | N24: 1
B25: Bi-Annual Retailer Event | C25: True-Up | D25: 0 | E25: 1380.88 | F25: 1 | N25: 1
B26: Business Program
A27: 10 | B27: Retrofit | C27: Verified | D27: 90.5272608 | E27: 306398.22 | H27: ='13.0 Rate Class Allocation'!$L$8 -> 0.2905130378 | I27: ='13.0 Rate Class Allocation'!$L$9 -> 0.7094869622 | N27: =SUM(F27:M27) -> 1
A28: 11 | B28: Direct Install Lighting | C28: Verified | D28: 26.184787 | E28: 106963.45 | G28: 1 | N28: 1
A29: 12 | B29: Building Commissioning | C29: Verified | N29: 0
A30: 13 | B30: New Construction | C30: Verified | N30: 0
A31: 14 | B31: Energy Audit | C31: Verified | N31: 0
A32: 15 | B32: Small Commercial Demand Response (switch/pstat)* | C32: Verified | N32: =SUM(F32:M32) -> 0
A33: 16 | B33: Small Commercial Demand Response (IHD) | C33: Verified | N33: 0
A34: 17 | B34: Demand Response 3 | C34: Verified | N34: 0
B35: 2011 True-up (Verified Errors & Omissions)
B36: Direct Install Lighting | C36: True-Up | D36: 0 | E36: 784.93 | G36: 1 | N36: 1
B37: Industrial Program
A38: 18 | B38: Process & System Upgrades | C38: Verified | N38: =SUM(F38:M38) -> 0
A39: 19 | B39: Monitoring & Targeting | C39: Verified | N39: 0
A40: 20 | B40: Energy Manager | C40: Verified | N40: 0
A41: 21 | B41: Retrofit | C41: Verified | N41: 0
A42: 22 | B42: Demand Response 3 | C42: Verified | N42: 0
B43: Home Assistance Program
A44: 23 | B44: Home Assistance Program | C44: Verified | D44: 1 | E44: 9813.13 | F44: 1 | N44: =SUM(F44:M44) -> 1
B45: Pre-2011 Programs completed in 2011
A46: 24 | B46: Electricity Retrofit Incentive Program | C46: Verified | N46: =SUM(F46:M46) -> 0
A47: 25 | B47: High Performance New Construction | C47: Verified | D47: 0 | E47: 69 | H47: 1 | N47: 1
A48: 26 | B48: Toronto Comprehensive | C48: Verified | N48: 0
A49: 27 | B49: Multifamily Energy Efficiency Rebates | C49: Verified | N49: 0
A50: 28 | B50: LDC Custom Programs | C50: Verified | N50: 0
B51: 2011 True-up (Verified Errors & Omissions)
B52: High Performance New Construction | C52: True-Up | D52: 0 | E52: 0 | H52: 1 | N52: =SUM(F52:M52) -> 1
B53: Other
A54: 29 | B54: Program Enabled Savings | C54: Verified | N54: =SUM(F54:M54) -> 0
A55: 30 | B55: Time-of-Use Savings | C55: Verified | N55: 0
B56: Total kWh | D56: =SUM(D13:D25,D27:D33,D35:D36,D38:D41,D44,D46:D52,D54:D55) -> 134.7120478 | E56: =SUM(E13:E25,E27:E33,E35:E36,E38:E41,E44,E46:E52,E54:E55) -> 500885.61 | F56: =SUM(E13*F13,E14*F14,E15*F15,E16*F16,E17*F17,E18*F18,E19*F19,E21*F21,E23*F23,E24*F24,E25*F25,E44*F44) -> 86670.01 | G56: =SUM(E27*G27,E28*G28,E36*G36) -> 107748.38 | H56: =SUM($E$27*H27,$E$46*H46,$E$47*H47,$E$52*H52) -> 89081.67766 | I56: =SUM($E$27*I27,$E$46*I46,$E$47*I47,$E$52*I52) -> 217385.5423 | J56: =SUM($E$27*J27,$E$46*J46,$E$47*J47,$E$52*J52) -> 0 | K56: =SUM($E$27*K27,$E$46*K46,$E$47*K47,$E$52*K52) -> 0 | L56: =SUM($E$27*L27,$E$46*L46,$E$47*L47,$E$52*L52) -> 0 | N56: =SUM(F56:M56) -> 500885.61
A57: 12 | B57: Total GS > 50 kW excluding Demand Response 3 | H57: =SUM($D$27*H27,$D$46*H46,$D$47*H47,$D$52*H52)*$A$57 -> 315.5921945 | I57: =SUM($D$27*I27,$D$46*I46,$D$47*I47,$D$52*I52)*$A$57 -> 770.7349352 | J57: =SUM($D$27*J27,$D$46*J46,$D$47*J47,$D$52*J52)*$A$57 -> 0 | K57: 0 | L57: 0 | N57: =SUM(F57:M57) -> 1086.32713
A58: 5 | B58: Demand Response Total (Scenario 1) | D58: =SUM(D34,D42) -> 0 | E58: =SUM(E34,E42) -> 0 | H58: =SUM($D$34*H34,$D$42*H42)*$A$58 -> 0 | I58: =SUM($D$34*I34,$D$42*I42)*$A$58 -> 0 | J58: 0 | K58: 0 | L58: 0 | N58: =SUM(F58:M58) -> 0
B59: OPA-Contracted LDC Portfolio Total | D59: =SUM(D56:D58) -> 134.7120478 | E59: =SUM(E56:E58) -> 500885.61
B60: Rate | F60: ='6.0 Rates'!D15 -> 0.014925 | G60: ='6.0 Rates'!D16 -> 0.0131 | H60: ='6.0 Rates'!D17 -> 3.33855 | I60: ='6.0 Rates'!D18 -> 1.398975 | J60: ='6.0 Rates'!D19 -> 49.358275 | K60: ='6.0 Rates'!D20 -> 6.2231 | L60: ='6.0 Rates'!D21 -> 0.009775
B61: Lost Revenue in 2012 from 2012 | F61: =F56*F60 -> 1293.549899 | G61: =G56*G60 -> 1411.503778 | H61: =SUM(H57,H58)*H60 -> 1053.620321 | I61: =SUM(I57,I58)*I60 -> 1078.238906 | J61: =J57*J60 -> 0 | K61: 0 | L61: 0 | N61: =SUM(F61:M61) -> 4836.912904
B62: Lost Revenue in 2012 from 2011 | F62: ='7.0 2011LostRev'!F48*F60 -> 1135.28505 | G62: ='7.0 2011LostRev'!G48*G60 -> 1010.9925 | H62: ='7.0 2011LostRev'!H48*H60 -> 0 | I62: ='7.0 2011LostRev'!I48*I60 -> 0 | J62: ='7.0 2011LostRev'!J48*J60 -> 0 | K62: ='7.0 2011LostRev'!K48*K60 -> 0 | L62: ='7.0 2011LostRev'!L48*L60 -> 0 | N62: =SUM(F62:M62) -> 2146.27755
B63: Total Lost Revenue in 2012 | F63: =SUM(F61:F62) -> 2428.834949 | G63: =SUM(G61:G62) -> 2422.496278 | H63: =SUM(H61:H62) -> 1053.620321 | I63: 1078.238906 | J63: 0 | K63: 0 | L63: 0 | N63: =SUM(N61:N62) -> 6983.190454
B64: 2012 Savings Persisting in 2013 | F64: =F56*'12.0 Persistence '!D46 -> 86670.01 | G64: =G56*'12.0 Persistence '!D46 -> 107748.38 | H64: =H57*'12.0 Persistence '!D25 -> 315.5921945 | I64: =I57*'12.0 Persistence '!D25 -> 770.7349352 | J64: =J57*'12.0 Persistence '!D25 -> 0 | K64: =K57*'12.0 Persistence '!D25 -> 0 | L64: =L57*'12.0 Persistence '!D46 -> 0
B65: 2012 Savings Persisting in 2014 | F65: =F56*'12.0 Persistence '!E46 -> 86670.01 | G65: =G56*'12.0 Persistence '!E46 -> 107748.38 | H65: =H57*'12.0 Persistence '!E25 -> 315.5921945 | I65: =I57*'12.0 Persistence '!E25 -> 770.7349352 | J65: =J57*'12.0 Persistence '!E25 -> 0 | K65: =K57*'12.0 Persistence '!E25 -> 0 | L65: =L57*'12.0 Persistence '!E46 -> 0
B67: Input program details, report status, kWh and kW net savings from Final Verified Annual 2012 CDM Report_WellingtonNorth Power Inc/Table 1 2012 Savings & Table 2 (Adjustments due to Errors and Omissions)
B68: Input % allocation where applicable based on LDC information
B70: 2012 savings persisting - OPA 2012 Gross to Net Savings Report Data

Sheet 9.0 2013LostRev
A1: LRAMVA Model version 1.0 © CHEC
A6: Table 9: Allocation of Program Savings Across Rate Classes
G7: 2013
A10: # | B10: Initiative | C10: Results Status | D10: Net Incremental Peak Demand Savings (kW) | E10: Net Incremental Energy Savings (kWh) | F10: Rate Allocation for LRAMVA
D11: 2013 kW Saved | E11: 2013 kWh Saved | F11: ='3.0 LRAMVA Register'!B10 -> Residential | G11: ='3.0 LRAMVA Register'!C10 -> General Service < 50 kW | H11: ='3.0 LRAMVA Register'!D10 -> General Service 50 to 999 kW | I11: ='3.0 LRAMVA Register'!E10 -> General Service 1,000 to 4,999 kW | J11: ='3.0 LRAMVA Register'!F10 -> Sentinel Lighting | K11: ='3.0 LRAMVA Register'!G10 -> Street Lighting | L11: ='3.0 LRAMVA Register'!H10 -> Unmetered Scattered Load | M11: ='3.0 LRAMVA Register'!K10 -> other | N11: ='3.0 LRAMVA Register'!L10 -> Total
B12: Consumer Program
A13: 1 | B13: Appliance Retirement | C13: Verified | D13: ='Appdx A IESO LDC-Results (Net)'!K7 -> 2.767 | E13: ='Appdx A IESO LDC-Results (Net)'!P7 -> 18331.207 | F13: 1 | N13: =SUM(F13:M13) -> 1
A14: 2 | B14: Appliance Exchange | C14: Verified | N14: =SUM(F14:M14) -> 0
A15: 3 | B15: HVAC Incentives | C15: Verified | D15: ='Appdx A IESO LDC-Results (Net)'!K9 -> 6.086 | E15: ='Appdx A IESO LDC-Results (Net)'!P9 -> 11501.814 | F15: 1 | N15: 1
A16: 4 | B16: Conservation Instant Coupon Booklet | C16: Verified | E16: ='Appdx A IESO LDC-Results (Net)'!P10 -> 4874.639 | F16: 1 | N16: 1
A17: 5 | B17: Bi-Annual Retailer Event | C17: Verified | D17: ='Appdx A IESO LDC-Results (Net)'!K11 -> 0.749 | E17: ='Appdx A IESO LDC-Results (Net)'!P11 -> 10865.355 | F17: 1 | N17: 1
A18: 6 | B18: Retailer Co-op | C18: Verified | N18: 0
A19: 7 | B19: Residential Demand Response (switch/pstat) | C19: Verified | N19: 0
A20: 8 | B20: Residential Demand Response (IHD) | C20: Verified | N20: 0
A21: 9 | B21: Residential New Construction | C21: Verified | N21: 0
B22: 2012 True-up (Verified Errors & Omissions) | N22: 0
B23: HVAC Incentives | C23: True-Up | E23: ='Appdx B IESO_LDCAdjustment(Net)'!O9 -> 5.249 | F23: 1 | N23: 1
C24: True-Up | N24: 0
C25: True-Up | N25: 0
B26: Business Program
A27: 10 | B27: Retrofit | C27: Verified | D27: ='Appdx A IESO LDC-Results (Net)'!K19 -> 13.387 | E27: ='Appdx A IESO LDC-Results (Net)'!P19 -> 67697.283 | H27: ='13.0 Rate Class Allocation'!$L$21 -> 0.848327803 | I27: ='13.0 Rate Class Allocation'!$L$22 -> 0.151672197 | N27: =SUM(F27:M27) -> 1
A28: 11 | B28: Direct Install Lighting | C28: Verified | D28: ='Appdx A IESO LDC-Results (Net)'!K20 -> 7.342 | E28: ='Appdx A IESO LDC-Results (Net)'!P20 -> 24280.908 | G28: 1 | N28: 1
A29: 12 | B29: Building Commissioning | C29: Verified | N29: 0
A30: 13 | B30: New Construction | C30: Verified | N30: 0
A31: 14 | B31: Energy Audit | C31: Verified | N31: 0
A32: 15 | B32: Small Commercial Demand Response (switch/pstat)* | C32: Verified | N32: 0
A33: 16 | B33: Small Commercial Demand Response (IHD) | C33: Verified | N33: 0
A34: 17 | B34: Demand Response 3 | C34: Verified | N34: 0
B35: 2012 True-up (Verified Errors & Omissions) | N35: 0
B36: Retrofit | C36: True-Up | D36: ='Appdx B IESO_LDCAdjustment(Net)'!J19 -> 24.215 | E36: ='Appdx B IESO_LDCAdjustment(Net)'!O19 -> 154111.161 | I36: ='13.0 Rate Class Allocation'!L30 -> 1 | N36: 1
B37: Direct Install Lighting | C37: True-Up | D37: ='Appdx B IESO_LDCAdjustment(Net)'!J20 -> 1.913 | E37: ='Appdx B IESO_LDCAdjustment(Net)'!O20 -> 6819.646 | G37: 1 | N37: 1
C38: True-Up | N38: 0
B39: Industrial Program
A40: 18 | B40: Process & System Upgrades | C40: Verified | N40: =SUM(F40:M40) -> 0
A41: 19 | B41: Monitoring & Targeting | C41: Verified | N41: 0
A42: 20 | B42: Energy Manager | C42: Verified | N42: 0
A43: 21 | B43: Retrofit | C43: Verified | N43: 0
A44: 22 | B44: Demand Response 3 | C44: Verified | N44: 0
B45: 2012 True-up (Verified Errors & Omissions) | N45: 0
C46: True-Up | N46: 0
B47: Home Assistance Program
A48: 23 | B48: Home Assistance Program | C48: Verified | D48: ='Appdx A IESO LDC-Results (Net)'!K38 -> 5.057 | E48: ='Appdx A IESO LDC-Results (Net)'!P38 -> 55483.524 | F48: 1 | N48: =SUM(F48:M48) -> 1
B49: 2012 True-up (Verified Errors & Omissions) | N49: 0
B50: Home Assistance Program | C50: True-Up | N50: 0
B51: Pre-2011 Programs completed in 2011
A52: 24 | B52: Electricity Retrofit Incentive Program | C52: Verified | N52: =SUM(F52:M52) -> 0
A53: 25 | B53: High Performance New Construction | C53: Verified | N53: 0
A54: 26 | B54: Toronto Comprehensive | C54: Verified | N54: 0
A55: 27 | B55: Multifamily Energy Efficiency Rebates | C55: Verified | N55: 0
A56: 28 | B56: LDC Custom Programs | C56: Verified | N56: 0
B57: 2012 True-up (Verified Errors & Omissions) | N57: 0
C58: True-Up | N58: 0
B59: Other
A60: 29 | B60: Program Enabled Savings | C60: Verified | N60: =SUM(F60:M60) -> 0
A61: 30 | B61: Time-of-Use Savings | C61: Verified | N61: 0
B62: Total kWh | D62: =SUM(D13:D25,D27:D38,D40:D46,D48:D50,D52:D58,D60:D61) -> 61.516 | E62: =SUM(E13:E25,E27:E33,E35:E38,E40:E43,E45:E46,E48:E50,E52:E58,E60:E61) -> 353970.786 | F62: =SUM($E$13*F13,$E$14*F14,$E$15*F15,$E$16*F16,$E$17*F17,$E$18*F18,$E$19*F19,$E$21*F21,$E$48*F48,$E$23*F23,$E$24*F24,$E$25*F25,$E$50*F50) -> 101061.788 | G62: =SUM($E$27*G27,$E$28*G28,$E$29*G29,$E$30*G30,$E$31*G31,$E$36*G36,$E$37*G37,$E$38*G38) -> 31100.554 | H62: =SUM($E$27*H27,$E$34*H34,$E$44*H44,$E$52*H52,$E$53*H53,$E$28*H28,$E$29*H29,$E$30*H30,$E$31*H31,$E$36*H36,$E$37*H37,$E$38*H38,$E$46*H46,$E$58*H58) -> 57429.48736 | I62: =SUM($E$27*I27,$E$34*I34,$E$44*I44,$E$52*I52,$E$53*I53,$E$28*I28,$E$29*I29,$E$30*I30,$E$31*I31,$E$36*I36,$E$37*I37,$E$38*I38,$E$46*I46,$E$58*I58) -> 164378.9566 | J62: =SUM($E$27*J27,$E$34*J34,$E$44*J44,$E$52*J52,$E$53*J53,$E$28*J28,$E$29*J29,$E$30*J30,$E$31*J31,$E$36*J36,$E$37*J37,$E$38*J38,$E$46*J46,$E$58*J58) -> 0 | K62: =SUM($E$27*K27,$E$34*K34,$E$44*K44,$E$52*K52,$E$53*K53,$E$28*K28,$E$29*K29,$E$30*K30,$E$31*K31,$E$36*K36,$E$37*K37,$E$38*K38,$E$46*K46,$E$58*K58) -> 0 | L62: =SUM($E$27*L27,$E$34*L34,$E$44*L44,$E$52*L52,$E$53*L53,$E$28*L28,$E$29*L29,$E$30*L30,$E$31*L31,$E$36*L36,$E$37*L37,$E$38*L38,$E$46*L46,$E$58*L58) -> 0 | N62: =SUM(F62:M62) -> 353970.786
A63: 12 | B63: Total GS > 50 kW excluding Demand Response 3 | H63: =SUM($D$27*H27,$D$52*H52,$D$53*H53,D36*$H$36)*$A63 -> 136.2787716 | I63: =SUM($D$27*I27,$D$52*I52,$D$53*I53,D36*$I$36)*$A63 -> 314.9452284 | J63: =SUM($D$27*J27,$D$52*J52,$D$53*J53)*$A63 -> 0 | K63: =SUM($D$27*K27,$D$52*K52,$D$53*K53)*$A63 -> 0 | L63: =SUM($D$27*L27,$D$52*L52,$D$53*L53)*$A63 -> 0 | N63: =SUM(F63:M63) -> 451.224
A64: 5 | B64: Demand Response Total (Scenario 1) | D64: =SUM(D34,D44) -> 0 | E64: =SUM(E34,E44) -> 0 | H64: =SUM($D$34*H34,$D$44*H44)*$A64 -> 0 | I64: =SUM($D$34*I34,$D$44*I44)*$A64 -> 0 | J64: =SUM($D$34*J34,$D$44*J44)*$A64 -> 0 | K64: =SUM($D$34*K34,$D$44*K44)*$A64 -> 0 | L64: =SUM($D$34*L34,$D$44*L44)*$A64 -> 0 | N64: =SUM(F64:M64) -> 0
B65: OPA-Contracted LDC Portfolio Total | D65: =SUM(D62:D64) -> 61.516 | E65: =SUM(E62:E64) -> 353970.786
B66: Rate | F66: ='6.0 Rates'!E15 -> 0.01806666667 | G66: ='6.0 Rates'!E16 -> 0.0164 | H66: ='6.0 Rates'!E17 -> 3.574566667 | I66: ='6.0 Rates'!E18 -> 1.845766667 | J66: ='6.0 Rates'!E19 -> 18.9032 | K66: ='6.0 Rates'!E20 -> 7.7342 | L66: ='6.0 Rates'!E21 -> 0.0142
B67: Lost Revenue in 2013 from 2013 | F67: =F62*F66 -> 1825.849637 | G67: =G62*G66 -> 510.0490856 | H67: =SUM(H63,H64)*H66 -> 487.1375543 | I67: =SUM(I63,I64)*I66 -> 581.3154044 | J67: =J63*J66 -> 0 | K67: 0 | L67: =L63*L66 -> 0 | N67: =SUM(F67:M67) -> 3404.351681
B68: Lost Revenue in 2013 from 2012 | F68: ='8.0 2012LostRev'!F64*F66 -> 1565.838181 | G68: ='8.0 2012LostRev'!G64*G66 -> 1767.073432 | H68: ='8.0 2012LostRev'!H64*H66 -> 1128.105339 | I68: ='8.0 2012LostRev'!I64*I66 -> 1422.596852 | J68: ='8.0 2012LostRev'!J64*J66 -> 0 | K68: ='8.0 2012LostRev'!K64*K66 -> 0 | L68: ='8.0 2012LostRev'!L64*L66 -> 0 | N68: =SUM(F68:M68) -> 5883.613803
B69: Lost Revenue in 2013 from 2011 | F69: ='7.0 2011LostRev'!F49*F66 -> 1374.259067 | G69: ='7.0 2011LostRev'!G49*G66 -> 1265.67 | H69: ='7.0 2011LostRev'!H49*H66 -> 0 | I69: ='7.0 2011LostRev'!I49*I66 -> 0 | J69: ='7.0 2011LostRev'!J49*J66 -> 0 | K69: ='7.0 2011LostRev'!K49*K66 -> 0 | L69: ='7.0 2011LostRev'!L49*L66 -> 0 | N69: 2639.929067
B70: Total Lost Revenue in 2013 | F70: =SUM(F67:F69) -> 4765.946884 | G70: =SUM(G67:G69) -> 3542.792518 | H70: 1615.242893 | I70: 2003.912257 | J70: 0 | K70: 0 | L70: 0 | N70: =SUM(N67:N69) -> 11927.89455
B71: 2013 Savings Persisting in 2014 | F71: =F62*'12.0 Persistence '!E47 -> 100205.3322 | G71: =G62*'12.0 Persistence '!E47 -> 30836.98998 | H71: =H63*'12.0 Persistence '!E26 -> 134.0807269 | I71: =I63*'12.0 Persistence '!E26 -> 309.8654667 | J71: =J63*'12.0 Persistence '!E26 -> 0 | K71: =K63*'12.0 Persistence '!E26 -> 0 | L71: =L63*'12.0 Persistence '!E47 -> 0
B73: Input program details, report status, kWh and kW net savings from OPA Final Annual Report
B74: Input % allocation where applicable based on LDC information
B76: 2013 savings persisting - - OPA 2013 Gross to Net Savings Report Data

Sheet 10.0 2014LostRev
A1: LRAMVA Model version 1.0 © CHEC
A6: Table 10: Allocation of Program Savings Across Rate Classes
G7: 2014
A10: # | B10: Initiative | C10: Results Status | D10: Net Incremental Peak Demand Savings (kW) | E10: Net Incremental Energy Savings (kWh) | F10: Rate Allocation for LRAMVA
D11: 2014 kW Saved | E11: 2014 kWh Saved | F11: ='3.0 LRAMVA Register'!B10 -> Residential | G11: ='3.0 LRAMVA Register'!C10 -> General Service < 50 kW | H11: ='3.0 LRAMVA Register'!D10 -> General Service 50 to 999 kW | I11: ='3.0 LRAMVA Register'!E10 -> General Service 1,000 to 4,999 kW | J11: ='3.0 LRAMVA Register'!F10 -> Sentinel Lighting | K11: ='3.0 LRAMVA Register'!G10 -> Street Lighting | L11: ='3.0 LRAMVA Register'!H10 -> Unmetered Scattered Load | M11: ='3.0 LRAMVA Register'!K10 -> other | N11: ='3.0 LRAMVA Register'!L10 -> Total
B12: Consumer Program
A13: 1 | B13: Appliance Retirement | C13: Verified | D13: ='Appdx A IESO LDC-Results (Net)'!L7 -> 3.404 | E13: ='Appdx A IESO LDC-Results (Net)'!Q7 -> 21442.065 | F13: 1 | N13: =SUM(F13:M13) -> 1
A14: 2 | B14: Appliance Exchange | C14: Verified | E14: ='Appdx A IESO LDC-Results (Net)'!Q8 -> 369.44 | F14: 1 | N14: =SUM(F14:M14) -> 1
A15: 3 | B15: HVAC Incentives | C15: Verified | D15: ='Appdx A IESO LDC-Results (Net)'!L9 -> 6.189 | E15: ='Appdx A IESO LDC-Results (Net)'!Q9 -> 11844.563 | F15: 1 | N15: 1
A16: 4 | B16: Conservation Instant Coupon Booklet | C16: Verified | D16: ='Appdx A IESO LDC-Results (Net)'!L10 -> 1.366 | E16: ='Appdx A IESO LDC-Results (Net)'!Q10 -> 18352.136 | F16: 1 | N16: 1
A17: 5 | B17: Bi-Annual Retailer Event | C17: Verified | D17: ='Appdx A IESO LDC-Results (Net)'!L11 -> 5.087 | E17: ='Appdx A IESO LDC-Results (Net)'!Q11 -> 77729.606 | F17: 1 | N17: 1
A18: 6 | B18: Retailer Co-op | C18: Verified | N18: 0
A19: 7 | B19: Residential Demand Response (switch/pstat) | C19: Verified | D19: ='Appdx A IESO LDC-Results (Net)'!L13 -> 2.112 | F19: 1 | N19: 1
A20: 8 | B20: Residential Demand Response (IHD) | C20: Verified | N20: 0
A21: 9 | B21: Residential New Construction | C21: Verified | N21: 0
B22: 2013 True-up (Verified Errors & Omissions) | N22: 0
B23: HVAC Incentives | C23: True-Up | E23: ='Appdx B IESO_LDCAdjustment(Net)'!P9 -> 510.5523218 | F23: 1
B24: Conservation Instant Coupon Booklet | C24: True-Up | E24: ='Appdx B IESO_LDCAdjustment(Net)'!P10 -> 15 | F24: 1
B25: Business Program
A26: 10 | B26: Retrofit | C26: Verified | D26: ='Appdx A IESO LDC-Results (Net)'!L19 -> 30.323 | E26: ='Appdx A IESO LDC-Results (Net)'!Q19 -> 98760.603 | H26: ='13.0 Rate Class Allocation'!$L$37 -> 0.4572531632 | I26: ='13.0 Rate Class Allocation'!$L$38 -> 0.5427468368 | N26: =SUM(F26:M26) -> 1
A27: 11 | B27: Direct Install Lighting | C27: Verified | D27: ='Appdx A IESO LDC-Results (Net)'!L20 -> 23.665 | E27: ='Appdx A IESO LDC-Results (Net)'!Q20 -> 92722.574 | G27: 1 | N27: 1
A28: 12 | B28: Building Commissioning | C28: Verified | N28: 0
A29: 13 | B29: New Construction | C29: Verified | N29: 0
A30: 14 | B30: Energy Audit | C30: Verified | N30: 0
A31: 15 | B31: Small Commercial Demand Response (switch/pstat)* | C31: Verified | D31: ='Appdx A IESO LDC-Results (Net)'!L24 -> 0.548 | G31: 1 | N31: 1
A32: 16 | B32: Small Commercial Demand Response (IHD) | C32: Verified | N32: 0
A33: 17 | B33: Demand Response 3 | C33: Verified | N33: 0
B34: 2013 True-up (Verified Errors & Omissions) | N34: 0
C35: True-Up
B36: Industrial Program
A37: 18 | B37: Process & System Upgrades | C37: Verified | N37: =SUM(F37:M37) -> 0
A38: 19 | B38: Monitoring & Targeting | C38: Verified | N38: 0
A39: 20 | B39: Energy Manager | C39: Verified | N39: 0
A40: 21 | B40: Retrofit | C40: Verified | N40: 0
A41: 22 | B41: Demand Response 3 | C41: Verified | N41: 0
B42: 2013 True-up (Verified Errors & Omissions) | N42: 0
C43: True-Up
B44: Home Assistance Program
A45: 23 | B45: Home Assistance Program | C45: Verified | E45: ='Appdx A IESO LDC-Results (Net)'!Q38 -> 1976.129 | F45: 1 | N45: =SUM(F45:M45) -> 1
B46: 2012 True-up (Verified Errors & Omissions) | N46: =SUM(F46:M46) -> 0
B47: Home Assistance Program | C47: True-Up | D47: ='Appdx B IESO_LDCAdjustment(Net)'!J38 -> 1.805 | E47: ='Appdx B IESO_LDCAdjustment(Net)'!O38 -> 8727.839 | F47: 1
B48: 2013 True-up (Verified Errors & Omissions) | N48: 0
C49: True-Up
B50: Pre-2011 Programs completed in 2011
A51: 24 | B51: Electricity Retrofit Incentive Program | C51: Verified | N51: =SUM(F51:M51) -> 0
A52: 25 | B52: High Performance New Construction | C52: Verified | N52: 0
A53: 26 | B53: Toronto Comprehensive | C53: Verified | N53: 0
A54: 27 | B54: Multifamily Energy Efficiency Rebates | C54: Verified | N54: 0
A55: 28 | B55: LDC Custom Programs | C55: Verified | N55: 0
B56: 2013 True-up (Verified Errors & Omissions) | N56: 0
C57: True-Up
B58: Other
A59: 29 | B59: Program Enabled Savings | C59: Verified | N59: =SUM(F59:M59) -> 0
A60: 30 | B60: Time-of-Use Savings | C60: Verified | D60: ='Appdx A IESO LDC-Results (Net)'!L56 -> 38.314 | N60: 0
A61: 31 | B61: LDC Pilots | C61: Verified | N61: =SUM(F61:M61) -> 0
B62: 2013 True-up (Verified Errors & Omissions) | N62: 0
B63: Program Enabled Savings | C63: True-Up | D63: ='Appdx B IESO_LDCAdjustment(Net)'!K55 -> 135
B64: Total kWh | D64: =SUM(D13:D24,D26:D35,D37:D43,D45:D49,D51:D57,D59:D63) -> 247.813 | E64: =SUM(E13:E24,E26:E32,E37:E40,E45:E49,E51:E55,E59:E60) -> 332450.5073 | F64: =SUM(E13*F13,E14*F14,E15*F15,E16*F16,E17*F17,E18*F18,E19*F19,E21*F21,E23*F23,E24*F24,E45*F45,E47*F47) -> 140967.3303 | G64: =SUM(E26*G26,E27*G27) -> 92722.574 | H64: =SUM(E26*H26,E33*H33,E41*H41,E51*H51,E52*H52) -> 45158.59812 | I64: =SUM(E26*I26,E33*I33,E41*I41,E51*I51,E52*I52) -> 53602.00488 | N64: =SUM(F64:M64) -> 332450.5073
A65: 12 | B65: Total GS > 50 kW excluding Demand Response 3 | H65: =SUM(D26*H26,D51*H51,D52*H52)*$A65 -> 166.383452 | I65: =SUM(D26*I26,D51*I51,D52*I52)*$A65 -> 197.492548 | N65: =SUM(F65:M65) -> 363.876
A66: 5 | B66: Demand Response Total (Scenario 1) | D66: =SUM(D33,D41) -> 0 | E66: =SUM(E33,E41) -> 0 | H66: =SUM(D33*H33,D41*H41)*$A66 -> 0 | I66: =SUM(D33*I33,D41*I41)*$A66 -> 0 | N66: =SUM(F66:M66) -> 0
B67: OPA-Contracted LDC Portfolio Total | D67: =SUM(D64:D66) -> 247.813 | E67: =SUM(E64:E66) -> 332450.5073
B68: Rate | F68: ='6.0 Rates'!F15 -> 0.01823333333 | G68: ='6.0 Rates'!F16 -> 0.01653333333 | H68: ='6.0 Rates'!F17 -> 3.6077 | I68: ='6.0 Rates'!F18 -> 1.8629 | J68: ='6.0 Rates'!F19 -> 19.07846667 | K68: ='6.0 Rates'!F20 -> 7.805933333 | L68: ='6.0 Rates'!F21 -> 0.01433333333
B69: Lost Revenue in 2014 from 2014 | F69: =F64*F68 -> 2570.304323 | G69: =G64*G68 -> 1533.013223 | H69: =SUM(H65,H66)*H68 -> 600.2615799 | I69: =SUM(I65,I66)*I68 -> 367.9088676 | J69: =J65*J68 -> 0 | K69: 0 | L69: 0 | N69: =SUM(F69:M69) -> 5071.487994
B70: Lost Revenue in 2014 from 2013 | F70: ='9.0 2013LostRev'!F71*F68 -> 1827.077223 | G70: ='9.0 2013LostRev'!G71*G68 -> 509.8382344 | H70: ='9.0 2013LostRev'!H71*H68 -> 483.7230384 | I70: ='9.0 2013LostRev'!I71*I68 -> 577.2483779 | J70: ='9.0 2013LostRev'!J71*J68 -> 0 | K70: ='9.0 2013LostRev'!K71*K68 -> 0 | L70: ='9.0 2013LostRev'!L71*L68 -> 0 | N70: =SUM(F70:M70) -> 3397.886874
B71: Lost Revenue in 2014 from 2012 | F71: ='8.0 2012LostRev'!F65*F68 -> 1580.283182 | G71: ='8.0 2012LostRev'!G65*G68 -> 1781.439883 | H71: ='8.0 2012LostRev'!H65*H68 -> 1138.56196 | I71: ='8.0 2012LostRev'!I65*I68 -> 1435.802111 | J71: ='8.0 2012LostRev'!J65*J68 -> 0 | K71: ='8.0 2012LostRev'!K65*K68 -> 0 | L71: ='8.0 2012LostRev'!L65*L68 -> 0 | N71: =SUM(F71:M71) -> 5936.087136
B72: Lost Revenue in 2014 from 2011 | F72: ='7.0 2011LostRev'!F50*F68 -> 1162.505153 | G72: ='7.0 2011LostRev'!G50*G68 -> 1069.486473 | H72: ='7.0 2011LostRev'!H50*H68 -> 0 | I72: ='7.0 2011LostRev'!I50*I68 -> 0 | J72: ='7.0 2011LostRev'!J50*J68 -> 0 | K72: ='7.0 2011LostRev'!K50*K68 -> 0 | L72: ='7.0 2011LostRev'!L50*L68 -> 0 | N72: 2231.991626
B73: Total Lost Revenue in 2014 | F73: =SUM(F69:F72) -> 7140.169881 | G73: =SUM(G69:G72) -> 4893.777813 | H73: 2222.546578 | I73: 2380.959356 | J73: 0 | K73: 0 | L73: 0 | N73: =SUM(N69:N72) -> 16637.45363
B75: Input program details, report status, kWh and kW net savings from OPA Final Annual Report
B76: Input % allocation where applicable based on LDC information

Sheet 11.0 Savings Validation
A1: LRAMVA Model version 1.0 © CHEC
A6: Table 11: Validation of kW Savings Compared to Final IESO Published Report for 2011-2014 Programs
B8: Peak Demand Savings (kW)
A9: Program Year | B9: 2011 | C9: 2012 | D9: 2013 | E9: 2014
A11: Total | B11: ='7.0 2011LostRev'!D42 -> 45 | C11: ='8.0 2012LostRev'!D56 -> 134.7120478 | D11: ='9.0 2013LostRev'!D62-D13 -> 35.388
A12: Adjustments to 2011 Verified Results
A13: Adjustments to 2012 Verified Results | D13: =SUM('9.0 2013LostRev'!D36:D37) -> 26.128
A14: Adjustments to 2013 Verified Results
A16: OPA - Contracted LDC Portfolio (inc. Adjustments): | B16: =SUM(B11:B14) -> 45 | C16: =SUM(C11:C14) -> 134.7120478 | D16: 61.516
A18: Check to IESO LDC Report | F18: Total kW Variance
A19: kW Variance: Above table Compared to IESO Issued LDC Report | B19: =B16-'Appdx A IESO LDC-Results (Net)'!I67 -> 0.037 | C19: =C16-'Appdx A IESO LDC-Results (Net)'!J67 -> 0.2370478036 | D19: =D16-'Appdx A IESO LDC-Results (Net)'!K67 -> -0.329 | F19: =SUM(B19:E19) -> -0.05495219636
A22: Table 12: Validation of kWh Savings Compared to Final IESO Published Report for 2011-2014 Programs
A24: Wellington North Power Inc.'s calculations: | H24: Wellington North Power Inc.'s calculations:
B25: Net Energy Savings (kWh) Per Year | I25: Net Incremental Energy Savings (kWh)
A26: Program Year | B26: 2011 | C26: 2012 | D26: 2013 | E26: 2014 | H26: Implementation Year | I26: 2011 | J26: 2012 | K26: 2013 | L26: 2014 | M26: Total
A28: Total | B28: ='7.0 2011LostRev'!E42 -> 153518 | C28: ='8.0 2012LostRev'!E56-C29 -> 499555.99 | D28: ='9.0 2013LostRev'!E62-D30 -> 193034.73 | H28: 2011 | I28: =B28+C29 -> 154847.62 | J28: =$I$28*'12.0 Persistence '!C45 -> 154847.62 | K28: =$I$28*'12.0 Persistence '!D45 -> 154847.62 | L28: =$I$28*'12.0 Persistence '!E45 -> 129790.4597 | M28: =SUM(I28:L28) -> 594333.3197
A29: Adjustments to 2011 Verified Results | C29: =SUM('8.0 2012LostRev'!E23:E25,'8.0 2012LostRev'!E36) -> 1329.62 | H29: 2012 | J29: =C28+D30+E30 -> 660492.046 | K29: =$J$29*'12.0 Persistence '!D46 -> 660492.046 | L29: =$J$29*'12.0 Persistence '!E46 -> 660492.046 | M29: =SUM(I29:L29) -> 1981476.138
A30: Adjustments to 2012 Verified Results | D30: =SUM('9.0 2013LostRev'!E23,'9.0 2013LostRev'!E36:E37) -> 160936.056 | H30: 2013 | K30: =D28+E31 -> 193034.73 | L30: =K30*'Appdx C IESO Summary'!E34 -> 191398.8425 | M30: 384433.5725
A31: Adjustments to 2013 Verified Results | H31: 2014
A32: OPA - Contracted LDC Portfolio (inc. Adjustments): | B32: =SUM(B28:B31) -> 153518 | C32: =SUM(C28:C31) -> 500885.61 | D32: =SUM(D28:D31) -> 353970.786 | H32: Total kWh Energy Savings (2011-2013): | I32: =SUM(I28:I31) -> 154847.62 | J32: =SUM(J28:J31) -> 815339.666 | K32: =SUM(K28:K31) -> 1008374.396 | M32: =SUM(M28:M31) -> 2960243.03
A35: IESO (OPA) Report LDC Report - Summarized version: (details please see Appendix A, B, C in workbook) | H35: IESO (OPA) Report LDC Report - Summarized version: (details please see Appendix A, B, C in workbook)
A36: IESO issued LDC Report (1st Sept 2015) | B36: ='Appdx A IESO LDC-Results (Net)'!N67 -> 153517.855 | C36: ='Appdx A IESO LDC-Results (Net)'!O67 -> 500886.173 | D36: ='Appdx A IESO LDC-Results (Net)'!P67 -> 353970.787 | I36: Net Incremental Energy Savings (kWh)
A37: Variance - WNP calculations to IESO LDC Report | F37: Total kWh Variance | H37: Implementation Year | I37: 2011 | J37: 2012 | K37: 2013 | L37: 2014 | M37: Total
A38: kWh Variance: Above table Compared to IESO Issued LDC Report | B38: =B32-B36 -> 0.145 | C38: =C32-'Appdx A IESO LDC-Results (Net)'!O67 -> -0.563 | D38: =D32-'Appdx A IESO LDC-Results (Net)'!P67 -> -0.001000000047 | F38: =SUM(B38:E38) -> -0.4190000001 | H38: 2011 | I38: ='Appdx A IESO LDC-Results (Net)'!N64+'Appdx A IESO LDC-Results (Net)'!O66 -> 154847.811 | J38: =I38*'Appdx C IESO Summary'!C32 -> 154847.811 | K38: =J38*'Appdx C IESO Summary'!D32 -> 154847.811 | L38: =K38*'Appdx C IESO Summary'!E32 -> 129790.6198 | M38: =SUM(I38:L38) -> 594334.0528
H39: 2012 | J39: ='Appdx A IESO LDC-Results (Net)'!O64+'Appdx A IESO LDC-Results (Net)'!P66 -> 660492.274 | K39: =$J$39*'Appdx C IESO Summary'!D33 -> 660492.274 | L39: =$J$39*'Appdx C IESO Summary'!E33 -> 660492.274 | M39: =SUM(I39:L39) -> 1981476.822
H40: 2013 | K40: ='Appdx A IESO LDC-Results (Net)'!P64 -> 193034.73 | L40: =$K$40*'Appdx C IESO Summary'!E34 -> 191398.8425 | M40: 384433.5725
H41: 2014 | M41: 0
H42: Total | I42: ='Appdx A IESO LDC-Results (Net)'!N67+'Appdx A IESO LDC-Results (Net)'!O66 -> 154847.811 | J42: ='Appdx A IESO LDC-Results (Net)'!N67+'Appdx A IESO LDC-Results (Net)'!O67+'Appdx A IESO LDC-Results (Net)'!P66 -> 815340.085 | K42: ='Appdx A IESO LDC-Results (Net)'!N67+'Appdx A IESO LDC-Results (Net)'!O67+'Appdx A IESO LDC-Results (Net)'!P67 -> 1008374.815 | M42: =SUM(M38:M41) -> 2960244.447
I43: Variance - WNP calculations to IESO LDC Report | M43: Total kWh Variance
H44: kWh Variance: Above table Compared to IESO Issued LDC Report | I44: =I32-I42 -> -0.191 | J44: =J32-J42 -> -0.4190000001 | K44: =K32-K42 -> -0.4190000001 | M44: =M32-M42 -> -1.417092728
A45: Note:
A46: IESO Report was provided to Wellington North Power on September 1st 2015 [2011-2014 Final Results Report_Wellington North Power]. A copy of Tables 1 and 2 of the report is found the Appendices of this workbook

Sheet 12.0 Persistence
A1: LRAMVA Model version 1.0 © CHEC
A9: Progress Towards CDM Targets
A10: Results are attributed to target using current OPA reporting policies. Energy efficiency resources persist for the duration of the effective useful life. Any upcoming code changes are taken into account. Demand response resources persist for 1 year. Please see methodology tab for more detailed information.
A11: Table 13: Net Peak Demand Savings at the End User Level (MW)
A13: Implementation Period | B13: Annual
B14: 2011 | C14: 2012 | D14: 2013 | E14: 2014
A15: 2011 - Verified | B15: 0.04496321355 | C15: 0.04496321355 | D15: 0.04496321355 | E15: 0.03680520857
A16: 2012 - Verified† | B16: 0 | C16: 0.134 | D16: 0.134 | E16: 0.134
A17: 2013 - Verified† | B17: 0 | C17: 0.026 | D17: 0.062 | E17: 0.061
A18: 2014 - Verified† | B18: 0 | C18: 0.002 | D18: 0.137 | E18: 0.248
A19: Verified Net Annual Peak Demand Savings Persisting in 2014: | E19: 0.48
A20: Wellington North Power Inc. 2014 Annual CDM Capacity Target: | E20: 0.93
A21: Verified Portion of Peak Demand Savings Target Achieved in 2014 (%): | E21: =E19/E20 -> 0.5161290323
A23: Persistence Factor (MW)
A24: 2011 | C24: =C15/$B$15 -> 1 | D24: =D15/$B$15 -> 1 | E24: =E15/$B$15 -> 0.8185626795
A25: 2012 | D25: =D16/$C$16 -> 1 | E25: =E16/$C$16 -> 1
A26: 2013 | E26: =E17/D17 -> 0.9838709677
A27: 2014
A29: Table 14: Net Energy Savings at the End User Level (GWh)
A31: Implementation Period | B31: Annual | F31: Cumulative
B32: 2011 | C32: 2012 | D32: 2013 | E32: 2014 | F32: 2011-2014
A33: 2011 - Verified | B33: 0.154 | C33: 0.154 | D33: 0.154 | E33: 0.12908 | F33: 0.592
A34: 2012 - Verified | B34: 0.001 | C34: 0.501 | D34: 0.501 | E34: 0.501 | F34: 1.504
A35: 2013 - Verified | B35: 0 | C35: 0.161 | D35: 0.354 | E35: 0.351 | F35: 0.866
A36: 2014 | B36: 0 | C36: 0.009 | D36: 0.009 | E36: 0.332 | F36: 0.35
A37: Verified Net Cumulative Energy Savings 2011-2014: | F37: 3.312
A38: Wellington North Power Inc. 2011-2014 Annual CDM Energy Target: | F38: 4.52
A39: Verified Portion of Cumulative Energy Target Achieved in 2014 (%): | F39: =F37/F38 -> 0.7327433628
A41: † Includes adjustments to previous years' verified results
A42: Results presented using scenario 1 which assumes that demand response resources have a persistence of 1 year
A44: Persistence Factor (GWh)
A45: 2011 | C45: =C33/$B$33 -> 1 | D45: =D33/$B$33 -> 1 | E45: =E33/$B$33 -> 0.8381818182
A46: 2012 | D46: =D34/$C$34 -> 1 | E46: =E34/$C$34 -> 1
A47: 2013 | E47: =E35/D35 -> 0.9915254237
A48: 2014

Sheet 13.0 Rate Class Allocation
A3: Table 15: Ratio Calculations for Allocation of Savings between GS 50-999kW and GS 1000-4999kW Rate Classes
A6: Program Year: 2012 | J6: Rate Class Ratio Applied to Program Year:
A7: Application Number | B7: Application Name | C7: Applicant Name | D7: Company Name | E7: Application Status | F7: Total Actual Demand Savings | G7: Total Estimated Energy Savings (kWh) | H7: Rate Class | J7: Rate Class | K7: kWh Estimated Energy Savings | L7: Ratio
A8: Confidential Customer details not disclosed | E8: Released for Payment | F8: 2.2 | G8: 7897 | H8: GS 50-999kW | J8: GS 50-999kW | K8: =SUMIF($H$8:$H$14,"GS 50-999KW",$G$8:$G$14) -> 133215.062 | L8: =K8/$K$10 -> 0.2905130378
E9: Released for Payment | F9: 1.59 | G9: 7619.28 | H9: GS 50-999kW | J9: GS 1000-4999kW | K9: =SUMIF($H$8:$H$14,"GS 1000-4999KW",$G$8:$G$14) -> 325336 | L9: =K9/$K$10 -> 0.7094869622
E10: Released for Payment | F10: 96.6 | G10: 325336 | H10: GS 1000-4999kW | K10: =SUM(K8:K9) -> 458551.062
E11: Released for Payment | F11: 1.9 | G11: 17029 | H11: GS 50-999kW
E12: Released for Payment | F12: 0.832 | G12: 2158.208 | H12: GS 50-999kW
E13: Released for Payment | F13: 35.6 | G13: 88935 | H13: GS 50-999kW
E14: Released for Payment | F14: 2.009 | G14: 9576.574 | H14: GS 50-999kW
E15: Total (excludes company ABC - this is incorporated in adjustment in 2013 for 2012 program) | F15: =SUM(F8:F14) -> 140.731 | G15: =SUM(G8:G14) -> 458551.062
A19: Program Year: 2013 | J19: Rate Class Ratio Applied to Program Year:
A20: Application Number | B20: Application Name | C20: Applicant Name | D20: Company Name | E20: Application Status | F20: Total Actual Demand Savings | G20: Total Estimated Energy Savings (kWh) | H20: Rate Class | J20: Rate Class | K20: kWh Estimated Energy Savings | L20: Ratio
A21: Confidential Customer details not disclosed | E21: Released for Payment | F21: 0.137199 | G21: 137.199282 | H21: GS 1000-4999kW | J21: GS 50-999kW | K21: =SUMIF($H$21:$H$24,"GS 50-999KW",$G$21:$G$24) -> 37878.036 | L21: =K21/$K$23 -> 0.848327803
E22: Released for Payment | F22: 7.852 | G22: 20849.036 | H22: GS 50-999kW | J22: GS 1000-4999kW | K22: =SUMIF($H$21:$H$24,"GS 1000-4999KW",$G$21:$G$24) -> 6772.199282 | L22: =K22/$K$23 -> 0.151672197
E23: Released for Payment | F23: 2.2 | G23: 6635 | H23: GS 1000-4999kW | K23: =SUM(K21:K22) -> 44650.23528
E24: Released for Payment | F24: 1.9 | G24: 17029 | H24: GS 50-999kW
E25: Total | F25: =SUM(F21:F24) -> 12.089199 | G25: =SUM(G21:G24) -> 44650.23528
J28: Rate Class Ratio Applied to Adjustment Year:
A29: Adjustment for 2012 Program Made In 2013 | J29: Rate Class | K29: kWh Estimated Energy Savings | L29: Ratio
A30: Application Number | B30: Application Name | C30: Applicant Name | D30: Company Name | E30: Application Status | F30: Total Actual Demand Savings | G30: Total Estimated Energy Savings (kWh) | H30: Rate Class | J30: GS 1000-4999kW | K30: =G31 -> 276604.8 | L30: 1
A31: Confidential Customer details not disclosed | E31: Released for Payment | F31: 36.8 | G31: 276604.8 | H31: GS 1000-4999kW | K31: =SUM(K30) -> 276604.8
A35: Program Year: 2014 | J35: Rate Class Ratio Applied to Program Year:
A36: Application Number | B36: Application Name | C36: Applicant Name | D36: Company Name | E36: Application Status | F36: Total Actual Demand Savings | G36: Total Estimated Energy Savings (kWh) | H36: Rate Class | J36: Rate Class | K36: kWh Estimated Energy Savings | L36: Ratio
A37: Confidential Customer details not disclosed | E37: Released for Payment | F37: 4.1825 | G37: 14086.1058 | H37: GS 1000-4999kW | J37: GS 50-999kW | K37: =SUMIF($H$37:$H$44,"GS 50-999KW",$G$37:$G$44) -> 51056.87122 | L37: =K37/$K$39 -> 0.4572531632
E38: Released for Payment | F38: 5.51 | G38: 18556.9499 | H38: GS 50-999kW | J38: GS 1000-4999kW | K38: =SUMIF($H$37:$H$44,"GS 1000-4999KW",$G$37:$G$44) -> 60603.09164 | L38: =K38/$K$39 -> 0.5427468368
E39: Released for Payment | F39: 5.212 | G39: 17553.32538 | H39: GS 1000-4999kW | K39: =SUM(K37:K38) -> 111659.9629
E40: Released for Payment | F40: 4.82 | G40: 16233.12133 | H40: GS 1000-4999kW
E41: Released for Payment | F41: 3.78 | G41: 12730.53913 | H41: GS 1000-4999kW
E42: Released for Payment | F42: 2.7 | G42: 9093.242236 | H42: GS 50-999kW
E43: Released for Payment | F43: 3.26 | G43: 10979.24803 | H43: GS 50-999kW
E44: Released for Payment | F44: 3.69 | G44: 12427.43106 | H44: GS 50-999kW
E45: Total | F45: =SUM(F37:F44) -> 33.1545 | G45: =SUM(G37:G44) -> 111659.9629

Sheet Appdx A IESO LDC-Results (Net)
D1: Table 1: Wellington North Power Inc. Initiative and Program Level Net Savings by Year
A2: Initiative | B2: Unit | D2: Incremental Activity (new program activity occurring within the specified reporting period) | I2: Net Incremental Peak Demand Savings (kW) (new peak demand savings from activity within the specified reporting period) | N2: Net Incremental Energy Savings (kWh) (new energy savings from activity within the specified reporting period) | S2: Program-to-Date Verified Progress to Target (excludes DR)
S3: 2014 Net Annual Peak Demand Savings (kW) | T3: 2011-2014 Net Cumulative Energy Savings (kWh)
D4: 2011* | E4: 2012* | F4: 2013 | G4: 2014 | I4: 2011 | J4: 2012 | K4: 2013 | L4: 2014 | N4: 2011 | O4: 2012 | P4: 2013 | Q4: 2014 | S4: 2014 | T4: 2014
A6: Consumer Program
A7: Appliance Retirement | B7: Appliances | D7: 58.691 | E7: 94.209 | F7: 43.009 | G7: 50.009 | I7: 3.288 | J7: 5.199 | K7: 2.767 | L7: 3.404 | N7: 24852.323 | O7: 38126.359 | P7: 18331.207 | Q7: 21442.065 | S7: 14.658 | T7: 271892.721
A8: Appliance Exchange | B8: Appliances | D8: 1.78 | E8: 15.243 | F8: 0 | G8: 1 | I8: 0.223 | J8: 2.263 | K8: 0 | L8: 0.207 | N8: 349.824 | O8: 4034.106 | P8: 0 | Q8: 369.44 | S8: 2.639 | T8: 13822.094
A9: HVAC Incentives | B9: Equipment | D9: 26.681 | E9: 30.588 | F9: 25 | G9: 25 | I9: 10.188 | J9: 8.545 | K9: 6.086 | L9: 6.189 | N9: 20522.422 | O9: 16329.411 | P9: 11501.814 | Q9: 11844.563 | S9: 31.008 | T9: 165926.112
A10: Conservation Instant Coupon Booklet | B10: Items | D10: 319.462 | E10: 19.537 | F10: 219.394 | G10: 673.747 | I10: 0.725 | J10: 0.146 | K10: 0.327 | L10: 1.366 | N10: 11755.541 | O10: 884.29 | P10: 4874.639 | Q10: 18352.136 | S10: 2.564 | T10: 77776.446
A11: Bi-Annual Retailer Event | B11: Items | D11: 602.185 | E11: 670.965 | F11: 597.519 | G11: 3051.404 | I11: 1.063 | J11: 0.936 | K11: 0.749 | L11: 5.087 | N11: 18586.045 | O11: 16938.015 | P11: 10865.355 | Q11: 77729.606 | S11: 7.835 | T11: 224618.541
A12: Retailer Co-op | B12: Items | D12: 0 | E12: 0 | F12: 0 | I12: 0 | J12: 0 | K12: 0 | L12: 0 | N12: 0 | O12: 0 | P12: 0 | Q12: 0 | S12: 0 | T12: 0
A13: Residential Demand Response | B13: Devices | D13: 0 | E13: 0 | F13: 0 | I13: 0 | J13: 0 | K13: 0 | L13: 2.112 | N13: 0 | O13: 0 | P13: 0 | Q13: 0 | S13: 2.112 | T13: 0
A14: Residential Demand Response (IHD) | B14: Devices | D14: 0 | E14: 0 | F14: 0 | I14: 0 | J14: 0 | K14: 0 | L14: 0 | N14: 0 | O14: 0 | P14: 0 | Q14: 0 | S14: 0 | T14: 0
A15: Residential New Construction | B15: Homes | D15: 0 | E15: 0 | F15: 0 | I15: 0 | J15: 0 | K15: 0 | L15: 0 | N15: 0 | O15: 0 | P15: 0 | Q15: 0 | S15: 0 | T15: 0
A16: Consumer Program Total | I16: 15.487 | J16: 17.089 | K16: 9.929 | L16: 18.365 | N16: 76066.155 | O16: 76312.181 | P16: 45573.015 | Q16: 129737.81 | S16: 60.816 | T16: 754035.914
A18: Business Program
A19: Retrofit | B19: Projects | D19: 1 | E19: 7 | F19: 5 | G19: 5 | I19: 0.582 | J19: 90.527 | K19: 13.387 | L19: 30.323 | N19: 2231.939 | O19: 306398.221 | P19: 67697.283 | Q19: 98760.603 | S19: 134.066 | T19: 1159919.282
A20: Direct Install Lighting | B20: Projects | D20: 31 | E20: 39 | F20: 9 | G20: 17 | I20: 28.84 | J20: 26.185 | K20: 7.342 | L20: 23.665 | N20: 74942.775 | O20: 106963.45 | P20: 24280.908 | Q20: 92722.574 | S20: 77.928 | T20: 738739.783
A21: Building Commissioning | B21: Buildings | D21: 0 | E21: 0 | F21: 0 | G21: 0 | I21: 0 | J21: 0 | K21: 0 | L21: 0 | N21: 0 | O21: 0 | P21: 0 | Q21: 0 | S21: 0 | T21: 0
A22: New Construction | B22: Buildings | D22: 0 | E22: 0 | F22: 0 | G22: 0 | I22: 0 | J22: 0 | K22: 0 | L22: 0 | N22: 0 | O22: 0 | P22: 0 | Q22: 0 | S22: 0 | T22: 0
A23: Energy Audit | B23: Audits | D23: 0 | E23: 0 | F23: 0 | G23: 0 | I23: 0 | J23: 0 | K23: 0 | L23: 0 | N23: 0 | O23: 0 | P23: 0 | Q23: 0 | S23: 0 | T23: 0
A24: Small Commercial Demand Response | B24: Devices | D24: 0 | E24: 0 | F24: 0 | G24: 1 | I24: 0 | J24: 0 | K24: 0 | L24: 0.548 | N24: 0 | O24: 0 | P24: 0 | Q24: 0 | S24: 0.548 | T24: 0
A25: Small Commercial Demand Response (IHD) | B25: Devices | D25: 0 | E25: 0 | F25: 0 | G25: 1 | I25: 0 | J25: 0 | K25: 0 | L25: 0 | N25: 0 | O25: 0 | P25: 0 | Q25: 0 | S25: 0 | T25: 0
A26: Demand Response 3 | B26: Facilities | D26: 0 | E26: 0 | F26: 0 | G26: 0 | I26: 0 | J26: 0 | K26: 0 | L26: 0 | N26: 0 | O26: 0 | P26: 0 | Q26: 0 | S26: 0 | T26: 0
A27: Business Program Total | I27: 29.422 | J27: 116.712 | K27: 20.729 | L27: 54.536 | N27: 77174.714 | O27: 413361.671 | P27: 91978.191 | Q27: 191483.177 | S27: 212.542 | T27: 1898659.065
A29: Industrial Program
A30: Process & System Upgrades | B30: Projects | D30: 0 | E30: 0 | F30: 0 | G30: 0 | I30: 0 | J30: 0 | K30: 0 | L30: 0 | N30: 0 | O30: 0 | P30: 0 | Q30: 0 | S30: 0 | T30: 0
A31: Monitoring & Targeting | B31: Projects | D31: 0 | E31: 0 | F31: 0 | G31: 0 | I31: 0 | J31: 0 | K31: 0 | L31: 0 | N31: 0 | O31: 0 | P31: 0 | Q31: 0 | S31: 0 | T31: 0
A32: Energy Manager | B32: Projects | D32: 0 | E32: 0 | F32: 0 | G32: 0 | I32: 0 | J32: 0 | K32: 0 | L32: 0 | N32: 0 | O32: 0 | P32: 0 | Q32: 0 | S32: 0 | T32: 0
A33: Retrofit | B33: Projects | D33: 0 | E33: 0 | F33: 0 | G33: 0 | I33: 0 | J33: 0 | K33: 0 | L33: 0 | N33: 0 | O33: 0 | P33: 0 | Q33: 0 | S33: 0 | T33: 0
A34: Demand Response 3 | B34: Facilities | D34: 0 | E34: 0 | F34: 0 | G34: 0 | I34: 0 | J34: 0 | K34: 0 | L34: 0 | N34: 0 | O34: 0 | P34: 0 | Q34: 0 | S34: 0 | T34: 0
A35: Industrial Program Total | I35: 0 | J35: 0 | K35: 0 | L35: 0 | N35: 0 | O35: 0 | P35: 0 | Q35: 0 | S35: 0 | T35: 0
A37: Home Assistance Program
A38: Home Assistance Program | B38: Homes | D38: 0 | E38: 6 | F38: 57 | G38: 1 | I38: 0 | J38: 0.79 | K38: 5.057 | L38: 0 | N38: 0 | O38: 9813.126 | P38: 55483.524 | Q38: 1976.129 | S38: 5.995 | T38: 141297.344
A39: Home Assistance Program Total | I39: 0 | J39: 0.79 | K39: 5.057 | L39: 0 | N39: 0 | O39: 9813.126 | P39: 55483.524 | Q39: 1976.129 | S39: 5.995 | T39: 141297.344
A41: Aboriginal Program
A42: Home Assistance Program | B42: Homes | D42: 0 | E42: 0 | F42: 0 | G42: 0 | I42: 0 | J42: 0 | K42: 0 | L42: 0 | N42: 0 | O42: 0 | P42: 0 | Q42: 0 | S42: 0 | T42: 0
A43: Direct Install Lighting | B43: Projects | D43: 0 | E43: 0 | F43: 0 | G43: 0 | I43: 0 | J43: 0 | K43: 0 | L43: 0 | N43: 0 | O43: 0 | P43: 0 | Q43: 0 | S43: 0 | T43: 0
A44: Aboriginal Program Total | I44: 0 | J44: 0 | K44: 0 | L44: 0 | N44: 0 | O44: 0 | P44: 0 | Q44: 0 | S44: 0 | T44: 0
A46: Pre-2011 Programs completed in 2011
A47: Electricity Retrofit Incentive Program | B47: Projects | D47: 0 | E47: 0 | F47: 0 | G47: 0 | I47: 0 | J47: 0 | K47: 0 | L47: 0 | N47: 0 | O47: 0 | P47: 0 | Q47: 0 | S47: 0 | T47: 0
A48: High Performance New Construction | B48: Projects | D48: 0.001 | E48: 0.001 | F48: 0 | G48: 0 | I48: 0.054 | J48: 0.071 | K48: 0 | L48: 0 | N48: 276.986 | O48: 69.239 | P48: 0 | Q48: 0 | S48: 0.125 | T48: 1315.664
A49: Toronto Comprehensive | B49: Projects | D49: 0 | E49: 0 | F49: 0 | G49: 0 | I49: 0 | J49: 0 | K49: 0 | L49: 0 | N49: 0 | O49: 0 | P49: 0 | Q49: 0 | S49: 0 | T49: 0
A50: Multifamily Energy Efficiency Rebates | B50: Projects | D50: 0 | E50: 0 | F50: 0 | G50: 0 | I50: 0 | J50: 0 | K50: 0 | L50: 0 | N50: 0 | O50: 0 | P50: 0 | Q50: 0 | S50: 0 | T50: 0
A51: LDC Custom Programs | B51: Projects | D51: 0 | E51: 0 | F51: 0 | G51: 0 | I51: 0 | J51: 0 | K51: 0 | L51: 0 | N51: 0 | O51: 0 | P51: 0 | Q51: 0 | S51: 0 | T51: 0
A52: Pre-2011 Programs completed in 2011 Total | I52: 0.054 | J52: 0.071 | K52: 0 | L52: 0 | N52: 276.986 | O52: 69.239 | P52: 0 | Q52: 0 | S52: 0.125 | T52: 1315.664
A54: Other
A55: Program Enabled Savings | B55: Projects | D55: 0 | E55: 0 | F55: 0 | G55: 0 | I55: 0 | J55: 0 | K55: 0 | L55: 0 | N55: 0 | O55: 0 | P55: 0 | Q55: 0 | S55: 0 | T55: 0
A56: Time-of-Use Savings | B56: Homes | D56: 0 | E56: 0 | F56: 0 | G56: 0 | I56: 0 | J56: 0 | K56: 0 | L56: 38.314 | N56: 0 | O56: 0 | P56: 0 | Q56: 0 | S56: 38.314 | T56: 0
A57: LDC Pilots | B57: Projects | D57: 0 | E57: 0 | F57: 0 | G57: 0 | I57: 0 | J57: 0 | K57: 0 | L57: 0 | N57: 0 | O57: 0 | P57: 0 | Q57: 0 | S57: 0 | T57: 0
A58: Other Total | I58: 0 | J58: 0 | K58: 0 | L58: 38.314 | N58: 0 | O58: 0 | P58: 0 | Q58: 0 | S58: 38.314 | T58: 0
A60: Adjustments to 2011 Verified Results | J60: -0.187 | K60: 0 | L60: 0 | O60: 1329.956 | P60: 0 | Q60: 0 | S60: -0.187 | T60: 5319.823
A61: Adjustments to 2012 Verified Results | K61: 26.13 | L61: 1.805142864 | P61: 160936.057 | Q61: 8727.838623 | S61: 27.935 | T61: 508991.686
A62: Adjustments to 2013 Verified Results | K62: 26.13 | L62: 135.263937 | P62: 160936.057 | Q62: 525.5523218 | S62: 135.264 | T62: 1051.105
A64: Energy Efficiency Total | I64: 44.963 | J64: 134.662 | K64: 35.715 | L64: 108.759 | N64: 153517.855 | O64: 499556.217 | P64: 193034.73 | Q64: 323197.116 | S64: 315.132 | T64: 2795307.987
A65: Demand Response Total (Scenario 1) | I65: 0 | J65: 0 | K65: 0 | L65: 2.66 | N65: 0 | O65: 0 | P65: 0 | Q65: 0 | S65: 2.66 | T65: 0
A66: Adjustments to Previous Years' Verified Results Total | I66: 0 | J66: -0.187 | K66: 26.13 | L66: 137.069 | N66: 0 | O66: 1329.956 | P66: 160936.057 | Q66: 9253.391 | S66: 163.012 | T66: 515362.614
A67: OPA-Contracted LDC Portfolio Total (inc. Adjustments) | I67: 44.963 | J67: 134.475 | K67: 61.845 | L67: 248.488 | N67: 153517.855 | O67: 500886.173 | P67: 353970.787 | Q67: 332450.507 | S67: 480.804 | T67: 3310670.601
A69: Activity and savings for Demand Response resources for each year represent the savings from all active facilities or devices contracted since January 1, 2011 (reported cumulatively). | G69: *Includes adjustments after Final Reports were issued | N69: Full OEB Target: | S69: 930 | T69: 4520000
G70: Results presented using scenario 1 which assumes that demand response resources have a persistence of 1 year | N70: % of Full OEB Target Achieved to Date (Scenario 1): | S70: 0.5169935484 | T70: 0.732449248

Sheet Appdx B IESO_LDCAdjustment(Net)
D1: Table 2: Adjustments to Wellington North Power Inc. Net Verified Results due to Variances
A2: Initiative | B2: Unit | D2: Incremental Activity (new program activity occurring within the specified reporting period) | I2: Net Incremental Peak Demand Savings (kW) (new peak demand savings from activity within the specified reporting period) | N2: Net Incremental Energy Savings (kWh) (new energy savings from activity within the specified reporting period) | S2: Program-to-Date Verified Progress to Target (excludes DR)
S3: 2014 Net Annual Peak Demand Savings (kW) | T3: 2011-2014 Net Cumulative Energy Savings (kWh)
D4: 2011* | E4: 2012* | F4: 2013* | G4: 2014 | I4: 2011 | J4: 2012 | K4: 2013 | L4: 2014 | N4: 2011 | O4: 2012 | P4: 2013 | Q4: 2014 | S4: 2014 | T4: 2014
A6: Consumer Program
A7: Appliance Retirement | B7: Appliances | D7: 0 | E7: 0 | F7: 0 | I7: 0 | J7: 0 | K7: 0 | N7: 0 | O7: 0 | P7: 0 | S7: 0 | T7: 0
A8: Appliance Exchange | B8: Appliances | D8: 0 | E8: 0 | F8: 0 | I8: 0 | J8: 0 | K8: 0 | N8: 0 | O8: 0 | P8: 0 | S8: 0 | T8: 0
A9: HVAC Incentives | B9: Equipment | D9: -2.211 | E9: 0.013 | F9: 1 | I9: -0.586 | J9: 0.003 | K9: 0.263 | N9: -1010.19 | O9: 5.249 | P9: 510.5523218 | S9: -0.321 | T9: -3003.906
A10: Conservation Instant Coupon Booklet | B10: Items | D10: 5.196 | E10: 0 | F10: 0.664 | I10: 0.01 | J10: 0 | K10: 0.001 | N10: 174.338 | O10: 0 | P10: 15 | S10: 0.011 | T10: 727.35
A11: Bi-Annual Retailer Event | B11: Items | D11: 51.745 | E11: 0 | F11: 0 | I11: 0.068 | J11: 0 | K11: 0 | N11: 1380.881 | O11: 0 | P11: 0 | S11: 0.068 | T11: 5523.524
A12: Retailer Co-op | B12: Items | D12: 0 | E12: 0 | F12: 0 | I12: 0 | J12: 0 | K12: 0 | N12: 0 | O12: 0 | P12: 0 | S12: 0 | T12: 0
A13: Residential Demand Response | B13: Devices | D13: 0 | E13: 0 | F13: 0 | I13: 0 | J13: 0 | K13: 0 | N13: 0 | O13: 0 | P13: 0 | S13: 0 | T13: 0
A14: Residential Demand Response (IHD) | B14: Devices | D14: 0 | E14: 0 | F14: 0 | I14: 0 | J14: 0 | K14: 0 | N14: 0 | O14: 0 | P14: 0 | S14: 0 | T14: 0
A15: Residential New Construction | B15: Homes | D15: 0 | E15: 0 | F15: 0 | I15: 0 | J15: 0 | K15: 0 | N15: 0 | O15: 0 | P15: 0 | S15: 0 | T15: 0
A16: Consumer Program Total | I16: -0.508 | J16: 0.003 | K16: 0.264 | N16: 545.029 | O16: 5.249 | P16: 525.5523218 | S16: -0.242 | T16: 3246.968
A18: Business Program
A19: Retrofit | B19: Projects | D19: 0 | E19: 1 | F19: 0 | I19: 0 | J19: 24.215 | K19: 0 | N19: 0 | O19: 154111.161 | P19: 0 | S19: 24.215 | T19: 462333.484
A20: Direct Install Lighting | B20: Projects | D20: 1 | E20: 1 | F20: 0 | I20: 0.321 | J20: 1.913 | K20: 0 | N20: 784.927 | O20: 6819.646 | P20: 0 | S20: 2.234 | T20: 23598.645
A21: Building Commissioning | B21: Buildings | D21: 0 | E21: 0 | F21: 0 | I21: 0 | J21: 0 | K21: 0 | N21: 0 | O21: 0 | P21: 0 | S21: 0 | T21: 0
A22: New Construction | B22: Buildings | D22: 0 | E22: 0 | F22: 0 | I22: 0 | J22: 0 | K22: 0 | N22: 0 | O22: 0 | P22: 0 | S22: 0 | T22: 0
A23: Energy Audit | B23: Audits | D23: 0 | E23: 0 | F23: 0 | I23: 0 | J23: 0 | K23: 0 | N23: 0 | O23: 0 | P23: 0 | S23: 0 | T23: 0
A24: Small Commercial Demand Response | B24: Devices | D24: 0 | E24: 0 | F24: 0 | I24: 0 | J24: 0 | K24: 0 | N24: 0 | O24: 0 | P24: 0 | S24: 0 | T24: 0
A25: Small Commercial Demand Response (IHD) | B25: Devices | D25: 0 | E25: 0 | F25: 0 | I25: 0 | J25: 0 | K25: 0 | N25: 0 | O25: 0 | P25: 0 | S25: 0 | T25: 0
A26: Demand Response 3 | B26: Facilities | D26: 0 | E26: 0 | F26: 0 | I26: 0 | J26: 0 | K26: 0 | N26: 0 | O26: 0 | P26: 0 | S26: 0 | T26: 0
A27: Business Program Total | I27: 0.321 | J27: 26.128 | K27: 0 | N27: 784.927 | O27: 160930.807 | P27: 0 | S27: 26.449 | T27: 485932.129
A29: Industrial Program
A30: Process & System Upgrades | B30: Projects | D30: 0 | E30: 0 | F30: 0 | I30: 0 | J30: 0 | K30: 0 | N30: 0 | O30: 0 | P30: 0 | S30: 0 | T30: 0
A31: Monitoring & Targeting | B31: Projects | D31: 0 | E31: 0 | F31: 0 | I31: 0 | J31: 0 | K31: 0 | N31: 0 | O31: 0 | P31: 0 | S31: 0 | T31: 0
A32: Energy Manager | B32: Projects | D32: 0 | E32: 0 | F32: 0 | I32: 0 | J32: 0 | K32: 0 | N32: 0 | O32: 0 | P32: 0 | S32: 0 | T32: 0
A33: Retrofit | B33: Projects | D33: 0 | E33: 0 | F33: 0 | I33: 0 | J33: 0 | K33: 0 | N33: 0 | O33: 0 | P33: 0 | S33: 0 | T33: 0
A34: Demand Response 3 | B34: Facilities | D34: 0 | E34: 0 | F34: 0 | I34: 0 | J34: 0 | K34: 0 | N34: 0 | O34: 0 | P34: 0 | S34: 0 | T34: 0
A35: Industrial Program Total | I35: 0 | J35: 0 | K35: 0 | N35: 0 | O35: 0 | P35: 0 | S35: 0 | T35: 0
A37: Home Assistance Program
A38: Home Assistance Program | B38: Homes | D38: 0 | E38: 0 | F38: 0 | I38: 0 | J38: 1.805 | K38: 0 | N38: 0 | O38: 8727.839 | P38: 0 | S38: 1.805 | T38: 26183.516
A39: Home Assistance Program Total | I39: 0 | J39: 0 | K39: 0 | N39: 0 | O39: 8727.839 | P39: 0 | S39: 1.805 | T39: 26183.516
A41: Aboriginal Program
A42: Home Assistance Program | B42: Homes | D42: 0 | E42: 0 | F42: 0 | I42: 0 | J42: 0 | K42: 0 | N42: 0 | O42: 0 | P42: 0 | S42: 0 | T42: 0
A43: Direct Install Lighting | B43: Projects | D43: 0 | E43: 0 | F43: 0 | I43: 0 | J43: 0 | K43: 0 | N43: 0 | O43: 0 | P43: 0 | S43: 0 | T43: 0
A44: Aboriginal Program Total | I44: 0 | J44: 0 | K44: 0 | N44: 0 | O44: 0 | P44: 0 | S44: 0 | T44: 0
A46: Pre-2011 Programs completed in 2011
A47: Electricity Retrofit Incentive Program | B47: Projects | D47: 0 | E47: 0 | F47: 0 | I47: 0 | J47: 0 | K47: 0 | N47: 0 | O47: 0 | P47: 0 | S47: 0 | T47: 0
A48: High Performance New Construction | B48: Projects | D48: 0 | E48: 0 | F48: 0 | I48: 0 | J48: 0 | K48: 0 | N48: 0 | O48: 0 | P48: 0 | S48: 0 | T48: 0
A49: Toronto Comprehensive | B49: Projects | D49: 0 | E49: 0 | F49: 0 | I49: 0 | J49: 0 | K49: 0 | N49: 0 | O49: 0 | P49: 0 | S49: 0 | T49: 0
A50: Multifamily Energy Efficiency Rebates | B50: Projects | D50: 0 | E50: 0 | F50: 0 | I50: 0 | J50: 0 | K50: 0 | N50: 0 | O50: 0 | P50: 0 | S50: 0 | T50: 0
A51: LDC Custom Programs | B51: Projects | D51: 0 | E51: 0 | F51: 0 | I51: 0 | J51: 0 | K51: 0 | N51: 0 | O51: 0 | P51: 0 | S51: 0 | T51: 0
A52: Pre-2011 Programs completed in 2011 Total | I52: 0 | J52: 0 | K52: 0 | N52: 0 | O52: 0 | P52: 0 | S52: 0 | T52: 0
A54: Other
A55: Program Enabled Savings | B55: Projects | D55: 0 | E55: 0 | F55: 1 | I55: 0 | J55: 0 | K55: 135 | N55: 0 | O55: 0 | P55: 0 | S55: 135 | T55: 0
A56: Time-of-Use Savings | B56: Homes | D56: 0 | E56: 0 | F56: 0 | I56: 0 | J56: 0 | K56: 0 | N56: 0 | O56: 0 | P56: 0 | S56: 0 | T56: 0
A57: LDC Pilots | B57: Projects | D57: 0 | E57: 0 | F57: 0 | I57: 0 | J57: 0 | K57: 0 | N57: 0 | O57: 0 | P57: 0 | S57: 0 | T57: 0
A58: Other Total | I58: 0 | J58: 0 | K58: 135 | N58: 0 | O58: 0 | P58: 0 | S58: 135 | T58: 0
A60: Adjustments to 2011 Verified Results | I60: -0.187 | N60: 1329.956 | S60: -0.187 | T60: 5319.823
A61: Adjustments to 2012 Verified Results | J61: 26.131 | O61: 169663.895 | S61: 27.935 | T61: 508991.686
A62: Adjustments to 2013 Verified Results | J62: 26.131 | K62: 135.264 | P62: 525.5523218 | S62: 135.264 | T62: 1051.105
A63: Total Adjustments to Previous Years' Verified Results | I63: -0.187 | J63: 26.131 | K63: 135.264 | N63: 1329.956 | O63: 169663.895 | P63: 525.552 | S63: 163.012 | T63: 515362.614
A65: Activity and savings for Demand Response resources for each year represent the savings from all active facilities or devices contracted since January 1, 2011 (reported cumulatively). | D65: Adjustments to previous years' results shown in this table will not align to adjustments shown in Table 1 as the information presented above is presented in the implementation year. Adjustements in Table 1 reflect persisted savings in the year in which that adjustment is verified.

Sheet Appdx C IESO Summary
A1: Summary Achievement Against CDM Targets
A2: Results are recognized using current IESO reporting policies. Energy efficiency resources persist for the duration of the effective useful life. Any upcoming code changes are taken into account. Demand response resources persist for 1 year (Scenario 1). Please see methodology tab for more detailed information.
A3: Table 4: Net Peak Demand Savings at the End User Level (MW) (Scenario 1)
A5: Implementation Period | B5: Annual
B6: 2011 | C6: 2012 | D6: 2013 | E6: 2014
A7: 2011 - Verified | B7: 0.045 | C7: 0.045 | D7: 0.045 | E7: 0.037
A8: 2012 - Verified† | B8: 0 | C8: 0.134 | D8: 0.134 | E8: 0.134
A9: 2013 - Verified† | B9: 0 | C9: 0.026 | D9: 0.062 | E9: 0.061
A10: 2014 - Verified† | B10: 0 | C10: 0.002 | D10: 0.137 | E10: 0.248
A11: Verified Net Annual Peak Demand Savings Persisting in 2014: | E11: 0.48
A12: Wellington North Power Inc. 2014 Annual CDM Capacity Target: | E12: 0.93
A13: Verified Portion of Peak Demand Savings Target Achieved in 2014 (%): | E13: 0.516129
A15: Table 5: Net Energy Savings at the End User Level (GWh)
A17: Implementation Period | B17: Annual | F17: Cumulative
B18: 2011 | C18: 2012 | D18: 2013 | E18: 2014 | F18: 2011-2014
A19: 2011 - Verified | B19: 0.154 | C19: 0.154 | D19: 0.154 | E19: 0.12908 | F19: 0.592
A20: 2012 - Verified† | B20: 0.001 | C20: 0.501 | D20: 0.501 | E20: 0.501 | F20: 1.504
A21: 2013 - Verified† | B21: 0 | C21: 0.161 | D21: 0.354 | E21: 0.351 | F21: 0.866
A22: 2014 - Verified† | B22: 0 | C22: 0.009 | D22: 0.009 | E22: 0.332 | F22: 0.35
A23: Verified Net Cumulative Energy Savings 2011-2014: | F23: 3.312
A24: Wellington North Power Inc. 2011-2014 Annual CDM Energy Target: | F24: 4.52
A25: Verified Portion of Cumulative Energy Target Achieved in 2014 (%): | F25: 0.732743
A26: †Includes adjustments to previous years' verified results
A27: Results presented using scenario 1 which assumes that demand response resources have a persistence of 1 year
A31: Persistence Factor (GWh)
A32: 2011 | C32: =C19/$B$19 -> 1 | D32: =D19/$B$19 -> 1 | E32: =E19/$B$19 -> 0.8381818182
A33: 2012 | D33: =D20/$C$20 -> 1 | E33: =E20/$C$20 -> 1
A34: 2013 | E34: =E21/D21 -> 0.9915254237
A35: 2014

Sheet Appdx D 2012 Gross to Net Savgs
C1: LRAMVA Model version 1.0 © CHEC
J6: 2012 Gross to Net Savings
A7: Orillia Power Distribution Corporation
A8: Table is at the End User Level | N8: Net Annual Summer Peak Demand Savings (MW) | AR8: Net Annual Energy Savings (MWh)
A9: Portfolio | B9: Program | C9: Initiative | D9: LDC | E9: Sector | F9: Conservation Resource Type | G9: (Implementation) Year | H9: Status | I9: Notes: | J9: Activity Unit Name | K9: Activity and Participation (i.e. # of appliances) | L9: Gross Summer Peak Demand Savings (MW) | M9: Gross Energy Savings (MWh) | N9: 2011 | O9: 2012 | P9: 2013 | Q9: 2014 | R9: 2015 | S9: 2016 | T9: 2017 | U9: 2018 | V9: 2019 | W9: 2020 | X9: 2021 | Y9: 2022 | Z9: 2023 | AA9: 2024 | AB9: 2025 | AC9: 2026 | AD9: 2027 | AE9: 2028 | AF9: 2029 | AG9: 2030 | AH9: 2031 | AI9: 2032 | AJ9: 2033 | AK9: 2034 | AL9: 2035 | AM9: 2036 | AN9: 2037 | AO9: 2038 | AP9: 2039 | AQ9: 2040 | AR9: 2011 | AS9: 2012 | AT9: 2013 | AU9: 2014 | AV9: 2015 | AW9: 2016 | AX9: 2017 | AY9: 2018 | AZ9: 2019 | BA9: 2020 | BB9: 2021 | BC9: 2022 | BD9: 2023 | BE9: 2024 | BF9: 2025 | BG9: 2026 | BH9: 2027 | BI9: 2028 | BJ9: 2029 | BK9: 2030 | BL9: 2031 | BM9: 2032 | BN9: 2033 | BO9: 2034 | BP9: 2035 | BQ9: 2036 | BR9: 2037 | BS9: 2038 | BT9: 2039 | BU9: 2040
A10: Tier 1 | B10: Business | C10: Direct Install Lighting | D10: Wellington North Power Inc. | E10: C&I | F10: EE | G10: 2012 | H10: Final; Released August 31, 2013 | J10: Projects | K10: 38 | L10: 0.027757517 | M10: 113.5446286 | N10: 0 | O10: 0.02618478783 | P10: 0.02618478783 | Q10: 0.02618478783 | R10: 0.01474479582 | S10: 0.01474479582 | T10: 0.003241450503 | U10: 0.003241450503 | V10: 0.003241450503 | W10: 0.003241450503 | X10: 0.003241450503 | Y10: 0.002698409372 | Z10: 0.002698409372 | AA10: 0 | AB10: 0 | AC10: 0 | AD10: 0 | AE10: 0 | AF10: 0 | AG10: 0 | AH10: 0 | AI10: 0 | AJ10: 0 | AK10: 0 | AL10: 0 | AM10: 0 | AN10: 0 | AO10: 0 | AP10: 0 | AQ10: 0 | AR10: 0 | AS10: 106.9634495 | AT10: 106.9634495 | AU10: 106.9634495 | AV10: 58.03293189 | AW10: 58.03293189 | AX10: 15.30125246 | AY10: 15.30125246 | AZ10: 15.30125246 | BA10: 15.30125246 | BB10: 15.30125246 | BC10: 9.987713255 | BD10: 9.987713255 | BE10: 0 | BF10: 0 | BG10: 0 | BH10: 0 | BI10: 0 | BJ10: 0 | BK10: 0 | BL10: 0 | BM10: 0 | BN10: 0 | BO10: 0 | BP10: 0 | BQ10: 0 | BR10: 0 | BS10: 0 | BT10: 0 | BU10: 0
A11: Tier 1 | B11: Business | C11: Retrofit | D11: Wellington North Power Inc. | E11: C&I | F11: EE | G11: 2012 | H11: Final; Released August 31, 2013 | J11: Projects | K11: 6 | L11: 0.1302535383 | M11: 439.0783094 | N11: 0 | O11: 0.0905272608 | P11: 0.0905272608 | Q11: 0.0905272608 | R11: 0.0905272608 | S11: 0.0905272608 | T11: 0.09050867081 | U11: 0.08893057525 | V11: 0.08893057525 | W11: 0.08893057525 | X11: 0.06765014965 | Y11: 0.06765014965 | Z11: 0.06765014965 | AA11: 0.06475980906 | AB11: 0.06475980906 | AC11: 0.06475980906 | AD11: 0 | AE11: 0 | AF11: 0 | AG11: 0 | AH11: 0 | AI11: 0 | AJ11: 0 | AK11: 0 | AL11: 0 | AM11: 0 | AN11: 0 | AO11: 0 | AP11: 0 | AQ11: 0 | AR11: 0 | AS11: 306.3982208 | AT11: 306.3982208 | AU11: 306.3982208 | AV11: 306.3982208 | AW11: 306.3982208 | AX11: 306.3367283 | AY11: 301.2341986 | AZ11: 301.2341986 | BA11: 301.2341986 | BB11: 232.4272098 | BC11: 232.4272098 | BD11: 232.4272098 | BE11: 214.765252 | BF11: 214.765252 | BG11: 214.765252 | BH11: 0 | BI11: 0 | BJ11: 0 | BK11: 0 | BL11: 0 | BM11: 0 | BN11: 0 | BO11: 0 | BP11: 0 | BQ11: 0 | BR11: 0 | BS11: 0 | BT11: 0 | BU11: 0
A12: Tier 1 | B12: Consumer | C12: Appliance Exchange | D12: Wellington North Power Inc. | E12: Residential | F12: EE | G12: 2012 | H12: Final; Released August 31, 2013 | J12: Appliances | K12: 15.24286002 | L12: 0.004391313904 | M12: 7.827665182 | N12: 0 | O12: 0.002263130045 | P12: 0.002263130045 | Q12: 0.002263130045 | R12: 0.002261785525 | S12: 0 | T12: 0 | U12: 0 | V12: 0 | W12: 0 | X12: 0 | Y12: 0 | Z12: 0 | AA12: 0 | AB12: 0 | AC12: 0 | AD12: 0 | AE12: 0 | AF12: 0 | AG12: 0 | AH12: 0 | AI12: 0 | AJ12: 0 | AK12: 0 | AL12: 0 | AM12: 0 | AN12: 0 | AO12: 0 | AP12: 0 | AQ12: 0 | AR12: 0 | AS12: 4.034105655 | AT12: 4.034105655 | AU12: 4.034105655 | AV12: 4.032903312 | AW12: 0 | AX12: 0 | AY12: 0 | AZ12: 0 | BA12: 0 | BB12: 0 | BC12: 0 | BD12: 0 | BE12: 0 | BF12: 0 | BG12: 0 | BH12: 0 | BI12: 0 | BJ12: 0 | BK12: 0 | BL12: 0 | BM12: 0 | BN12: 0 | BO12: 0 | BP12: 0 | BQ12: 0 | BR12: 0 | BS12: 0 | BT12: 0 | BU12: 0
A13: Tier 1 | B13: Consumer | C13: Appliance Retirement | D13: Wellington North Power Inc. | E13: Residential | F13: EE | G13: 2012 | H13: Final; Released August 31, 2013 | J13: Appliances | K13: 94.20934028 | L13: 0.01108928582 | M13: 80.89010155 | N13: 0 | O13: 0.005199278011 | P13: 0.005199278011 | Q13: 0.005199278011 | R13: 0.005199278011 | S13: 0.00314251868 | T13: 0 | U13: 0 | V13: 0 | W13: 0 | X13: 0 | Y13: 0 | Z13: 0 | AA13: 0 | AB13: 0 | AC13: 0 | AD13: 0 | AE13: 0 | AF13: 0 | AG13: 0 | AH13: 0 | AI13: 0 | AJ13: 0 | AK13: 0 | AL13: 0 | AM13: 0 | AN13: 0 | AO13: 0 | AP13: 0 | AQ13: 0 | AR13: 0 | AS13: 38.12635861 | AT13: 38.12635861 | AU13: 38.12635861 | AV13: 38.12635861 | AW13: 23.9011659 | AX13: 0 | AY13: 0 | AZ13: 0 | BA13: 0 | BB13: 0 | BC13: 0 | BD13: 0 | BE13: 0 | BF13: 0 | BG13: 0 | BH13: 0 | BI13: 0 | BJ13: 0 | BK13: 0 | BL13: 0 | BM13: 0 | BN13: 0 | BO13: 0 | BP13: 0 | BQ13: 0 | BR13: 0 | BS13: 0 | BT13: 0 | BU13: 0
A14: Tier 1 | B14: Consumer | C14: Bi-Annual Retailer Event | D14: Wellington North Power Inc. | E14: Residential | F14: EE | G14: 2012 | H14: Final; Released August 31, 2013 | J14: Products | K14: 670.9645223 | L14: 0.001025973949 | M14: 18.48144017 | N14: 0 | O14: 0.0009360124702 | P14: 0.0009360124702 | Q14: 0.0009360124702 | R14: 0.0009360124702 | S14: 0.0008567502899 | T14: 0.0007250126435 | U14: 0.000542768321 | V14: 0.000540764346 | W14: 0.000540764346 | X14: 0.0003487448912 | Y14: 0.0001364426751 | Z14: 0.0001364306951 | AA14: 0.0001364306951 | AB14: 0.0001340894436 | AC14: 0.0001340894436 | AD14: 0.0001307579049 | AE14: 3.668814597e-05 | AF14: 3.668814597e-05 | AG14: 3.668814597e-05 | AH14: 3.668814597e-05 | AI14: 0 | AJ14: 0 | AK14: 0 | AL14: 0 | AM14: 0 | AN14: 0 | AO14: 0 | AP14: 0 | AQ14: 0 | AR14: 0 | AS14: 16.93801533 | AT14: 16.93801533 | AU14: 16.93801533 | AV14: 16.93801533 | AW14: 15.22619826 | AX14: 12.38107401 | AY14: 8.44516232 | AZ14: 8.4276075 | BA14: 8.4276075 | BB14: 4.280583295 | BC14: 3.176751142 | BD14: 3.078022928 | BE14: 3.078022928 | BF14: 2.863131103 | BG14: 2.863131103 | BH14: 2.82396488 | BI14: 0.7923500747 | BJ14: 0.7923500747 | BK14: 0.7923500747 | BL14: 0.7923500747 | BM14: 0 | BN14: 0 | BO14: 0 | BP14: 0 | BQ14: 0 | BR14: 0 | BS14: 0 | BT14: 0 | BU14: 0
A15: Tier 1 | B15: Consumer | C15: Conservation Instant Coupon Booklet | D15: Wellington North Power Inc. | E15: Residential | F15: EE | G15: 2012 | H15: Final; Released August 31, 2013 | J15: Products | K15: 19.53686422 | L15: 0.0001460322144 | M15: 0.8385617109 | N15: 0 | O15: 0.0001457258551 | P15: 0.0001457258551 | Q15: 0.0001457258551 | R15: 0.0001457258551 | S15: 0.0001451107149 | T15: 0.0001451107149 | U15: 0.0001237719264 | V15: 0.0001235135191 | W15: 0.0001235135191 | X15: 0.0001235135191 | Y15: 2.271992697e-06 | Z15: 2.270428009e-06 | AA15: 2.270428009e-06 | AB15: 2.188671928e-06 | AC15: 2.188671928e-06 | AD15: 2.044392693e-06 | AE15: 0 | AF15: 0 | AG15: 0 | AH15: 0 | AI15: 0 | AJ15: 0 | AK15: 0 | AL15: 0 | AM15: 0 | AN15: 0 | AO15: 0 | AP15: 0 | AQ15: 0 | AR15: 0 | AS15: 0.884289914 | AT15: 0.884289914 | AU15: 0.884289914 | AV15: 0.884289914 | AW15: 0.8710047938 | AX15: 0.8710047938 | AY15: 0.4101531965 | AZ15: 0.4078895486 | BA15: 0.4078895486 | BB15: 0.4078895486 | BC15: 0.06624751502 | BD15: 0.05335269536 | BE15: 0.05335269536 | BF15: 0.04584871149 | BG15: 0.04584871149 | BH15: 0.04415253646 | BI15: 0 | BJ15: 0 | BK15: 0 | BL15: 0 | BM15: 0 | BN15: 0 | BO15: 0 | BP15: 0 | BQ15: 0 | BR15: 0 | BS15: 0 | BT15: 0 | BU15: 0
A16: Tier 1 | B16: Consumer | C16: HVAC Incentives | D16: Wellington North Power Inc. | E16: Residential | F16: EE | G16: 2012 | H16: Final; Released August 31, 2013 | J16: Installations | K16: 30.5748952 | L16: 0.01760326222 | M16: 33.69249065 | N16: 0 | O16: 0.00854485456 | P16: 0.00854485456 | Q16: 0.00854485456 | R16: 0.00854485456 | S16: 0.00854485456 | T16: 0.00854485456 | U16: 0.00854485456 | V16: 0.00854485456 | W16: 0.00854485456 | X16: 0.00854485456 | Y16: 0.00854485456 | Z16: 0.00854485456 | AA16: 0.00854485456 | AB16: 0.00854485456 | AC16: 0.00854485456 | AD16: 0.00854485456 | AE16: 0.00854485456 | AF16: 0.00854485456 | AG16: 0.008384724854 | AH16: 0 | AI16: 0 | AJ16: 0 | AK16: 0 | AL16: 0 | AM16: 0 | AN16: 0 | AO16: 0 | AP16: 0 | AQ16: 0 | AR16: 0 | AS16: 16.32941063 | AT16: 16.32941063 | AU16: 16.32941063 | AV16: 16.32941063 | AW16: 16.32941063 | AX16: 16.32941063 | AY16: 16.32941063 | AZ16: 16.32941063 | BA16: 16.32941063 | BB16: 16.32941063 | BC16: 16.32941063 | BD16: 16.32941063 | BE16: 16.32941063 | BF16: 16.32941063 | BG16: 16.32941063 | BH16: 16.32941063 | BI16: 16.32941063 | BJ16: 16.32941063 | BK16: 16.18621393 | BL16: 0 | BM16: 0 | BN16: 0 | BO16: 0 | BP16: 0 | BQ16: 0 | BR16: 0 | BS16: 0 | BT16: 0 | BU16: 0
A17: Tier 1 | B17: Home Assistance | C17: Home Assistance Program | D17: Wellington North Power Inc. | E17: Residential | F17: EE | G17: 2012 | H17: Final; Released August 31, 2013 | J17: Projects | K17: 6 | L17: 0.0007897765934 | M17: =0.00981312594604492*1000 -> 9.813125946 | N17: 0 | O17: 0.0007897765934 | P17: 0.0006914942181 | Q17: 0.0006914942181 | R17: 0.0006914942181 | S17: 0.0006914942181 | T17: 0.0006914942181 | U17: 0.0006081018504 | V17: 0.0006081018504 | W17: 0.0004411464827 | X17: 0.0004411464827 | Y17: 0.0004411464827 | Z17: 0.0004411464827 | AA17: 0.0002415425377 | AB17: 0.0002415425377 | AC17: 6.912194658e-05 | AD17: 0 | AE17: 0 | AF17: 0 | AG17: 0 | AH17: 0 | AI17: 0 | AJ17: 0 | AK17: 0 | AL17: 0 | AM17: 0 | AN17: 0 | AO17: 0 | AP17: 0 | AQ17: 0 | AR17: 0 | AS17: =0.00981312594604492*1000 -> 9.813125946 | AT17: =0.00792112594604492*1000 -> 7.921125946 | AU17: =0.00792112594604492*1000 -> 7.921125946 | AV17: =0.00792112594604492*1000 -> 7.921125946 | AW17: 7.921125946 | AX17: 7.921125946 | AY17: 7.921125946 | AZ17: 7.921125946 | BA17: 7.921125946 | BB17: 7.921125946 | BC17: 7.921125946 | BD17: 7.921125946 | BE17: 7.921125946 | BF17: 7.921125946 | BG17: 7.921125946 | BH17: 7.921125946 | BI17: 7.921125946 | BJ17: 7.921125946 | BK17: 7.921125946 | BL17: 7.921125946 | BM17: 7.921125946 | BN17: 7.921125946 | BO17: 7.921125946 | BP17: 7.921125946 | BQ17: 7.921125946 | BR17: 7.921125946 | BS17: 7.921125946 | BT17: 7.921125946 | BU17: 7.921125946
A18: Tier 1 | B18: Pre-2011 Programs Completed in 2011 | C18: High Performance New Construction | D18: Wellington North Power Inc. | E18: C&I | F18: EE | G18: 2012 | H18: Final; Released August 31, 2013 | I18: Projects | J18: Projects | K18: 0.0006324479623 | L18: 7.146661974e-05 | M18: 0.06923945424 | N18: 0 | O18: 7.146661974e-05 | P18: 7.146661974e-05 | Q18: 7.146661974e-05 | R18: 7.146661974e-05 | S18: 7.146661974e-05 | T18: 7.146661974e-05 | U18: 7.146661974e-05 | V18: 7.146661974e-05 | W18: 7.146661974e-05 | X18: 7.146661974e-05 | Y18: 7.146661974e-05 | Z18: 7.146661974e-05 | AA18: 0 | AB18: 0 | AC18: 0 | AD18: 0 | AE18: 0 | AF18: 0 | AG18: 0 | AH18: 0 | AI18: 0 | AJ18: 0 | AK18: 0 | AL18: 0 | AM18: 0 | AN18: 0 | AO18: 0 | AP18: 0 | AQ18: 0 | AR18: 0 | AS18: 0.06923945424 | AT18: 0.06923945424 | AU18: 0.06923945424 | AV18: 0.06923945424 | AW18: 0.06923945424 | AX18: 0.06923945424 | AY18: 0.06923945424 | AZ18: 0.06923945424 | BA18: 0.06923945424 | BB18: 0.06923945424 | BC18: 0.06923945424 | BD18: 0.06923945424 | BE18: 0 | BF18: 0 | BG18: 0 | BH18: 0 | BI18: 0 | BJ18: 0 | BK18: 0 | BL18: 0 | BM18: 0 | BN18: 0 | BO18: 0 | BP18: 0 | BQ18: 0 | BR18: 0 | BS18: 0 | BT18: 0 | BU18: 0
N19: =SUM(N10:N18) -> 0 | O19: =SUM(O10:O18) -> 0.1346622928 | P19: 0.1345640104 | Q19: 0.1345640104 | AR19: =SUM(AR10:AR18) -> 0 | AS19: =SUM(AS10:AS18) -> 499.5562159 | AT19: =SUM(AT10:AT18) -> 497.6642159 | AU19: =SUM(AU10:AU18) -> 497.6642159
A21: Tier 1 True Up | B21: Business | C21: Direct Install Lighting | D21: Wellington North Power Inc. | E21: C&I | F21: EE | G21: 2011 | H21: Final; Released August 31, 2013 | J21: Projects | K21: 1 | L21: 0.0003473355986 | M21: 0.8453349716 | N21: 0.0003214515356 | O21: 0.0003214515356 | P21: 0.0003214515356 | Q21: 0.0003214515356 | R21: 0.0003214515356 | S21: 0.0003214515356 | T21: 6.221642624e-05 | U21: 6.221642624e-05 | V21: 6.221642624e-05 | W21: 6.221642624e-05 | X21: 6.221642624e-05 | Y21: 6.221642624e-05 | Z21: 0 | AA21: 0 | AB21: 0 | AC21: 0 | AD21: 0 | AE21: 0 | AF21: 0 | AG21: 0 | AH21: 0 | AI21: 0 | AJ21: 0 | AK21: 0 | AL21: 0 | AM21: 0 | AN21: 0 | AO21: 0 | AP21: 0 | AQ21: 0 | AR21: 0.7849265915 | AS21: 0.7849265915 | AT21: 0.7849265915 | AU21: 0.7849265915 | AV21: 0.7849265915 | AW21: 0.7849265915 | AX21: 0.1519212758 | AY21: 0.1519212758 | AZ21: 0.1519212758 | BA21: 0.1519212758 | BB21: 0.1519212758 | BC21: 0.1519212758 | BD21: 0 | BE21: 0 | BF21: 0 | BG21: 0 | BH21: 0 | BI21: 0 | BJ21: 0 | BK21: 0 | BL21: 0 | BM21: 0 | BN21: 0 | BO21: 0 | BP21: 0 | BQ21: 0 | BR21: 0 | BS21: 0 | BT21: 0 | BU21: 0
A22: Tier 1 True Up | B22: Pre-2011 Programs Completed in 2011 | C22: High Performance New Construction | D22: Wellington North Power Inc. | E22: C&I | F22: EE | G22: 2011 | H22: Final; Released August 31, 2013 | J22: Buildings | K22: 0 | L22: 0 | M22: 0 | N22: 0 | O22: 0 | P22: 0 | Q22: 0 | R22: 0 | S22: 0 | T22: 0 | U22: 0 | V22: 0 | W22: 0 | X22: 0 | Y22: 0 | Z22: 0 | AA22: 0 | AB22: 0 | AC22: 0 | AD22: 0 | AE22: 0 | AF22: 0 | AG22: 0 | AH22: 0 | AI22: 0 | AJ22: 0 | AK22: 0 | AL22: 0 | AM22: 0 | AN22: 0 | AO22: 0 | AP22: 0 | AQ22: 0 | AR22: 0 | AS22: 0 | AT22: 0 | AU22: 0 | AV22: 0 | AW22: 0 | AX22: 0 | AY22: 0 | AZ22: 0 | BA22: 0 | BB22: 0 | BC22: 0 | BD22: 0 | BE22: 0 | BF22: 0 | BG22: 0 | BH22: 0 | BI22: 0 | BJ22: 0 | BK22: 0 | BL22: 0 | BM22: 0 | BN22: 0 | BO22: 0 | BP22: 0 | BQ22: 0 | BR22: 0 | BS22: 0 | BT22: 0 | BU22: 0
A23: Tier 1 True Up | B23: Consumer | C23: HVAC Incentives | D23: Wellington North Power Inc. | E23: Residential | F23: EE | G23: 2011 | H23: Final; Released August 31, 2013 | J23: Installations | K23: -2.211237619 | L23: -0.0005863762114 | M23: -0.0005863762114 | N23: -0.0005863762114 | O23: -0.0005863762114 | P23: -0.0005863762114 | Q23: -0.0005863762114 | R23: -0.0005863762114 | S23: -0.0005863762114 | T23: -0.0005863762114 | U23: -0.0005863762114 | V23: -0.0005863762114 | W23: -0.0005863762114 | X23: -0.0005863762114 | Y23: -0.0005863762114 | Z23: -0.0005863762114 | AA23: -0.0005863762114 | AB23: -0.0005863762114 | AC23: -0.0005863762114 | AD23: -0.0005863762114 | AE23: -0.0005863762114 | AF23: -0.0004183048803 | AG23: 0 | AH23: 0 | AI23: 0 | AJ23: 0 | AK23: 0 | AL23: 0 | AM23: 0 | AN23: 0 | AO23: 0 | AP23: 0 | AQ23: 0 | AR23: -1.0101895 | AS23: -1.0101895 | AT23: -1.0101895 | AU23: -1.0101895 | AV23: -1.0101895 | AW23: -1.0101895 | AX23: -1.0101895 | AY23: -1.0101895 | AZ23: -1.0101895 | BA23: -1.0101895 | BB23: -1.0101895 | BC23: -1.0101895 | BD23: -1.0101895 | BE23: -1.0101895 | BF23: -1.0101895 | BG23: -1.0101895 | BH23: -1.0101895 | BI23: -1.0101895 | BJ23: -0.8601478166 | BK23: 0 | BL23: 0 | BM23: 0 | BN23: 0 | BO23: 0 | BP23: 0 | BQ23: 0 | BR23: 0 | BS23: 0 | BT23: 0 | BU23: 0
A24: Tier 1 True Up | B24: Consumer | C24: Bi-Annual Retailer Event | D24: Wellington North Power Inc. | E24: Residential | F24: EE | G24: 2011 | H24: Final; Released August 31, 2013 | J24: Products | K24: 51.74499493 | L24: 7.374935963e-05 | M24: 1.501188901 | N24: 6.821841214e-05 | O24: 6.821841214e-05 | P24: 6.821841214e-05 | Q24: 6.821841214e-05 | R24: 6.821841214e-05 | S24: 6.238164814e-05 | T24: 3.564824084e-05 | U24: 3.563248551e-05 | V24: 3.563248551e-05 | W24: 1.118894828e-05 | X24: 4.648869326e-06 | Y24: 4.647624865e-06 | Z24: 4.647624865e-06 | AA24: 4.433928473e-06 | AB24: 4.433928473e-06 | AC24: 4.424143593e-06 | AD24: 0 | AE24: 0 | AF24: 0 | AG24: 0 | AH24: 0 | AI24: 0 | AJ24: 0 | AK24: 0 | AL24: 0 | AM24: 0 | AN24: 0 | AO24: 0 | AP24: 0 | AQ24: 0 | AR24: 1.380881046 | AS24: 1.380881046 | AT24: 1.380881046 | AU24: 1.380881046 | AV24: 1.380881046 | AW24: 1.254825061 | AX24: 0.6774664422 | AY24: 0.6773284256 | AZ24: 0.6773284256 | BA24: 0.1494238929 | BB24: 0.1255327121 | BC24: 0.1152769306 | BD24: 0.1152769306 | BE24: 0.09566280224 | BF24: 0.09566280224 | BG24: 0.09554776927 | BH24: 0 | BI24: 0 | BJ24: 0 | BK24: 0 | BL24: 0 | BM24: 0 | BN24: 0 | BO24: 0 | BP24: 0 | BQ24: 0 | BR24: 0 | BS24: 0 | BT24: 0 | BU24: 0
A25: Tier 1 True Up | B25: Consumer | C25: Conservation Instant Coupon Booklet | D25: Wellington North Power Inc. | E25: Residential | F25: EE | G25: 2011 | H25: Final; Released August 31, 2013 | J25: Products | M25: 0 | N25: 0 | O25: 0 | P25: 0 | Q25: 0 | R25: 0 | S25: 0 | T25: 0 | U25: 0 | V25: 0 | W25: 0 | X25: 0 | Y25: 0 | Z25: 0 | AA25: 0 | AB25: 0 | AC25: 0 | AD25: 0 | AE25: 0 | AF25: 0 | AG25: 0 | AH25: 0 | AI25: 0 | AJ25: 0 | AK25: 0 | AL25: 0 | AM25: 0 | AN25: 0 | AO25: 0 | AP25: 0 | AQ25: 0 | AR25: 0.174 | AS25: 0.174 | AT25: 0.174 | AU25: 0.174
N26: =SUM(N21:N25) -> -0.0001967062636 | O26: =SUM(O21:O25) -> -0.0001967062636 | P26: -0.0001967062636 | Q26: -0.0001967062636 | AR26: =SUM(AR21:AR25) -> 1.329618137 | AS26: =SUM(AS21:AS25) -> 1.329618137 | AT26: =SUM(AT21:AT25) -> 1.329618137 | AU26: 1.329618137
M28: GWh | N28: =(N19+N26)/1000 -> -1.967062636e-07 | O28: =(O19+O26)/1000 -> 0.0001344655865 | P28: 0.0001343673041 | Q28: 0.0001343673041 | AR28: =(AR19+AR26)/1000 -> 0.001329618137 | AS28: =(AS19+AS26)/1000 -> 0.500885834 | AT28: =(AT19+AT26)/1000 -> 0.498993834 | AU28: 0.498993834
M30: MW | N30: =N19+N26 -> -0.0001967062636 | O30: =O19+O26 -> 0.1344655865 | P30: =P19+P26 -> 0.1343673041 | Q30: 0.1343673041 | AR30: =AR19+AR26 -> 1.329618137 | AS30: =AS19+AS26 -> 500.885834 | AT30: =AT19+AT26 -> 498.993834 | AU30: =AU19+AU26 -> 498.993834
M32: kW | N32: =N30*1000 -> -0.1967062636 | O32: =O30*1000 -> 134.4655865 | P32: 134.3673041 | Q32: 134.3673041 | AR32: =AR30*1000 -> 1329.618137 | AS32: =AS30*1000 -> 500885.834 | AT32: =AT30*1000 -> 498993.834 | AU32: =AU30*1000 -> 498993.834
O34: 2012 | AS34: 2012
N35: Adj to Previous Year's Verified Results | O35: =O26 -> -0.0001967062636 | P35: MWh | AR35: Adj to Previous Year's Verified Results | AS35: =AS26 -> 1.329618137 | AT35: MWh
N37: Energy Efficiency Total | O37: =SUM(O10:O18) -> 0.1346622928 | P37: MWh | AR37: Energy Efficiency Total | AS37: =AS19 -> 499.5562159 | AT37: MWh
N39: Demand Response | O39: 0 | P39: MWh | AR39: Demand Response | AS39: 0 | AT39: MWh
N41: OPA- Contract LDC Portfolio (MWh) | O41: =O35+O37+O39 -> 0.1344655865 | P41: MWh | AR41: OPA- Contract LDC Portfolio (MWh) | AS41: =AS35+AS37+AS39 -> 500.885834 | AT41: MWh
N43: CHECK: Variance to LDC Summary sheet | O43: =SUM((O41-('8.0 2012LostRev'!D59/1000))) -> -0.0002464612805 | P43: MWh | AR43: CHECK: Variance to LDC Summary sheet | AS43: =SUM((AS41-('8.0 2012LostRev'!E59/1000))) -> 0.0002240311836 | AT43: MWh

Sheet Appdx E 2013 Gross to Net Savgs
C1: LRAMVA Model version 1.0 © CHEC
J6: Table 11: 2013 Gross to Net Savings
A7: Orillia Power Distribution Corporation
A8: Table is at the End User Level | N8: Net Annual Summer Peak Demand Savings (MW) | AR8: Net Annual Energy Savings (MWh)
A9: Portfolio | B9: Program | C9: Initiative | D9: LDC | E9: Sector | F9: Conservation Resource Type | G9: (Implementation) Year | H9: Status | I9: Notes: | J9: Activity Unit Name | K9: Activity and Participation (i.e. # of appliances) | L9: Gross Summer Peak Demand Savings (MW) | M9: Gross Energy Savings (MWh) | N9: 2011 | O9: 2012 | P9: 2013 | Q9: 2014 | R9: 2015 | S9: 2016 | T9: 2017 | U9: 2018 | V9: 2019 | W9: 2020 | X9: 2021 | Y9: 2022 | Z9: 2023 | AA9: 2024 | AB9: 2025 | AC9: 2026 | AD9: 2027 | AE9: 2028 | AF9: 2029 | AG9: 2030 | AH9: 2031 | AI9: 2032 | AJ9: 2033 | AK9: 2034 | AL9: 2035 | AM9: 2036 | AN9: 2037 | AO9: 2038 | AP9: 2039 | AQ9: 2040 | AR9: 2011 | AS9: 2012 | AT9: 2013 | AU9: 2014 | AV9: 2015 | AW9: 2016 | AX9: 2017 | AY9: 2018 | AZ9: 2019 | BA9: 2020 | BB9: 2021 | BC9: 2022 | BD9: 2023 | BE9: 2024 | BF9: 2025 | BG9: 2026 | BH9: 2027 | BI9: 2028 | BJ9: 2029 | BK9: 2030 | BL9: 2031 | BM9: 2032 | BN9: 2033 | BO9: 2034 | BP9: 2035 | BQ9: 2036 | BR9: 2037 | BS9: 2038 | BT9: 2039 | BU9: 2040
C10: Retrofit | D10: Wellington North Power Inc. | E10: Commercial & Institutional | F10: EE | G10: 2013 | I10: N/A | J10: Projects | K10: 5 | L10: 0.02007747535 | M10: 98.72879411 | P10: 0.01338709821 | Q10: 0.01263430752 | R10: 0.01263430752 | S10: 0.01187468808 | T10: 0.007087763253 | U10: 0.007087763253 | V10: 0.007087763253 | W10: 0.007087763253 | X10: 0.007087763253 | Y10: 0.007087763253 | Z10: 0.007030461206 | AA10: 0.007030461206 | AB10: 0.004932324725 | AC10: 0.001819389334 | AD10: 0.001819389334 | AE10: 0.001483403761 | AF10: 2.0015209e-05 | AG10: 0 | AH10: 0 | AI10: 0 | AJ10: 0 | AK10: 0 | AL10: 0 | AM10: 0 | AN10: 0 | AO10: 0 | AP10: 0 | AQ10: 0 | AR10: 0 | AS10: 0 | AT10: 67.69728333 | AU10: 65.33897681 | AV10: 65.33897681 | AW10: 62.95927752 | AX10: 47.96302938 | AY10: 47.96302938 | AZ10: 47.96302938 | BA10: 47.96302938 | BB10: 47.96302938 | BC10: 47.96302938 | BD10: 47.35680935 | BE10: 47.35680935 | BF10: 35.21043413 | BG10: 25.45837968 | BH10: 25.45837968 | BI10: 20.48745849 | BJ10: 0.01333574645 | BK10: 0 | BL10: 0 | BM10: 0 | BN10: 0 | BO10: 0 | BP10: 0 | BQ10: 0 | BR10: 0 | BS10: 0 | BT10: 0 | BU10: 0
C11: Small Business Lighting | D11: Wellington North Power Inc. | E11: Commercial & Institutional | F11: EE | G11: 2013 | I11: N/A | J11: Projects | K11: 9 | L11: 0.007773242518 | M11: 25.72483448 | P11: 0.007342165336 | Q11: 0.007342165336 | R11: 0.00686875061 | S11: 0.006019037949 | T11: 0.001851302003 | U11: 0.001851302003 | V11: 0.001851302003 | W11: 0.001851302003 | X11: 0.001851302003 | Y11: 0.001851302003 | Z11: 0.001768270186 | AA11: 0.001768270186 | AB11: 0 | AC11: 0 | AD11: 0 | AE11: 0 | AF11: 0 | AG11: 0 | AH11: 0 | AI11: 0 | AJ11: 0 | AK11: 0 | AL11: 0 | AM11: 0 | AN11: 0 | AO11: 0 | AP11: 0 | AQ11: 0 | AT11: 24.28090758 | AU11: 24.28090758 | AV11: 22.45661548 | AW11: 19.18226845 | AX11: 6.522914528 | AY11: 6.522914528 | AZ11: 6.522914528 | BA11: 6.522914528 | BB11: 6.522914528 | BC11: 6.522914528 | BD11: 5.769660269 | BE11: 5.769660269 | BF11: 0 | BG11: 0 | BH11: 0 | BI11: 0 | BJ11: 0 | BK11: 0 | BL11: 0 | BM11: 0 | BN11: 0 | BO11: 0 | BP11: 0 | BQ11: 0 | BR11: 0 | BS11: 0 | BT11: 0 | BU11: 0
C12: Annual Coupons | D12: Wellington North Power Inc. | E12: Residential | F12: EE | G12: 2013 | I12: Custom loadshapes for some clotheslines, outdoor timers and power bars based on survey results. | J12: measures | K12: 219.3937234 | L12: 0.000293277118 | M12: 4.327363081 | N12: 0 | O12: 0 | P12: 0.000326713658 | Q12: 0.000326713658 | R12: 0.000314921038 | S12: 0.000269965476 | T12: 0.000269965476 | U12: 0.000269965476 | V12: 0.000269965476 | W12: 0.00026958772 | X12: 0.000201636001 | Y12: 0.000201636001 | Z12: 0.000161967323 | AA12: 0.000161962791 | AB12: 0.000161962791 | AC12: 0.000161721335 | AD12: 0.000161721335 | AE12: 0.000161523537 | AF12: 0.000156532252 | AG12: 9.1880959e-05 | AH12: 9.1880959e-05 | AI12: 9.1880959e-05 | AJ12: 0 | AK12: 0 | AL12: 0 | AM12: 0 | AN12: 0 | AO12: 0 | AP12: 0 | AQ12: 0 | AR12: 0 | AS12: 0 | AT12: 4.874638805 | AU12: 4.874638805 | AV12: 4.68679032 | AW12: 3.970678572 | AX12: 3.970678572 | AY12: 3.970678572 | AZ12: 3.970678572 | BA12: 3.967369428 | BB12: 2.884944418 | BC12: 2.884944418 | BD12: 2.623124533 | BE12: 2.585770086 | BF12: 2.585770086 | BG12: 2.575140377 | BH12: 2.575140377 | BI12: 2.572960923 | BJ12: 2.493453118 | BK12: 1.463601656 | BL12: 1.463601656 | BM12: 1.463601656 | BN12: 0 | BO12: 0 | BP12: 0 | BQ12: 0 | BR12: 0 | BS12: 0 | BT12: 0 | BU12: 0
C13: Appliance Retirement | D13: Wellington North Power Inc. | E13: Residential | F13: EE | G13: 2013 | I13: N/A | J13: Appliances | K13: 43 | L13: 0.005956996549 | M13: 39.04979853 | P13: 0.00276663269 | Q13: 0.00276663269 | R13: 0.00276663269 | S13: 0.00276663269 | T13: 0.00182058775 | U13: 0 | V13: 0 | W13: 0 | X13: 0 | Y13: 0 | Z13: 0 | AA13: 0 | AB13: 0 | AC13: 0 | AD13: 0 | AE13: 0 | AF13: 0 | AG13: 0 | AH13: 0 | AI13: 0 | AJ13: 0 | AK13: 0 | AL13: 0 | AM13: 0 | AN13: 0 | AO13: 0 | AP13: 0 | AQ13: 0 | AT13: 18.32733964 | AU13: 18.32733964 | AV13: 18.32733964 | AW13: 18.32733964 | AX13: 12.38757985 | AY13: 0 | AZ13: 0 | BA13: 0 | BB13: 0 | BC13: 0 | BD13: 0 | BE13: 0 | BF13: 0 | BG13: 0 | BH13: 0 | BI13: 0 | BJ13: 0 | BK13: 0 | BL13: 0 | BM13: 0 | BN13: 0 | BO13: 0 | BP13: 0 | BQ13: 0 | BR13: 0 | BS13: 0 | BT13: 0 | BU13: 0
C14: Bi-Annual Retailer Events | D14: Wellington North Power Inc. | E14: Residential | F14: EE | G14: 2013 | I14: Custom loadshapes for some clotheslines, outdoor timers and power bars based on survey results. | J14: measures | K14: 597.5192559 | L14: 0.000722062229 | M14: 10.39828476 | N14: 0 | O14: 0 | P14: 0.000748604345 | Q14: 0.000748604345 | R14: 0.000707506318 | S14: 0.000567249185 | T14: 0.000567249185 | U14: 0.000567249185 | V14: 0.000567249185 | W14: 0.000566176139 | X14: 0.000486622848 | Y14: 0.000486622848 | Z14: 0.000353107578 | AA14: 0.000228081924 | AB14: 0.000228081924 | AC14: 0.000223588872 | AD14: 0.000223588872 | AE14: 0.000221283813 | AF14: 0.000191005112 | AG14: 0.000112115687 | AH14: 0.000112115687 | AI14: 0.000112115687 | AJ14: 0 | AK14: 0 | AL14: 0 | AM14: 0 | AN14: 0 | AO14: 0 | AP14: 0 | AQ14: 0 | AR14: 0 | AS14: 0 | AT14: 10.86535541 | AU14: 10.86535541 | AV14: 10.21069158 | AW14: 7.976490121 | AX14: 7.976490121 | AY14: 7.976490121 | AZ14: 7.976490121 | BA14: 7.967090234 | BB14: 6.699860005 | BC14: 6.699860005 | BD14: 5.82995901 | BE14: 3.7481002 | BF14: 3.7481002 | BG14: 3.550300264 | BH14: 3.550300264 | BI14: 3.524901785 | BJ14: 3.042582503 | BK14: 1.785927217 | BL14: 1.785927217 | BM14: 1.785927217 | BN14: 0 | BO14: 0 | BP14: 0 | BQ14: 0 | BR14: 0 | BS14: 0 | BT14: 0 | BU14: 0
C15: Home Assistance Program | D15: Wellington North Power Inc. | E15: Residential | F15: EE | G15: 2013 | I15: N/A | J15: Projects Completed | K15: 57 | L15: 0.005056726387 | M15: 55.48352399 | N15: 0 | O15: 0 | P15: 0.005056726377 | Q15: 0.005000353645 | R15: 0.004995228845 | S15: 0.004781053106 | T15: 0.004694464404 | U15: 0.004607875714 | V15: 0.004499591165 | W15: 0.004499591165 | X15: 0.003378455441 | Y15: 0.003222111505 | Z15: 0.001403381314 | AA15: 0.001403381314 | AB15: 0.000711799201 | AC15: 0.000711799201 | AD15: 0.000109874856 | AE15: 8.56409e-05 | AF15: 8.56409e-05 | AG15: 8.56409e-05 | AH15: 8.56409e-05 | AI15: 8.56409e-05 | AJ15: 8.56409e-05 | AK15: 0 | AL15: 0 | AM15: 0 | AN15: 0 | AO15: 0 | AP15: 0 | AQ15: 0 | AR15: 0 | AS15: 0 | AT15: 55.48352448 | AU15: 54.39831245 | AV15: 54.29965688 | AW15: 50.17663356 | AX15: 48.50974514 | AY15: 46.84285603 | AZ15: 44.75830758 | BA15: 44.56977004 | BB15: 22.98717368 | BC15: 22.84115805 | BD15: 7.843371124 | BE15: 7.843371124 | BF15: 5.544098969 | BG15: 5.544098969 | BH15: 0.8312169495 | BI15: 0.6313765869 | BJ15: 0.6313765869 | BK15: 0.6313765869 | BL15: 0.6313765869 | BM15: 0.6313765869 | BN15: 0.6313765869 | BO15: 0 | BP15: 0 | BQ15: 0 | BR15: 0 | BS15: 0 | BT15: 0 | BU15: 0
C16: HVAC | D16: Wellington North Power Inc. | E16: Residential | F16: EE | G16: 2013 | I16: Blended Load Shape used for furnaces | J16: Equipment | K16: 25 | L16: 0.01290745734 | M16: 24.4730231 | P16: 0.006086164448 | Q16: 0.006086164448 | R16: 0.006086164448 | S16: 0.006086164448 | T16: 0.006086164448 | U16: 0.006086164448 | V16: 0.006086164448 | W16: 0.006086164448 | X16: 0.006086164448 | Y16: 0.006086164448 | Z16: 0.006086164448 | AA16: 0.006086164448 | AB16: 0.006086164448 | AC16: 0.006086164448 | AD16: 0.006086164448 | AE16: 0.006086164448 | AF16: 0.006086164448 | AG16: 0.006086164448 | AH16: 0.00578461352 | AI16: 0 | AJ16: 0 | AK16: 0 | AL16: 0 | AM16: 0 | AN16: 0 | AO16: 0 | AP16: 0 | AQ16: 0 | AT16: 11.50181433 | AU16: 11.50181433 | AV16: 11.50181433 | AW16: 11.50181433 | AX16: 11.50181433 | AY16: 11.50181433 | AZ16: 11.50181433 | BA16: 11.50181433 | BB16: 11.50181433 | BC16: 11.50181433 | BD16: 11.50181433 | BE16: 11.50181433 | BF16: 11.50181433 | BG16: 11.50181433 | BH16: 11.50181433 | BI16: 11.50181433 | BJ16: 11.50181433 | BK16: 11.50181433 | BL16: 11.23215108 | BM16: 0 | BN16: 0 | BO16: 0 | BP16: 0 | BQ16: 0 | BR16: 0 | BS16: 0 | BT16: 0 | BU16: 0
C17: Appliance Retirement | D17: Wellington North Power Inc. | E17: Residential | F17: EE | G17: 2013 | I17: N/A | J17: Appliances | K17: 0.008854271473 | L17: 1.166737116e-06 | M17: 0.008159904619 | N17: 0 | O17: 0 | P17: 5.526769916e-07 | Q17: 5.526769916e-07 | R17: 5.526769916e-07 | S17: 5.526769916e-07 | T17: 3.070472036e-07 | U17: 0 | V17: 0 | W17: 0 | X17: 0 | Y17: 0 | Z17: 0 | AA17: 0 | AB17: 0 | AC17: 0 | AD17: 0 | AE17: 0 | AF17: 0 | AG17: 0 | AH17: 0 | AI17: 0 | AJ17: 0 | AK17: 0 | AL17: 0 | AM17: 0 | AN17: 0 | AO17: 0 | AP17: 0 | AQ17: 0 | AR17: 0 | AS17: 0 | AT17: 0.003867699222 | AU17: 0.003867699222 | AV17: 0.003867699222 | AW17: 0.003867699222 | AX17: 0.002089199902 | AY17: 0 | AZ17: 0 | BA17: 0 | BB17: 0 | BC17: 0 | BD17: 0 | BE17: 0 | BF17: 0 | BG17: 0 | BH17: 0 | BI17: 0 | BJ17: 0 | BK17: 0 | BL17: 0 | BM17: 0 | BN17: 0 | BO17: 0 | BP17: 0 | BQ17: 0 | BR17: 0 | BS17: 0 | BT17: 0 | BU17: 0
N19: =SUM(N10:N18) -> 0 | O19: =SUM(O10:O18) -> 0 | P19: 0.03571465774 | Q19: 0.03490549432 | AR19: =SUM(AR10:AR18) -> 0 | AS19: =SUM(AS10:AS18) -> 0 | AT19: =SUM(AT10:AT18) -> 193.0347313 | AU19: =SUM(AU10:AU18) -> 189.5912127 | AV19: 186.8257527 | AW19: 174.0983699
C21: Retrofit | D21: Wellington North Power Inc. | E21: Commercial & Institutional | F21: EE | G21: 2012 | I21: N/A | J21: Projects | K21: 1 | L21: 0.040246026 | M21: 251.6323836 | O21: 0.02421476215 | P21: 0.02421476215 | Q21: 0.02421476215 | R21: 0.02421476215 | S21: 0.02421476215 | T21: 0.02421476215 | U21: 0.02421476215 | V21: 0.02421476215 | W21: 0.02421476215 | X21: 0.02421476215 | Y21: 0.02421476215 | Z21: 0.02421476215 | AA21: 0.02421476215 | AB21: 0.02421476215 | AC21: 0.02421476215 | AD21: 0.01731490064 | AE21: 0 | AF21: 0 | AG21: 0 | AH21: 0 | AI21: 0 | AJ21: 0 | AK21: 0 | AL21: 0 | AM21: 0 | AN21: 0 | AO21: 0 | AP21: 0 | AQ21: 0 | AR21: 0 | AS21: 154.1111612 | AT21: 154.1111612 | AU21: 154.1111612 | AV21: 154.1111612 | AW21: 154.1111612 | AX21: 154.1111612 | AY21: 154.1111612 | AZ21: 154.1111612 | BA21: 154.1111612 | BB21: 154.1111612 | BC21: 154.1111612 | BD21: 154.1111612 | BE21: 154.1111612 | BF21: 154.1111612 | BG21: 154.1111612 | BH21: 110.1980448 | BI21: 0 | BJ21: 0 | BK21: 0 | BL21: 0 | BM21: 0 | BN21: 0 | BO21: 0 | BP21: 0 | BQ21: 0 | BR21: 0 | BS21: 0 | BT21: 0 | BU21: 0
C22: Small Business Lighting | D22: Wellington North Power Inc. | E22: Commercial & Institutional | F22: EE | G22: 2012 | I22: N/A | J22: Projects | K22: 1 | L22: 0.002027831064 | M22: 7.239240901 | O22: 0.001912935014 | P22: 0.001912935014 | Q22: 0.001912935014 | R22: 0.000143023179 | S22: 0.000143023179 | T22: 1.641191e-05 | U22: 1.641191e-05 | V22: 1.641191e-05 | W22: 1.641191e-05 | X22: 1.641191e-05 | Y22: 1.641191e-05 | Z22: 1.641191e-05 | AA22: 0 | AB22: 0 | AC22: 0 | AD22: 0 | AE22: 0 | AF22: 0 | AG22: 0 | AH22: 0 | AI22: 0 | AJ22: 0 | AK22: 0 | AL22: 0 | AM22: 0 | AN22: 0 | AO22: 0 | AP22: 0 | AQ22: 0 | AS22: 6.819646059 | AT22: 6.819646059 | AU22: 6.819646059 | AV22: 0.5447633262 | AW22: 0.5447633262 | AX22: 0.06251159168 | AY22: 0.06251159168 | AZ22: 0.06251159168 | BA22: 0.06251159168 | BB22: 0.06251159168 | BC22: 0.06251159168 | BD22: 0.06251159168 | BE22: 0 | BF22: 0 | BG22: 0 | BH22: 0 | BI22: 0 | BJ22: 0 | BK22: 0 | BL22: 0 | BM22: 0 | BN22: 0 | BO22: 0 | BP22: 0 | BQ22: 0 | BR22: 0 | BS22: 0 | BT22: 0 | BU22: 0
C23: HVAC | D23: Wellington North Power Inc. | E23: Residential | F23: EE | G23: 2012 | I23: Blended Load Shape used for furnaces | J23: Equipment | K23: 0.01264895925 | L23: 5.959284504e-06 | M23: 0.01076049921 | N23: 0 | O23: 2.581870794e-06 | P23: 2.581870794e-06 | Q23: 2.581870794e-06 | R23: 2.581870794e-06 | S23: 2.581870794e-06 | T23: 2.581870794e-06 | U23: 2.581870794e-06 | V23: 2.581870794e-06 | W23: 2.581870794e-06 | X23: 2.581870794e-06 | Y23: 2.581870794e-06 | Z23: 2.581870794e-06 | AA23: 2.581870794e-06 | AB23: 2.581870794e-06 | AC23: 2.581870794e-06 | AD23: 2.581870794e-06 | AE23: 2.581870794e-06 | AF23: 2.581870794e-06 | AG23: 2.581870794e-06 | AH23: 2.219158414e-06 | AI23: 0 | AJ23: 0 | AK23: 0 | AL23: 0 | AM23: 0 | AN23: 0 | AO23: 0 | AP23: 0 | AQ23: 0 | AR23: 0 | AS23: 0.005249283299 | AT23: 0.005249283299 | AU23: 0.005249283299 | AV23: 0.005249283299 | AW23: 0.005249283299 | AX23: 0.005249283299 | AY23: 0.005249283299 | AZ23: 0.005249283299 | BA23: 0.005249283299 | BB23: 0.005249283299 | BC23: 0.005249283299 | BD23: 0.005249283299 | BE23: 0.005249283299 | BF23: 0.005249283299 | BG23: 0.005249283299 | BH23: 0.005249283299 | BI23: 0.005249283299 | BJ23: 0.005249283299 | BK23: 0.004885728335 | BL23: 0 | BM23: 0 | BN23: 0 | BO23: 0 | BP23: 0 | BQ23: 0 | BR23: 0 | BS23: 0 | BT23: 0 | BU23: 0
N26: =SUM(N21:N25) -> 0 | O26: =SUM(O21:O25) -> 0.02613027903 | P26: =SUM(P21:P25) -> 0.02613027903 | Q26: 0.02613027903 | AR26: =SUM(AR21:AR25) -> 0 | AS26: =SUM(AS21:AS25) -> 160.9360565 | AT26: =SUM(AT21:AT25) -> 160.9360565 | AU26: 160.9360565 | AV26: 154.6611738 | AW26: 154.6611738
M28: GWh | N28: =(N19+N26)/1000 -> 0 | O28: =(O19+O26)/1000 -> 2.613027903e-05 | P28: =(P19+P26)/1000 -> 6.184493678e-05 | Q28: =(Q19+Q26)/1000 -> 6.103577335e-05 | AR28: =(AR19+AR26)/1000 -> 0 | AS28: =(AS19+AS26)/1000 -> 0.1609360565 | AT28: =(AT19+AT26)/1000 -> 0.3539707878 | AU28: 0.3505272693
M30: MW | N30: =N19+N26 -> 0 | O30: =O19+O26 -> 0.02613027903 | P30: =P19+P26 -> 0.06184493678 | Q30: 0.06103577335 | AR30: =AR19+AR26 -> 0 | AS30: =AS19+AS26 -> 160.9360565 | AT30: =AT19+AT26 -> 353.9707878 | AU30: =AU19+AU26 -> 350.5272693
M32: kWh | N32: =N30*1000 -> 0 | O32: =O30*1000 -> 26.13027903 | P32: 61.84493678 | Q32: 61.03577335 | AR32: =AR30*1000 -> 0 | AS32: =AS30*1000 -> 160936.0565 | AT32: =AT30*1000 -> 353970.7878 | AU32: =AU30*1000 -> 350527.2693
P34: 2013 | AT34: 2013
O35: Adj to Previous Year's Verified Results | P35: =P26 -> 0.02613027903 | Q35: MWh | AS35: Adj to Previous Year's Verified Results | AT35: =AT26 -> 160.9360565 | AU35: =AU26 -> 160.9360565 | AV35: =AV26 -> 154.6611738 | AW35: 154.6611738 | AX35: MWh
O37: Energy Efficiency Total | P37: =P19 -> 0.03571465774 | Q37: MWh | AS37: Energy Efficiency Total | AT37: =AT19 -> 193.0347313 | AU37: =AU19 -> 189.5912127 | AV37: 186.8257527 | AW37: 174.0983699 | AX37: MWh
O39: Demand Response | P39: 0 | Q39: MWh | AS39: Demand Response | AT39: 0 | AU39: 0 | AV39: 0 | AW39: 0 | AX39: MWh
O41: OPA- Contract LDC Portfolio (MWh) | P41: =P35+P37+P39 -> 0.06184493678 | Q41: MWh | AS41: OPA- Contract LDC Portfolio (MWh) | AT41: =AT35+AT37+AT39 -> 353.9707878 | AU41: =AU35+AU37+AU39 -> 350.5272693 | AV41: 341.4869266 | AW41: 328.7595437 | AX41: MWh
O43: CHECK: Variance to LDC Summary sheet | P43: =SUM((P41-('9.0 2013LostRev'!D65/1000))) -> 0.0003289367778 | Q43: MWh | AS43: CHECK: Variance to LDC Summary sheet | AT43: =SUM((AT41-('9.0 2013LostRev'!E65/1000))) -> 1.820872399e-06 | AX43: MWh
